Organisation Name,Effective Date,Purch Date,Service Area,Expense Area,Beneficiary,Net amount,    Tax,     Gross,Long Text,MCC Description
Buckinghamshire Council ,31.08.2023,31.08.2023,Resources,AH&R - Res Dir,AMZNMktplace,3.5,0,3.5,Awaiting Coding,Miscellaneous retail
Buckinghamshire Council ,31.08.2023,31.08.2023,Communities,Culture & Leisure - Communities Dir,AMZNMKTPLACE,130.84,0,130.84,Administrative Equipment & Tools,Miscellaneous retail
Buckinghamshire Council ,31.08.2023,31.08.2023,Children's Services,Education & Childrens Services - CS Dir,FACEBK *PB4U3RPE92,22.19,0,22.19,Advertising,Advertising services
Buckinghamshire Council ,31.08.2023,31.08.2023,Communities,Communities - Trading Accounts,DVLA VEHICLE TAX,165,0,165,Vehicle Taxation Costs,Tax payments
Buckinghamshire Council ,31.08.2023,31.08.2023,Communities,Transport - Communities Dir,EB *NATIONAL MODESHIFT,298.64,0,298.64,"Courses, Conference and Seminar Fees",Misc business services
Buckinghamshire Council ,31.08.2023,31.08.2023,Deputy Chief Executive,Communities - DCE,WWW.ARGOS.CO.UK,135.79,27.16,162.95,Other Personal Needs,Department stores
Buckinghamshire Council ,31.08.2023,31.08.2023,Deputy Chief Executive,Communities - DCE,WWW.ARGOS.CO.UK,60.37,12.08,72.45,Other Personal Needs,Department stores
Buckinghamshire Council ,31.08.2023,31.08.2023,Deputy Chief Executive,Communities - DCE,WWW.ARGOS.CO.UK,65.4,13.08,78.48,Other Personal Needs,Department stores
Buckinghamshire Council ,31.08.2023,31.08.2023,Deputy Chief Executive,Communities - DCE,WWW.ARGOS.CO.UK,0.02,0,0.02,Other Personal Needs,Department stores
Buckinghamshire Council ,31.08.2023,31.08.2023,Deputy Chief Executive,Communities - DCE,AO RETAIL LIMITED,232.5,46.5,279,Other Personal Needs,Household appliance stores
Buckinghamshire Council ,31.08.2023,31.08.2023,Deputy Chief Executive,Communities - DCE,AO RETAIL LIMITED,374.16,74.84,449,Other Personal Needs,Household appliance stores
Buckinghamshire Council ,31.08.2023,31.08.2023,Deputy Chief Executive,Communities - DCE,AO RETAIL LIMITED,751.66,150.34,902,Other Personal Needs,Household appliance stores
Buckinghamshire Council ,31.08.2023,31.08.2023,Deputy Chief Executive,Communities - DCE,AO RETAIL LIMITED,-100,0,-100,Other Personal Needs,Household appliance stores
Buckinghamshire Council ,31.08.2023,31.08.2023,Resources,AH&R - Res Dir,ONEDIRECT UK,16.78,0,16.78,Equipment,
Buckinghamshire Council ,31.08.2023,31.08.2023,Communities,Transport - Communities Dir,AMZNMKTPLACE,10.99,0,10.99,Equipment,Miscellaneous retail
Buckinghamshire Council ,31.08.2023,31.08.2023,Adults and Health,Health & Wellbeing - Adults & Health Dir,WM MORRISONS STORE,80.05,0,80.05,Activities & General Recreation,Grocery stores
Buckinghamshire Council ,31.08.2023,31.08.2023,"Planning, Growth & Sustainability",AH&R - PGS Dir,HOME NEEDS,5.98,0,5.98,Miscellaneous (Other)  Expenses,Misc. home furnishing
Buckinghamshire Council ,31.08.2023,31.08.2023,"Planning, Growth & Sustainability",AH&R - PGS Dir,TOOLSTATION LTD,28.98,0,28.98,General Repairs & Maintenance,Timber & building supplies
Buckinghamshire Council ,31.08.2023,31.08.2023,"Planning, Growth & Sustainability",AH&R - PGS Dir,SCREWFIX HIGH WYCOMBE CRE,35.05,0,35.05,General Repairs & Maintenance,Timber & building supplies
Buckinghamshire Council ,31.08.2023,31.08.2023,Communities,Culture & Leisure - Communities Dir,WH SMITH AYLESBURY,12.99,0,12.99,Administrative Equipment & Tools,Newspapers / newsagents
Buckinghamshire Council ,31.08.2023,31.08.2023,Deputy Chief Executive,AH&R- DCE Dir,TESCO STORES 2162,54.07,0,54.07,Other Personal Needs,Grocery stores
Buckinghamshire Council ,31.08.2023,31.08.2023,Children's Services,Education & Childrens Services - CS Dir,AMZNMKTPLACE,50.47,0,50.47,Consumable Supplies,Miscellaneous retail
Buckinghamshire Council ,31.08.2023,31.08.2023,Communities,Climate Change & Environment - Community,AMAZON.CO.UK,55,0,55,Equipment,Direct sales companies
Buckinghamshire Council ,31.08.2023,31.08.2023,Deputy Chief Executive,Communities - DCE,RINGGO PARKING,2.25,0,2.25,Staff Travelling Expenses,Car parking & garages
Buckinghamshire Council ,31.08.2023,31.08.2023,Resources,AH&R - Res Dir,NEW YORK DELI GATEHOUSE,81.75,16.35,98.1,Subsistence,Restaurants
Buckinghamshire Council ,31.08.2023,31.08.2023,"Planning, Growth & Sustainability",Planning & Regeneration - PGS,RTPI,102,0,102,Course Fees & Post Entry Training,"Member clubs, sport, recreation & golf"
Buckinghamshire Council ,31.08.2023,31.08.2023,Children's Services,Education & Childrens Services - CS Dir,SUMUP  *CABS4U,98,0,98,"Exp of School, Club & College Activities",Taxicabs & limousines
Buckinghamshire Council ,31.08.2023,31.08.2023,Resources,AH&R - Res Dir,BUCKINGHAMSHIRE CNCL,11,0,11,Awaiting Coding,Government services
Buckinghamshire Council ,31.08.2023,31.08.2023,Communities,Communities - Trust Accounts,BOOKER LTD - 38531354,342.95,0,342.95,Purchase of Food for Re-sale,Grocery stores
Buckinghamshire Council ,31.08.2023,31.08.2023,Communities,Communities - Trust Accounts,COSTCO WHOLESALE #102,194.37,0,194.37,Equipment,Buying & shopping services/clubs
Buckinghamshire Council ,31.08.2023,31.08.2023,Resources,AH&R - Res Dir,FACEBK HCDWARFG82,5.44,0,5.44,Permanent Recruitment Costs,Advertising services
Buckinghamshire Council ,31.08.2023,31.08.2023,Resources,AH&R - Res Dir,FACEBK *32ZCHQF742,24.98,0,24.98,Permanent Recruitment Costs,Advertising services
Buckinghamshire Council ,31.08.2023,31.08.2023,Children's Services,Education & Childrens Services - CS Dir,THE SCHOOL SHOP,113.6,0,113.6,Protective Clothing & Uniforms,Uniforms & commercial clothing
Buckinghamshire Council ,31.08.2023,31.08.2023,Children's Services,Education & Childrens Services - CS Dir,WH Smith Aylesbury,6.49,0,6.49,"Books, Records, Films & Oth Publications",Newspapers / newsagents
Buckinghamshire Council ,31.08.2023,31.08.2023,Children's Services,Education & Childrens Services - CS Dir,THE CLARKS SHOP,63,0,63,Awaiting Coding,Shoe shops
Buckinghamshire Council ,31.08.2023,31.08.2023,Children's Services,Education & Childrens Services - CS Dir,MARKS&SPENCER PLC SA,53.1,0,53.1,Awaiting Coding,Grocery stores
Buckinghamshire Council ,31.08.2023,31.08.2023,Children's Services,Education & Childrens Services - CS Dir,POUNDLAND LTD - 1301,6,0,6,Awaiting Coding,Discount stores
Buckinghamshire Council ,31.08.2023,31.08.2023,"Planning, Growth & Sustainability",Housing & Homelessness & Regulatory PGS,HOLIDAY INN AYLESB,907,0,907,Bed & Breakfast,"Hotels, motels & resorts"
Buckinghamshire Council ,31.08.2023,31.08.2023,Communities,Transport - Communities Dir,SHELL 40-42 WOODSIDE ROAD,63.56,0,63.56,Petrol,Service stations
Buckinghamshire Council ,31.08.2023,31.08.2023,Deputy Chief Executive,AH&R- DCE Dir,PAYPAL,982.95,0,982.95,Awaiting Coding,Variety stores
Buckinghamshire Council ,31.08.2023,31.08.2023,Deputy Chief Executive,AH&R- DCE Dir,PAYPAL,526,0,526,Awaiting Coding,Variety stores
Buckinghamshire Council ,31.08.2023,31.08.2023,Deputy Chief Executive,AH&R- DCE Dir,PAYPAL,912,0,912,Awaiting Coding,Electronics shops
Buckinghamshire Council ,31.08.2023,31.08.2023,Adults and Health,Health & Wellbeing - Adults & Health Dir,SAINSBURYS S/MKTS,4.1,0,4.1,Awaiting Coding,Grocery stores
Buckinghamshire Council ,31.08.2023,31.08.2023,Children's Services,Education & Childrens Services - CS Dir,EUROFFICE.CO.UK,37.44,0,37.44,Cleaning Materials,Stationery & office supplies stores
Buckinghamshire Council ,31.08.2023,31.08.2023,Children's Services,Education & Childrens Services - CS Dir,SAINSBURYS S/MKTS,17.72,0,17.72,Awaiting Coding,Grocery stores
Buckinghamshire Council ,31.08.2023,30.08.2023,Children's Services,Education & Childrens Services - CS Dir,AMZNMKTPLACE,837.31,0,837.31,Furniture,Miscellaneous retail
Buckinghamshire Council ,31.08.2023,30.08.2023,Deputy Chief Executive,Communities - DCE,WWW.ARGOS.CO.UK,140.95,0,140.95,Other Personal Needs,Department stores
Buckinghamshire Council ,31.08.2023,30.08.2023,Deputy Chief Executive,Communities - DCE,AO RETAIL LIMITED,693.3,138.66,831.96,Other Personal Needs,Household appliance stores
Buckinghamshire Council ,31.08.2023,30.08.2023,Deputy Chief Executive,Communities - DCE,AO RETAIL LIMITED,0.04,0,0.04,Other Personal Needs,Household appliance stores
Buckinghamshire Council ,31.08.2023,30.08.2023,Deputy Chief Executive,Communities - DCE,WWW.ARGOS.CO.UK,224.1,44.82,268.92,Other Personal Needs,Department stores
Buckinghamshire Council ,31.08.2023,30.08.2023,Deputy Chief Executive,Communities - DCE,WWW.ARGOS.CO.UK,0.03,0,0.03,Other Personal Needs,Department stores
Buckinghamshire Council ,31.08.2023,30.08.2023,Deputy Chief Executive,Communities - DCE,WWW.ARGOS.CO.UK,138.29,27.66,165.95,Other Personal Needs,Department stores
Buckinghamshire Council ,31.08.2023,30.08.2023,Deputy Chief Executive,Communities - DCE,WWW.ARGOS.CO.UK,483.29,96.66,579.95,Other Personal Needs,Department stores
Buckinghamshire Council ,31.08.2023,30.08.2023,Deputy Chief Executive,Communities - DCE,AO RETAIL LIMITED,204.16,40.84,245,Other Personal Needs,Household appliance stores
Buckinghamshire Council ,31.08.2023,30.08.2023,Deputy Chief Executive,Communities - DCE,AO RETAIL LIMITED,922.49,184.51,"1,107.00",Other Personal Needs,Household appliance stores
Buckinghamshire Council ,31.08.2023,30.08.2023,Deputy Chief Executive,Communities - DCE,AO RETAIL LIMITED,399.16,79.84,479,Other Personal Needs,Household appliance stores
Buckinghamshire Council ,31.08.2023,30.08.2023,Communities,Culture & Leisure - Communities Dir,AMAZON* 204-5939130-29,17.64,0,17.64,Administrative Equipment & Tools,Phone equipment & sales
Buckinghamshire Council ,31.08.2023,30.08.2023,"Planning, Growth & Sustainability",Housing & Homelessness & Regulatory PGS,SAINSBURYS S/MKTS,7,0,7,Other General Office Expenses,Grocery stores
Buckinghamshire Council ,31.08.2023,30.08.2023,Adults and Health,Health & Wellbeing - Adults & Health Dir,TESCO STORES 2041,125,0,125,Other Supplies,Grocery stores
Buckinghamshire Council ,31.08.2023,30.08.2023,"Planning, Growth & Sustainability",AH&R - PGS Dir,TESCO STORES 2020,7.25,0,7.25,Purchase.of Refreshments and Food,Grocery stores
Buckinghamshire Council ,31.08.2023,30.08.2023,Deputy Chief Executive,AH&R- DCE Dir,AMZ*LIONS-OUTLET,-13.75,0,-13.75,Other Personal Needs,Miscellaneous retail
Buckinghamshire Council ,31.08.2023,30.08.2023,Deputy Chief Executive,Communities - DCE,B&M 426 - HS AYLESBURY,26.64,0,26.64,Grants to Voluntary Bodies,Misc. general merchandise
Buckinghamshire Council ,31.08.2023,30.08.2023,Adults and Health,Health & Wellbeing - Adults & Health Dir,TESCO STORES 5927,7.75,0,7.75,Awaiting Coding,Grocery stores
Buckinghamshire Council ,31.08.2023,30.08.2023,Adults and Health,Health & Wellbeing - Adults & Health Dir,ASDA GROCERIES ONLINE,86.33,0,86.33,Awaiting Coding,Grocery stores
Buckinghamshire Council ,31.08.2023,30.08.2023,Children's Services,Education & Childrens Services - CS Dir,AMZNMktplace,262.79,0,262.79,Awaiting Coding,Miscellaneous retail
Buckinghamshire Council ,31.08.2023,30.08.2023,Children's Services,Education & Childrens Services - CS Dir,TESCO STORES 2038,17.6,0,17.6,Awaiting Coding,Grocery stores
Buckinghamshire Council ,31.08.2023,30.08.2023,Communities,Climate Change & Environment - Community,EXPO* LARAC UK,330,0,330,Staff Travelling Expenses,Misc business services
Buckinghamshire Council ,31.08.2023,30.08.2023,Communities,Climate Change & Environment - Community,PREMIER INN,345.98,0,345.98,Staff Travelling Expenses,Premier Inn
Buckinghamshire Council ,31.08.2023,30.08.2023,Communities,Climate Change & Environment - Community,EXPO* LARAC UK,330,0,330,Staff Travelling Expenses,Misc business services
Buckinghamshire Council ,31.08.2023,30.08.2023,Children's Services,Education & Childrens Services - CS Dir,WWW.AFFINITYWATER.CO.U,146.51,0,146.51,Sec 17: Financial Assistance,Utilities
Buckinghamshire Council ,31.08.2023,30.08.2023,Communities,Climate Change & Environment - Community,BUCKSCOUNTYSHOW.CO.UK,60,0,60,LKD Garden Contracts,Agricultural Co-operatives
Buckinghamshire Council ,31.08.2023,30.08.2023,Communities,Climate Change & Environment - Community,BKG*HOTEL AT BOOKING.C,302,0,302,Staff Travelling Expenses,Travel agencies
Buckinghamshire Council ,31.08.2023,30.08.2023,Communities,Climate Change & Environment - Community,BKG*HOTEL AT BOOKING.C,558,0,558,Staff Travelling Expenses,Travel agencies
Buckinghamshire Council ,31.08.2023,30.08.2023,Communities,Climate Change & Environment - Community,EXPO* LARAC UK,660,0,660,Awaiting Coding,Misc business services
Buckinghamshire Council ,31.08.2023,30.08.2023,Children's Services,Education & Childrens Services - CS Dir,AMZNMktplace,92.33,0,92.33,Awaiting Coding,Miscellaneous retail
Buckinghamshire Council ,31.08.2023,30.08.2023,Children's Services,Education & Childrens Services - CS Dir,TRAVELODGE GB0000,"1,173.91",0,"1,173.91",Sec 17: Accommodation,Travelodge
Buckinghamshire Council ,31.08.2023,30.08.2023,Children's Services,Education & Childrens Services - CS Dir,MARKS&SPENCER PLC,25,0,25,"Books, Records, Films & Oth Publications",Grocery stores
Buckinghamshire Council ,31.08.2023,30.08.2023,Resources,AH&R - Res Dir,POST OFFICE COUNTER,100,0,100,Other Employees Expenses,Postal services
Buckinghamshire Council ,31.08.2023,30.08.2023,Children's Services,Education & Childrens Services - CS Dir,AMZ*TECHGEAR SOLUTIONS,-3.95,0,-3.95,Equipment for Training and Mats for Ins.,Miscellaneous retail
Buckinghamshire Council ,31.08.2023,30.08.2023,Children's Services,Education & Childrens Services - CS Dir,ODEON AYLESBURY,3.7,0,3.7,Awaiting Coding,Cinemas
Buckinghamshire Council ,31.08.2023,30.08.2023,Children's Services,Education & Childrens Services - CS Dir,TESCO STORES 2162,217.02,0,217.02,Awaiting Coding,Grocery stores
Buckinghamshire Council ,31.08.2023,30.08.2023,Children's Services,Education & Childrens Services - CS Dir,TRAINLINE.COM LTD,170.5,0,170.5,Leaving Care - Transport,Passenger railways
Buckinghamshire Council ,31.08.2023,30.08.2023,Children's Services,Education & Childrens Services - CS Dir,AMZNMKTPLACE,68.99,0,68.99,Leaving Care - Grants for Care Leavers,Miscellaneous retail
Buckinghamshire Council ,31.08.2023,30.08.2023,Deputy Chief Executive,Communities - DCE,TESCO STORES 3045,4.2,0,4.2,Seeds & Plants,Grocery stores
Buckinghamshire Council ,31.08.2023,30.08.2023,Resources,AH&R - Res Dir,FAMILY LINKS,97.3,0,97.3,Awaiting Coding,Charitable organisations
Buckinghamshire Council ,31.08.2023,30.08.2023,Resources,AH&R - Res Dir,AMZNMktplace,16.69,0,16.69,Awaiting Coding,Miscellaneous retail
Buckinghamshire Council ,31.08.2023,30.08.2023,"Planning, Growth & Sustainability",Housing & Homelessness & Regulatory PGS,WAITROSE 177,36.49,0,36.49,Other General Office Expenses,Grocery stores
Buckinghamshire Council ,31.08.2023,30.08.2023,Resources,AH&R - Res Dir,AYLESBURY SSTP,20.2,0,20.2,Staff Travelling Expenses,Passenger railways
Buckinghamshire Council ,31.08.2023,30.08.2023,Children's Services,Education & Childrens Services - CS Dir,ARRIVA UK BUS,4,0,4,Sec 20/31: Supp for Contact,"Buses, charter & tour"
Buckinghamshire Council ,31.08.2023,30.08.2023,Children's Services,Education & Childrens Services - CS Dir,FIRST BUS - WEB,7.8,0,7.8,Sec 20/31: Supp for Contact,"Buses, charter & tour"
Buckinghamshire Council ,31.08.2023,30.08.2023,Communities,Transport - Communities Dir,SHELL 40-42 WOODSIDE ROAD,4.12,0,4.12,Petrol,Service stations
Buckinghamshire Council ,31.08.2023,30.08.2023,Children's Services,Education & Childrens Services - CS Dir,ZOOLOGICAL SOCIETY OF LON,18,0,18,Leaving Care  - Financial Assistance,Aquariums
Buckinghamshire Council ,31.08.2023,30.08.2023,Adults and Health,Health & Wellbeing - Adults & Health Dir,WM MORRISONS STORE,73.84,0,73.84,Awaiting Coding,Grocery stores
Buckinghamshire Council ,31.08.2023,30.08.2023,Children's Services,Education & Childrens Services - CS Dir,BUCKINGHAM HOTELS,"1,575.00",315,"1,890.00",Sec 17: Accommodation,"Hotels, motels & resorts"
Buckinghamshire Council ,31.08.2023,30.08.2023,Children's Services,Education & Childrens Services - CS Dir,AMAZON* 202-8291813-25,89,0,89,Leaving Care - Grants for Care Leavers,Phone equipment & sales
Buckinghamshire Council ,31.08.2023,30.08.2023,Deputy Chief Executive,AH&R- DCE Dir,PAYPAL,264,0,264,Awaiting Coding,Electronics shops
Buckinghamshire Council ,31.08.2023,30.08.2023,Deputy Chief Executive,AH&R- DCE Dir,PAYPAL,802.95,0,802.95,Awaiting Coding,Variety stores
Buckinghamshire Council ,31.08.2023,30.08.2023,Deputy Chief Executive,AH&R- DCE Dir,PAYPAL,383,0,383,Awaiting Coding,Variety stores
Buckinghamshire Council ,31.08.2023,30.08.2023,Deputy Chief Executive,AH&R- DCE Dir,PAYPAL,125.95,0,125.95,Awaiting Coding,Variety stores
Buckinghamshire Council ,31.08.2023,30.08.2023,Deputy Chief Executive,AH&R- DCE Dir,PAYPAL,560.5,0,560.5,Awaiting Coding,Variety stores
Buckinghamshire Council ,31.08.2023,30.08.2023,Deputy Chief Executive,AH&R- DCE Dir,PAYPAL,337.95,0,337.95,Awaiting Coding,Variety stores
Buckinghamshire Council ,31.08.2023,30.08.2023,Deputy Chief Executive,AH&R- DCE Dir,PAYPAL,717.7,0,717.7,Awaiting Coding,Variety stores
Buckinghamshire Council ,31.08.2023,30.08.2023,Deputy Chief Executive,AH&R- DCE Dir,PAYPAL,250.95,0,250.95,Awaiting Coding,Variety stores
Buckinghamshire Council ,31.08.2023,30.08.2023,Communities,Culture & Leisure - Communities Dir,WWW.PRESERVATIONEQUIPM,88.98,0,88.98,Equipment (including storage),Warehousing
Buckinghamshire Council ,31.08.2023,29.08.2023,"Planning, Growth & Sustainability",Housing & Homelessness & Regulatory PGS,NEALES TAXIS LTD,32,0,32,Staff Travelling Expenses,Taxicabs & limousines
Buckinghamshire Council ,31.08.2023,29.08.2023,"Planning, Growth & Sustainability",Housing & Homelessness & Regulatory PGS,NEALES TAXIS LTD,18,0,18,Staff Travelling Expenses,Taxicabs & limousines
Buckinghamshire Council ,31.08.2023,29.08.2023,"Planning, Growth & Sustainability",Housing & Homelessness & Regulatory PGS,TRAVELODGE GB0000,126.46,0,126.46,"Courses, Conference and Seminar Fees",Travelodge
Buckinghamshire Council ,31.08.2023,29.08.2023,"Planning, Growth & Sustainability",Climate Change & Environment - PGS,A.M. CUSTOM CLOTHING,743.8,0,743.8,Advertising,Men & womens clothing shops
Buckinghamshire Council ,31.08.2023,29.08.2023,Children's Services,Education & Childrens Services - CS Dir,AMZNMktplace,114.99,0,114.99,Awaiting Coding,Miscellaneous retail
Buckinghamshire Council ,31.08.2023,29.08.2023,Children's Services,Education & Childrens Services - CS Dir,AMZNMktplace,107.99,0,107.99,Awaiting Coding,Miscellaneous retail
Buckinghamshire Council ,31.08.2023,29.08.2023,Deputy Chief Executive,Communities - DCE,WWW.ARGOS.CO.UK,224.1,44.82,268.92,Other Personal Needs,Department stores
Buckinghamshire Council ,31.08.2023,29.08.2023,Deputy Chief Executive,Communities - DCE,WWW.ARGOS.CO.UK,0.03,0,0.03,Other Personal Needs,Department stores
Buckinghamshire Council ,31.08.2023,29.08.2023,Deputy Chief Executive,Communities - DCE,AO RETAIL LIMITED,199.16,39.84,239,Other Personal Needs,Household appliance stores
Buckinghamshire Council ,31.08.2023,29.08.2023,Deputy Chief Executive,Communities - DCE,AO RETAIL LIMITED,174.16,34.84,209,Other Personal Needs,Household appliance stores
Buckinghamshire Council ,31.08.2023,29.08.2023,Communities,Climate Change & Environment - Community,WWW.NEXTBASE.COM,942.33,0,942.33,Repair & Maint of Vehicles & Plant,Automotive parts & accessories
Buckinghamshire Council ,31.08.2023,29.08.2023,"Planning, Growth & Sustainability",Housing & Homelessness & Regulatory PGS,LAND REGISTRY ECOM CCC,3,0,3,Homelessness,Government services
Buckinghamshire Council ,31.08.2023,29.08.2023,Communities,Transport - Communities Dir,DVLA VEHICLE TAX,24,0,24,Vehicle Hire,Tax payments
Buckinghamshire Council ,31.08.2023,29.08.2023,Communities,Transport - Communities Dir,DVLA VEHICLE TAX,24,0,24,Vehicle Hire,Tax payments
Buckinghamshire Council ,31.08.2023,29.08.2023,Communities,Transport - Communities Dir,DVLA VEHICLE TAX,24,0,24,Vehicle Hire,Tax payments
Buckinghamshire Council ,31.08.2023,29.08.2023,Communities,Transport - Communities Dir,DVLA VEHICLE TAX,24,0,24,Vehicle Hire,Tax payments
Buckinghamshire Council ,31.08.2023,29.08.2023,Communities,Transport - Communities Dir,HALFORDS AUTOCENTRES LIMI,-124.99,0,-124.99,Vehicle Hire,Auto servicing
Buckinghamshire Council ,31.08.2023,29.08.2023,Deputy Chief Executive,AH&R- DCE Dir,EVENT* NO5 CHAMBERS,60,0,60,Computer Consumables,Computer software stores
Buckinghamshire Council ,31.08.2023,29.08.2023,Communities,Housing & Homelessness & Regulatory Comm,SHELL HAZLEMERE,29.33,0,29.33,Petrol,Service stations
Buckinghamshire Council ,31.08.2023,29.08.2023,"Planning, Growth & Sustainability",AH&R - PGS Dir,CURRYS HIGH WYCOMBE,68.95,13.79,82.74,Printing & Stationery,Electronics shops
Buckinghamshire Council ,31.08.2023,29.08.2023,"Planning, Growth & Sustainability",AH&R - PGS Dir,CURRYS HIGH WYCOMBE,0.04,0,0.04,Printing & Stationery,Electronics shops
Buckinghamshire Council ,31.08.2023,29.08.2023,Deputy Chief Executive,AH&R- DCE Dir,TESCO STORES 2041,55.81,0,55.81,Other Personal Needs,Grocery stores
Buckinghamshire Council ,31.08.2023,29.08.2023,Communities,Culture & Leisure - Communities Dir,AMAZON* 205-7461164-14,58.3,11.66,69.96,Events Expenditure,Phone equipment & sales
Buckinghamshire Council ,31.08.2023,29.08.2023,Communities,Culture & Leisure - Communities Dir,AMAZON* 205-7461164-14,0.02,0,0.02,Events Expenditure,Phone equipment & sales
Buckinghamshire Council ,31.08.2023,29.08.2023,Children's Services,Education & Childrens Services - CS Dir,AMZ*BOULEVARD ONLINE,-10.01,0,-10.01,"Books, Records, Films & Oth Publications",Miscellaneous retail
Buckinghamshire Council ,31.08.2023,29.08.2023,Children's Services,Education & Childrens Services - CS Dir,ASDA  STORES 4396,2.25,0,2.25,Awaiting Coding,Grocery stores
Buckinghamshire Council ,31.08.2023,29.08.2023,Children's Services,Education & Childrens Services - CS Dir,CARD FACTORY,3.98,0,3.98,Awaiting Coding,"Gift, card & novelty shops"
Buckinghamshire Council ,31.08.2023,29.08.2023,Children's Services,Education & Childrens Services - CS Dir,HOMESENSE,8.99,0,8.99,Awaiting Coding,Variety stores
Buckinghamshire Council ,31.08.2023,29.08.2023,Children's Services,Education & Childrens Services - CS Dir,SAINSBURY S S/MKTS,9.7,0,9.7,Awaiting Coding,Grocery stores
Buckinghamshire Council ,31.08.2023,29.08.2023,Communities,Climate Change & Environment - Community,WWW.INSTANTPRINT.C,350.87,0,350.87,Waste Prevention costs,Photocopy & reproduction services
Buckinghamshire Council ,31.08.2023,29.08.2023,Communities,Climate Change & Environment - Community,HIPPOPRINT,107.94,0,107.94,Waste Prevention costs,Publishing & printing services
Buckinghamshire Council ,31.08.2023,29.08.2023,Children's Services,Education & Childrens Services - CS Dir,BUDGETCARS.UK.COM,30,0,30,Sec 17: Transport,Taxicabs & limousines
Buckinghamshire Council ,31.08.2023,29.08.2023,Children's Services,Education & Childrens Services - CS Dir,AMZNMKTPLACE,768.98,0,768.98,Furniture,Miscellaneous retail
Buckinghamshire Council ,31.08.2023,29.08.2023,Children's Services,Education & Childrens Services - CS Dir,AMZNMKTPLACE,468.98,0,468.98,Furniture,Miscellaneous retail
Buckinghamshire Council ,31.08.2023,29.08.2023,Children's Services,Education & Childrens Services - CS Dir,TESCO STORES 2041,5.84,0,5.84,Activities & General Recreation,Grocery stores
Buckinghamshire Council ,31.08.2023,29.08.2023,Children's Services,Education & Childrens Services - CS Dir,DOMINO S PIZZA,87.65,0,87.65,Activities & General Recreation,Restaurants
Buckinghamshire Council ,31.08.2023,29.08.2023,Resources,AH&R - Res Dir,PAYPAL,8.99,0,8.99,Computer Support Services,Computer network information services
Buckinghamshire Council ,31.08.2023,29.08.2023,Children's Services,Education & Childrens Services - CS Dir,AMZNMKTPLACE,50.48,0,50.48,Support for Foster Carers,Miscellaneous retail
Buckinghamshire Council ,31.08.2023,29.08.2023,"Planning, Growth & Sustainability",AH&R - PGS Dir,B & Q 1305,49.4,0,49.4,Community Premises Expenditure,Home supply warehouse stores
Buckinghamshire Council ,31.08.2023,29.08.2023,Children's Services,Education & Childrens Services - CS Dir,TRAVELODGE GB0000,184.59,0,184.59,"Courses, Conference and Seminar Fees",Travelodge
Buckinghamshire Council ,31.08.2023,29.08.2023,Communities,Communities - Trust Accounts,SAINSBURY'S S/MKT,44,0,44,Purchase of Food for Re-sale,Grocery stores
Buckinghamshire Council ,31.08.2023,29.08.2023,Children's Services,Education & Childrens Services - CS Dir,MARKS&SPENCER PLC,35,0,35,Awaiting Coding,Grocery stores
Buckinghamshire Council ,31.08.2023,29.08.2023,Children's Services,Education & Childrens Services - CS Dir,HTTPS://COURTTHEATRE.CO.,34,0,34,Activities & General Recreation,Theatres and ticket agencies
Buckinghamshire Council ,31.08.2023,29.08.2023,Children's Services,Education & Childrens Services - CS Dir,TICKETS 95739432,82.85,0,82.85,Activities & General Recreation,Theatres and ticket agencies
Buckinghamshire Council ,31.08.2023,29.08.2023,Children's Services,Education & Childrens Services - CS Dir,NW WATFORD,14.95,0,14.95,Activities & General Recreation,Misc. recreational services
Buckinghamshire Council ,31.08.2023,29.08.2023,Adults and Health,Health & Wellbeing - Adults & Health Dir,TESCO STORES 5135,79.11,0,79.11,General Provisions (Food),Grocery stores
Buckinghamshire Council ,31.08.2023,29.08.2023,Adults and Health,Health & Wellbeing - Adults & Health Dir,TRAVELODGE GB0000,"1,210.59",0,"1,210.59",Other Short Term Support,Travelodge
Buckinghamshire Council ,31.08.2023,29.08.2023,"Planning, Growth & Sustainability",Special Expenses,B&Q MARKETPLACE,56.92,0,56.92,Equipment,Timber & building supplies
Buckinghamshire Council ,31.08.2023,29.08.2023,"Planning, Growth & Sustainability",Special Expenses,B&Q LTD,12.5,0,12.5,Equipment,Timber & building supplies
Buckinghamshire Council ,31.08.2023,29.08.2023,Communities,Culture & Leisure - Communities Dir,TVLICENSING.CO.UK,159,0,159,Administrative Equipment & Tools,Consultants & public relation services
Buckinghamshire Council ,31.08.2023,29.08.2023,Deputy Chief Executive,AH&R- DCE Dir,PAYPAL,125.95,0,125.95,Awaiting Coding,Variety stores
Buckinghamshire Council ,31.08.2023,29.08.2023,Children's Services,Education & Childrens Services - CS Dir,Marks and Spencer PLC,34,0,34,Awaiting Coding,Children/infants shops
Buckinghamshire Council ,31.08.2023,28.08.2023,"Planning, Growth & Sustainability",Planning & Regeneration - PGS,AMZNMktplace,12.98,0,12.98,Awaiting Coding,Miscellaneous retail
Buckinghamshire Council ,31.08.2023,28.08.2023,"Planning, Growth & Sustainability",Housing & Homelessness & Regulatory PGS,AMZNMKTPLACE,21.97,0,21.97,Administrative Equipment & Tools,Miscellaneous retail
Buckinghamshire Council ,31.08.2023,28.08.2023,Children's Services,Education & Childrens Services - CS Dir,COSTCO WHOLESALE #117,145.05,0,145.05,General Provisions (Food),Buying & shopping services/clubs
Buckinghamshire Council ,31.08.2023,28.08.2023,Children's Services,Education & Childrens Services - CS Dir,TESCO STORES 2038,128.62,0,128.62,General Provisions (Food),Grocery stores
Buckinghamshire Council ,31.08.2023,28.08.2023,Deputy Chief Executive,Communities - DCE,PAYPAL,-195,0,-195,Other Personal Needs,Variety stores
Buckinghamshire Council ,31.08.2023,28.08.2023,Communities,Culture & Leisure - Communities Dir,AMZNMKTPLACE,5.48,1.1,6.58,Administrative Equipment & Tools,Miscellaneous retail
Buckinghamshire Council ,31.08.2023,28.08.2023,Resources,AH&R - Res Dir,ABRATAX - MTD,10,2,12,Computer Consumables,Computer software stores
Buckinghamshire Council ,31.08.2023,28.08.2023,Resources,AH&R - Res Dir,VOUCHER EXPRESS,120,0,120,Long Service Awards,Misc business services
Buckinghamshire Council ,31.08.2023,28.08.2023,Communities,Culture & Leisure - Communities Dir,SCREWFIX DIR LTD,117.02,23.41,140.43,"Workshop - Materials,Tools & Equipment",Timber & building supplies
Buckinghamshire Council ,31.08.2023,28.08.2023,Resources,AH&R - Res Dir,PAYPAL,7.2,0,7.2,IT - Computer Network Charges,Computer network information services
Buckinghamshire Council ,31.08.2023,28.08.2023,Children's Services,Education & Childrens Services - CS Dir,AMZNMKTPLACE,16.18,0,16.18,Training (Inc. Health & Safety Courses),Miscellaneous retail
Buckinghamshire Council ,31.08.2023,28.08.2023,Resources,AH&R - Res Dir,LINKEDIN ADS 9357507524,102.72,0,102.72,Permanent Recruitment Costs,Advertising services
Buckinghamshire Council ,31.08.2023,28.08.2023,Communities,Climate Change & Environment - Community,AMZNMKTPLACE,24.86,0,24.86,Health & Safety Supplies & Services,Miscellaneous retail
Buckinghamshire Council ,31.08.2023,27.08.2023,Deputy Chief Executive,Communities - DCE,PAYPAL,-63.5,0,-63.5,Other Personal Needs,Variety stores
Buckinghamshire Council ,31.08.2023,27.08.2023,Children's Services,Education & Childrens Services - CS Dir,AMAZON PRIME,8.99,0,8.99,Stationery & Office Supplies,Continuous subscriptions
Buckinghamshire Council ,31.08.2023,27.08.2023,Communities,Culture & Leisure - Communities Dir,WWW.SCREWFIX.COM,83.19,16.65,109.82,Protective Clothing & Uniforms,Timber & building supplies
Buckinghamshire Council ,31.08.2023,27.08.2023,Communities,Culture & Leisure - Communities Dir,SAFETY GLOVES,53.9,10.78,64.68,Protective Clothing & Uniforms,"Laboratory, medical & hospital equipment"
Buckinghamshire Council ,31.08.2023,27.08.2023,Communities,Culture & Leisure - Communities Dir,SAFETY GLOVES,0.02,0,0.02,Protective Clothing & Uniforms,"Laboratory, medical & hospital equipment"
Buckinghamshire Council ,31.08.2023,27.08.2023,Communities,Culture & Leisure - Communities Dir,WWW.SCREWFIX.COM,8.3,1.66,9.96,"Workshop - Materials,Tools & Equipment",Timber & building supplies
Buckinghamshire Council ,31.08.2023,27.08.2023,Communities,Culture & Leisure - Communities Dir,WWW.SCREWFIX.COM,0.02,0,0.02,"Workshop - Materials,Tools & Equipment",Timber & building supplies
Buckinghamshire Council ,31.08.2023,27.08.2023,Communities,Housing & Homelessness & Regulatory Comm,EBAY O*02-10469-69775,8.95,0,8.95,Protective Clothing & Uniforms,Department stores
Buckinghamshire Council ,31.08.2023,26.08.2023,Children's Services,Education & Childrens Services - CS Dir,WWW.THERANGE.CO.UK,-1.29,0,-1.29,Events Expenditure,Misc. home furnishing
Buckinghamshire Council ,31.08.2023,26.08.2023,Children's Services,Education & Childrens Services - CS Dir,THE OXFORDSHIRE TAXI COMP,115,0,115,Staff Travelling Expenses,Taxicabs & limousines
Buckinghamshire Council ,31.08.2023,26.08.2023,Children's Services,Education & Childrens Services - CS Dir,RINGGO PARKING,7,1.4,8.4,Staff Travelling Expenses,Car parking & garages
Buckinghamshire Council ,31.08.2023,26.08.2023,Children's Services,Education & Childrens Services - CS Dir,RINGGO PARKING,0.05,0,0.05,Staff Travelling Expenses,Car parking & garages
Buckinghamshire Council ,31.08.2023,26.08.2023,Deputy Chief Executive,Leader - DCE,WP ENGINE,29.54,0,29.54,Computer Support Services,Computer network information services
Buckinghamshire Council ,31.08.2023,26.08.2023,Children's Services,Education & Childrens Services - CS Dir,CANVA* 03889-19086519,99.99,0,99.99,Health & Safety Supplies & Services,"Commercial photo, art & graphic"
Buckinghamshire Council ,31.08.2023,26.08.2023,"Planning, Growth & Sustainability",Leader - PGS,IONOS CLOUD LTD,16.82,0,16.82,Computer Support Services,Computer network information services
Buckinghamshire Council ,31.08.2023,25.08.2023,Children's Services,Education & Childrens Services - CS Dir,THE OXFORDSHIRE TAXI COMP,115,0,115,Sec 20/31: Supp for Contact,Taxicabs & limousines
Buckinghamshire Council ,31.08.2023,25.08.2023,"Planning, Growth & Sustainability",Housing & Homelessness & Regulatory PGS,TRAVELODGE GB0000,314.11,0,314.11,"Courses, Conference and Seminar Fees",Travelodge
Buckinghamshire Council ,31.08.2023,25.08.2023,Deputy Chief Executive,Communities - DCE,AO RETAIL LIMITED,228.33,45.67,274,Other Personal Needs,Household appliance stores
Buckinghamshire Council ,31.08.2023,25.08.2023,Deputy Chief Executive,Communities - DCE,WWW.ARGOS.CO.UK,153.29,30.66,183.95,Other Personal Needs,Department stores
Buckinghamshire Council ,31.08.2023,25.08.2023,Deputy Chief Executive,Communities - DCE,AO RETAIL LIMITED,-239,0,-239,Other Personal Needs,Household appliance stores
Buckinghamshire Council ,31.08.2023,25.08.2023,Children's Services,Education & Childrens Services - CS Dir,NATIONAL EXPRESS LIMITED,76.3,0,76.3,Sec 20/31: Transport,"Buses, charter & tour"
Buckinghamshire Council ,31.08.2023,25.08.2023,Deputy Chief Executive,Communities - DCE,PAYPAL,224.1,44.82,268.92,Other Personal Needs,Variety stores
Buckinghamshire Council ,31.08.2023,25.08.2023,Deputy Chief Executive,Communities - DCE,PAYPAL,0.03,0,0.03,Other Personal Needs,Variety stores
Buckinghamshire Council ,31.08.2023,25.08.2023,Deputy Chief Executive,Communities - DCE,PAYPAL,46,0,46,Other Personal Needs,Variety stores
Buckinghamshire Council ,31.08.2023,25.08.2023,Deputy Chief Executive,Communities - DCE,AO RETAIL LIMITED,207.5,41.5,249,Other Personal Needs,Household appliance stores
Buckinghamshire Council ,31.08.2023,25.08.2023,Deputy Chief Executive,Communities - DCE,AO RETAIL LIMITED,702.49,140.51,843,Other Personal Needs,Household appliance stores
Buckinghamshire Council ,31.08.2023,25.08.2023,Deputy Chief Executive,Communities - DCE,PAYPAL,-8.95,0,-8.95,Other Personal Needs,Variety stores
Buckinghamshire Council ,31.08.2023,25.08.2023,Communities,Culture & Leisure - Communities Dir,AMZNMKTPLACE,23.3,0,23.3,Administrative Equipment & Tools,Miscellaneous retail
Buckinghamshire Council ,31.08.2023,25.08.2023,Communities,Culture & Leisure - Communities Dir,JEEVES PHARMACY,7.49,1.5,8.99,Health & Safety Supplies & Services,Chemists & pharmacies
Buckinghamshire Council ,31.08.2023,25.08.2023,Adults and Health,Health & Wellbeing - Adults & Health Dir,ARTS AT THE OLD FIRE STAT,253,0,253,Awaiting Coding,Theatres and ticket agencies
Buckinghamshire Council ,31.08.2023,25.08.2023,Resources,AH&R - Res Dir,RINGGO PARKING,0.6,0,0.6,Staff Travelling Expenses,Car parking & garages
Buckinghamshire Council ,31.08.2023,25.08.2023,"Planning, Growth & Sustainability",AH&R - PGS Dir,AMZNMKTPLACE,148.18,0,148.18,Purchase.of Refreshments and Food,Miscellaneous retail
Buckinghamshire Council ,31.08.2023,25.08.2023,"Planning, Growth & Sustainability",AH&R - PGS Dir,AMZNMKTPLACE,19.99,0,19.99,Administrative Equipment & Tools,Miscellaneous retail
Buckinghamshire Council ,31.08.2023,25.08.2023,"Planning, Growth & Sustainability",AH&R - PGS Dir,B & Q 1305,38.82,0,38.82,General Repairs & Maintenance,Home supply warehouse stores
Buckinghamshire Council ,31.08.2023,25.08.2023,"Planning, Growth & Sustainability",AH&R - PGS Dir,GRANT AND STONE,22.79,0,22.79,General Repairs & Maintenance,Hardware stores
Buckinghamshire Council ,31.08.2023,25.08.2023,Children's Services,Education & Childrens Services - CS Dir,WWW.ARGOS.CO.UK,20,0,20,Miscellaneous (Other)  Expenses,Department stores
Buckinghamshire Council ,31.08.2023,25.08.2023,"Planning, Growth & Sustainability",AH&R - PGS Dir,EDMUNDSON ELECTRICAL,56.64,0,56.64,General Repairs & Maintenance,Electrical parts & equipment
Buckinghamshire Council ,31.08.2023,25.08.2023,Deputy Chief Executive,AH&R- DCE Dir,AMAZON* 204-0574253-56,27.99,0,27.99,Other Personal Needs,Phone equipment & sales
Buckinghamshire Council ,31.08.2023,25.08.2023,Deputy Chief Executive,AH&R- DCE Dir,AMAZON* 204-8762684-21,30.99,0,30.99,Other Personal Needs,Phone equipment & sales
Buckinghamshire Council ,31.08.2023,25.08.2023,Deputy Chief Executive,AH&R- DCE Dir,TESCO STORES 2041,55.72,0,55.72,Other Personal Needs,Grocery stores
Buckinghamshire Council ,31.08.2023,25.08.2023,Deputy Chief Executive,AH&R- DCE Dir,TESCO STORES 2041,55.72,0,55.72,Other Personal Needs,Grocery stores
Buckinghamshire Council ,31.08.2023,25.08.2023,Children's Services,Education & Childrens Services - CS Dir,TRAINLINE,70.8,0,70.8,Sec 20/31: Supp for Contact,Passenger railways
Buckinghamshire Council ,31.08.2023,25.08.2023,Children's Services,Education & Childrens Services - CS Dir,AMZNMktplace,28.03,0,28.03,Awaiting Coding,Miscellaneous retail
Buckinghamshire Council ,31.08.2023,25.08.2023,Children's Services,Education & Childrens Services - CS Dir,ASDA GROCERIES ONLINE,53.42,0,53.42,Awaiting Coding,Grocery stores
Buckinghamshire Council ,31.08.2023,25.08.2023,Children's Services,Education & Childrens Services - CS Dir,ASDA GROCERIES ONLINE,-0.4,0,-0.4,Awaiting Coding,Grocery stores
Buckinghamshire Council ,31.08.2023,25.08.2023,Adults and Health,Health & Wellbeing - Adults & Health Dir,TRAVELODGE GB0000,903.93,0,903.93,Other Short Term Support,Travelodge
Buckinghamshire Council ,31.08.2023,25.08.2023,Children's Services,Education & Childrens Services - CS Dir,HOBBYCRAFT,30.1,0,30.1,Activities & General Recreation,Art & craft shops
Buckinghamshire Council ,31.08.2023,25.08.2023,Children's Services,Education & Childrens Services - CS Dir,TESCO STORES 2041,18.45,0,18.45,Activities & General Recreation,Grocery stores
Buckinghamshire Council ,31.08.2023,25.08.2023,Deputy Chief Executive,AH&R- DCE Dir,AMZNMktplace,52.63,0,52.63,Awaiting Coding,Miscellaneous retail
Buckinghamshire Council ,31.08.2023,25.08.2023,Communities,Transport - Communities Dir,AMAZON* 204-0084217-15,68.88,0,68.88,Telephones,Phone equipment & sales
Buckinghamshire Council ,31.08.2023,25.08.2023,Deputy Chief Executive,Leader - DCE,FACEBK UDX2WSBQN2,840,0,840,Advertising,Advertising services
Buckinghamshire Council ,31.08.2023,25.08.2023,Children's Services,Education & Childrens Services - CS Dir,AMZNMKTPLACE,23.2,0,23.2,Leaving Care - Grants for Care Leavers,Miscellaneous retail
Buckinghamshire Council ,31.08.2023,25.08.2023,Children's Services,Education & Childrens Services - CS Dir,AMZNMKTPLACE,102.99,0,102.99,Leaving Care - Grants for Care Leavers,Miscellaneous retail
Buckinghamshire Council ,31.08.2023,25.08.2023,Children's Services,Education & Childrens Services - CS Dir,AMZNMKTPLACE,19.54,0,19.54,Leaving Care - Grants for Care Leavers,Miscellaneous retail
Buckinghamshire Council ,31.08.2023,25.08.2023,Children's Services,Education & Childrens Services - CS Dir,AMZNMKTPLACE,90.42,0,90.42,Leaving Care - Grants for Care Leavers,Miscellaneous retail
Buckinghamshire Council ,31.08.2023,25.08.2023,Children's Services,Education & Childrens Services - CS Dir,AMZNMKTPLACE,99.99,0,99.99,Leaving Care - Grants for Care Leavers,Miscellaneous retail
Buckinghamshire Council ,31.08.2023,25.08.2023,Children's Services,Education & Childrens Services - CS Dir,AMZNMKTPLACE,169.95,0,169.95,Leaving Care - Grants for Care Leavers,Miscellaneous retail
Buckinghamshire Council ,31.08.2023,25.08.2023,Resources,AH&R - Res Dir,AMZNMKTPLACE,33.24,0,33.24,Leaving Care - Grants for Care Leavers,Miscellaneous retail
Buckinghamshire Council ,31.08.2023,25.08.2023,Communities,Communities - Trust Accounts,BOOKER LTD - 38531354,254.35,0,254.35,Purchase of Food for Re-sale,Grocery stores
Buckinghamshire Council ,31.08.2023,25.08.2023,Resources,AH&R - Res Dir,LINKEDIN ADS 9350081344,92.34,0,92.34,Permanent Recruitment Costs,Advertising services
Buckinghamshire Council ,31.08.2023,25.08.2023,Deputy Chief Executive,AH&R- DCE Dir,PLAZA CARS,55,0,55,Staff Travelling Expenses,Taxicabs & limousines
Buckinghamshire Council ,31.08.2023,25.08.2023,Deputy Chief Executive,AH&R- DCE Dir,PLAZA CARS,110,0,110,Staff Travelling Expenses,Taxicabs & limousines
Buckinghamshire Council ,31.08.2023,25.08.2023,Resources,AH&R - Res Dir,AMZNMKTPLACE,9.99,0,9.99,Computer Consumables,Miscellaneous retail
Buckinghamshire Council ,31.08.2023,25.08.2023,Children's Services,Education & Childrens Services - CS Dir,EVERYONE ACTIVE-DOM,5,0,5,Activities & General Recreation,Sport & recreational camps
Buckinghamshire Council ,31.08.2023,25.08.2023,Children's Services,Education & Childrens Services - CS Dir,EA DIGITICKETS CORAL REEF,29.75,0,29.75,Activities & General Recreation,Tourist attractions and exhibitions
Buckinghamshire Council ,31.08.2023,25.08.2023,Communities,Transport - Communities Dir,CHARGEMASTER LIMITED,7.74,0,7.74,Awaiting Coding,
Buckinghamshire Council ,31.08.2023,25.08.2023,"Planning, Growth & Sustainability",Housing & Homelessness & Regulatory PGS,AMZNMKTPLACE,26.56,0,26.56,Administrative Equipment & Tools,Miscellaneous retail
Buckinghamshire Council ,31.08.2023,24.08.2023,Communities,Culture & Leisure - Communities Dir,SAINSBURYS S/MKTS,24.35,0,24.35,Events Expenditure,Grocery stores
Buckinghamshire Council ,31.08.2023,24.08.2023,Children's Services,Education & Childrens Services - CS Dir,WWW.ARGOS.CO.UK,122.95,0,122.95,Sec 17: Financial Assistance One Off,Department stores
Buckinghamshire Council ,31.08.2023,24.08.2023,Children's Services,Education & Childrens Services - CS Dir,WWW.ARGOS.CO.UK,292.95,0,292.95,Sec 20/31: Specialist Services,Department stores
Buckinghamshire Council ,31.08.2023,24.08.2023,"Planning, Growth & Sustainability",Housing & Homelessness & Regulatory PGS,TRAVELODGE GB0000,83.62,0,83.62,"Courses, Conference and Seminar Fees",Travelodge
Buckinghamshire Council ,31.08.2023,24.08.2023,Children's Services,Education & Childrens Services - CS Dir,ODEON AYLESBURY,4.05,0,4.05,Awaiting Coding,Cinemas
Buckinghamshire Council ,31.08.2023,24.08.2023,Deputy Chief Executive,Communities - DCE,WWW.ARGOS.CO.UK,280.95,0,280.95,Other Personal Needs,Department stores
Buckinghamshire Council ,31.08.2023,24.08.2023,Deputy Chief Executive,Communities - DCE,WWW.ARGOS.CO.UK,228.95,0,228.95,Other Personal Needs,Department stores
Buckinghamshire Council ,31.08.2023,24.08.2023,Deputy Chief Executive,Communities - DCE,WWW.ARGOS.CO.UK,222.95,0,222.95,Other Personal Needs,Department stores
Buckinghamshire Council ,31.08.2023,24.08.2023,Deputy Chief Executive,Communities - DCE,AO RETAIL LIMITED,589.99,118.01,708,Other Personal Needs,Household appliance stores
Buckinghamshire Council ,31.08.2023,24.08.2023,Deputy Chief Executive,Communities - DCE,AO RETAIL LIMITED,315.83,63.17,379,Other Personal Needs,Household appliance stores
Buckinghamshire Council ,31.08.2023,24.08.2023,Deputy Chief Executive,Communities - DCE,AO RETAIL LIMITED,248.33,49.67,298,Other Personal Needs,Household appliance stores
Buckinghamshire Council ,31.08.2023,24.08.2023,Deputy Chief Executive,Communities - DCE,AO RETAIL LIMITED,124.16,24.84,149,Other Personal Needs,Household appliance stores
Buckinghamshire Council ,31.08.2023,24.08.2023,Deputy Chief Executive,Communities - DCE,AO RETAIL LIMITED,228.33,45.67,274,Other Personal Needs,Household appliance stores
Buckinghamshire Council ,31.08.2023,24.08.2023,Children's Services,Education & Childrens Services - CS Dir,BURGER KING,76,0,76,Activities & General Recreation,Restaurants
Buckinghamshire Council ,31.08.2023,24.08.2023,Communities,Culture & Leisure - Communities Dir,AMZNMKTPLACE,28.5,5.7,34.2,"Workshop - Materials,Tools & Equipment",Miscellaneous retail
Buckinghamshire Council ,31.08.2023,24.08.2023,Deputy Chief Executive,Communities - DCE,WWW.ARGOS.CO.UK,117.45,23.49,140.94,Other Personal Needs,Department stores
Buckinghamshire Council ,31.08.2023,24.08.2023,Deputy Chief Executive,Communities - DCE,WWW.ARGOS.CO.UK,0.01,0,0.01,Other Personal Needs,Department stores
Buckinghamshire Council ,31.08.2023,24.08.2023,Deputy Chief Executive,Communities - DCE,AO RETAIL LIMITED,623.33,124.67,748,Other Personal Needs,Household appliance stores
Buckinghamshire Council ,31.08.2023,24.08.2023,Deputy Chief Executive,Communities - DCE,AO RETAIL LIMITED,336.65,67.33,403.98,Other Personal Needs,Household appliance stores
Buckinghamshire Council ,31.08.2023,24.08.2023,Deputy Chief Executive,Communities - DCE,AO RETAIL LIMITED,0.02,0,0.02,Other Personal Needs,Household appliance stores
Buckinghamshire Council ,31.08.2023,24.08.2023,Deputy Chief Executive,Communities - DCE,AO RETAIL LIMITED,207.5,41.5,249,Other Personal Needs,Household appliance stores
Buckinghamshire Council ,31.08.2023,24.08.2023,Deputy Chief Executive,Communities - DCE,AO RETAIL LIMITED,290.83,58.17,349,Other Personal Needs,Household appliance stores
Buckinghamshire Council ,31.08.2023,24.08.2023,Deputy Chief Executive,Communities - DCE,AO RETAIL LIMITED,726.66,145.34,872,Other Personal Needs,Household appliance stores
Buckinghamshire Council ,31.08.2023,24.08.2023,Deputy Chief Executive,AH&R- DCE Dir,WH SMITH AYLESBURY,13.2,0,13.2,Stationery & Office Supplies,Newspapers / newsagents
Buckinghamshire Council ,31.08.2023,24.08.2023,Communities,Culture & Leisure - Communities Dir,AMAZON* 204-9888353-86,11.65,2.33,13.98,Telephones,Phone equipment & sales
Buckinghamshire Council ,31.08.2023,24.08.2023,Communities,Culture & Leisure - Communities Dir,AMAZON* 204-9888353-86,0.01,0,0.01,Telephones,Phone equipment & sales
Buckinghamshire Council ,31.08.2023,24.08.2023,Communities,Culture & Leisure - Communities Dir,AMZNMKTPLACE,5.52,1.11,6.63,Telephones,Miscellaneous retail
Buckinghamshire Council ,31.08.2023,24.08.2023,Deputy Chief Executive,AH&R- DCE Dir,VOUCHER EXPRESS,100,0,100,Volunteer Expenses and Costs,Misc business services
Buckinghamshire Council ,31.08.2023,24.08.2023,Adults and Health,Health & Wellbeing - Adults & Health Dir,WM MORRISONS STORE,11.13,0,11.13,General Provisions (Food),Grocery stores
Buckinghamshire Council ,31.08.2023,24.08.2023,Children's Services,Education & Childrens Services - CS Dir,BT BUSINESS BILL,66.74,0,66.74,Telephones,Phone services
Buckinghamshire Council ,31.08.2023,24.08.2023,"Planning, Growth & Sustainability",AH&R - PGS Dir,SCREWFIX DIR LTD,21.88,0,21.88,General Repairs & Maintenance,Timber & building supplies
Buckinghamshire Council ,31.08.2023,24.08.2023,Deputy Chief Executive,AH&R- DCE Dir,AMZNMKTPLACE,43.72,0,43.72,Other Personal Needs,Miscellaneous retail
Buckinghamshire Council ,31.08.2023,24.08.2023,Children's Services,Education & Childrens Services - CS Dir,TRAVELODGE GB0000,103,0,103,Sec 20/31: Supp for Contact,Travelodge
Buckinghamshire Council ,31.08.2023,24.08.2023,Children's Services,Education & Childrens Services - CS Dir,TRAINLINE,172.93,0,172.93,Sec 20/31: Supp for Contact,Passenger railways
Buckinghamshire Council ,31.08.2023,24.08.2023,Children's Services,Education & Childrens Services - CS Dir,JUST EAT,27.96,0,27.96,Subsistence,Fast food restaurants
Buckinghamshire Council ,31.08.2023,24.08.2023,Deputy Chief Executive,Communities - DCE,TESCO STORES 2038,24.5,0,24.5,Administrative Equipment & Tools,Grocery stores
Buckinghamshire Council ,31.08.2023,24.08.2023,"Planning, Growth & Sustainability",AH&R - PGS Dir,ASDA SUPERSTORE,14.5,0,14.5,General Provisions (Food),Grocery stores
Buckinghamshire Council ,31.08.2023,24.08.2023,Children's Services,Education & Childrens Services - CS Dir,ACCESS HEMEL HEMPSTEAD,86,0,86,Sec 20/31: Transport,Warehousing
Buckinghamshire Council ,31.08.2023,24.08.2023,Children's Services,Education & Childrens Services - CS Dir,EB *CHILDREN MOVING OV,48,0,48,"Courses, Conference and Seminar Fees",Misc business services
Buckinghamshire Council ,31.08.2023,24.08.2023,Children's Services,Education & Childrens Services - CS Dir,EB *CHILDREN MOVING OV,48,0,48,"Courses, Conference and Seminar Fees",Misc business services
Buckinghamshire Council ,31.08.2023,24.08.2023,Children's Services,Education & Childrens Services - CS Dir,AMZNMKTPLACE,425.3,0,425.3,Activities & General Recreation,Miscellaneous retail
Buckinghamshire Council ,31.08.2023,24.08.2023,Children's Services,Education & Childrens Services - CS Dir,AMZNMKTPLACE,355,0,355,Leaving Care - Grants for Care Leavers,Miscellaneous retail
Buckinghamshire Council ,31.08.2023,24.08.2023,Children's Services,Education & Childrens Services - CS Dir,FINEST REMOVALS LTD,212.6,0,212.6,Leaving Care  - Financial Assistance,Transportation services
Buckinghamshire Council ,31.08.2023,24.08.2023,Children's Services,Education & Childrens Services - CS Dir,WWW.ARGOS.CO.UK,20,0,20,Leaving Care - Grants for Care Leavers,Department stores
Buckinghamshire Council ,31.08.2023,24.08.2023,Children's Services,Education & Childrens Services - CS Dir,OXFORD BROOKES UNI,200,0,200,Leaving Care - Higher Education Supp,Colleges & universities
Buckinghamshire Council ,31.08.2023,24.08.2023,Children's Services,Education & Childrens Services - CS Dir,AMZNMKTPLACE,112.45,0,112.45,Leaving Care - Grants for Care Leavers,Miscellaneous retail
Buckinghamshire Council ,31.08.2023,24.08.2023,Children's Services,Education & Childrens Services - CS Dir,AMZNMKTPLACE,23.73,0,23.73,Leaving Care - Grants for Care Leavers,Miscellaneous retail
Buckinghamshire Council ,31.08.2023,24.08.2023,Children's Services,Education & Childrens Services - CS Dir,AMZNMKTPLACE,157.5,0,157.5,Leaving Care - Grants for Care Leavers,Miscellaneous retail
Buckinghamshire Council ,31.08.2023,24.08.2023,Resources,AH&R - Res Dir,SumUp  *Cabs4u,180,0,180,Staff Travelling Expenses,Taxicabs & limousines
Buckinghamshire Council ,31.08.2023,24.08.2023,Children's Services,Education & Childrens Services - CS Dir,BUCKSCOUNTYSHOW.CO.UK,40,0,40,Equipment (including storage),Agricultural Co-operatives
Buckinghamshire Council ,31.08.2023,24.08.2023,"Planning, Growth & Sustainability",Planning & Regeneration - PGS,ARRIVA THE SHIRES LIMITED,1.9,0,1.9,Staff Travelling Expenses,"Buses, charter & tour"
Buckinghamshire Council ,31.08.2023,24.08.2023,Children's Services,Education & Childrens Services - CS Dir,HD SUNFLOWER LTD,4.96,0,4.96,Furniture,Miscellaneous retail
Buckinghamshire Council ,31.08.2023,24.08.2023,Children's Services,Education & Childrens Services - CS Dir,DISCLOSURE & BARRING,13,0,13,Health & Safety Supplies & Services,Government services
Buckinghamshire Council ,31.08.2023,24.08.2023,Children's Services,Education & Childrens Services - CS Dir,WWW.EVERYONEACTIVE.COM,5,0,5,Activities & General Recreation,Sport & recreational camps
Buckinghamshire Council ,31.08.2023,24.08.2023,Children's Services,Education & Childrens Services - CS Dir,AMZNMKTPLACE,67.98,0,67.98,Furniture,Miscellaneous retail
Buckinghamshire Council ,31.08.2023,24.08.2023,Communities,Culture & Leisure - Communities Dir,AMZNMKTPLACE,8.9,1.78,10.68,"Workshop - Materials,Tools & Equipment",Miscellaneous retail
Buckinghamshire Council ,31.08.2023,24.08.2023,Communities,Culture & Leisure - Communities Dir,AMZNMKTPLACE,0.01,0,0.01,"Workshop - Materials,Tools & Equipment",Miscellaneous retail
Buckinghamshire Council ,31.08.2023,24.08.2023,Children's Services,Education & Childrens Services - CS Dir,PAYPAL,90,0,90,Sec 20/31: Transport,Transportation services
Buckinghamshire Council ,31.08.2023,24.08.2023,Deputy Chief Executive,AH&R- DCE Dir,PAYPAL,334,0,334,Awaiting Coding,Electronics shops
Buckinghamshire Council ,31.08.2023,24.08.2023,Deputy Chief Executive,Communities - DCE,PAYPAL,63.5,0,63.5,Other Personal Needs,Variety stores
Buckinghamshire Council ,31.08.2023,24.08.2023,Deputy Chief Executive,Communities - DCE,PAYPAL,288.95,0,288.95,Other Personal Needs,Variety stores
Buckinghamshire Council ,31.08.2023,24.08.2023,Deputy Chief Executive,Communities - DCE,PAYPAL,248.29,49.66,297.95,Other Personal Needs,Variety stores
Buckinghamshire Council ,31.08.2023,24.08.2023,Deputy Chief Executive,Communities - DCE,PAYPAL,56.66,11.34,68,Other Personal Needs,Variety stores
Buckinghamshire Council ,31.08.2023,24.08.2023,Deputy Chief Executive,AH&R- DCE Dir,AMAZON* 204-2022762-92,76.99,0,76.99,Other Personal Needs,Phone equipment & sales
Buckinghamshire Council ,31.08.2023,24.08.2023,Children's Services,Education & Childrens Services - CS Dir,CANVA* 03887-37309106,99.99,0,99.99,Equipment (including storage),"Commercial photo, art & graphic"
Buckinghamshire Council ,31.08.2023,23.08.2023,Children's Services,Education & Childrens Services - CS Dir,AMAZON* 204-4879429-28,19.95,0,19.95,Activities & General Recreation,Phone equipment & sales
Buckinghamshire Council ,31.08.2023,23.08.2023,Resources,AH&R - Res Dir,C2E791000305G UKVI,"-1,000.00",0,"-1,000.00",Professional Services (non curriculum) - External,Government services
Buckinghamshire Council ,31.08.2023,23.08.2023,Children's Services,Education & Childrens Services - CS Dir,AMZNMKTPLACE,59.97,0,59.97,Printing & Stationery,Miscellaneous retail
Buckinghamshire Council ,31.08.2023,23.08.2023,Children's Services,Education & Childrens Services - CS Dir,AMZNMKTPLACE,49.14,0,49.14,Furniture,Miscellaneous retail
Buckinghamshire Council ,31.08.2023,23.08.2023,Children's Services,Education & Childrens Services - CS Dir,AMZNMKTPLACE,45.14,0,45.14,Furniture,Miscellaneous retail
Buckinghamshire Council ,31.08.2023,23.08.2023,Deputy Chief Executive,Communities - DCE,AO RETAIL LIMITED,340.33,68.07,408.4,Other Personal Needs,Household appliance stores
Buckinghamshire Council ,31.08.2023,23.08.2023,Deputy Chief Executive,Communities - DCE,AO RETAIL LIMITED,718.33,143.67,862,Other Personal Needs,Household appliance stores
Buckinghamshire Council ,31.08.2023,23.08.2023,Children's Services,Education & Childrens Services - CS Dir,AMZNMktplace,8.19,0,8.19,Awaiting Coding,Miscellaneous retail
Buckinghamshire Council ,31.08.2023,23.08.2023,"Planning, Growth & Sustainability",Housing & Homelessness & Regulatory PGS,LAND REGISTRY ECOM CCC,3,0,3,Homelessness,Government services
Buckinghamshire Council ,31.08.2023,23.08.2023,Adults and Health,Health & Wellbeing - Adults & Health Dir,WWW.MARKALLENGROUP.COM,36,0,36,"Courses, Conference and Seminar Fees",Schools
Buckinghamshire Council ,31.08.2023,23.08.2023,Resources,AH&R - Res Dir,ROYAL MAIL GROUP LTD,14.45,0,14.45,General Postage,Postal services
Buckinghamshire Council ,31.08.2023,23.08.2023,Children's Services,Education & Childrens Services - CS Dir,THE AYLESBURY YOUTH MOTOR,540,0,540,YOS - Direct Work,Charitable organisations
Buckinghamshire Council ,31.08.2023,23.08.2023,Children's Services,Education & Childrens Services - CS Dir,AMZNMKTPLACE,56.91,0,56.91,Activities & General Recreation,Miscellaneous retail
Buckinghamshire Council ,31.08.2023,23.08.2023,Children's Services,Education & Childrens Services - CS Dir,SCOTTISH POWER,153.55,0,153.55,Accomodation Costs,Fuel dealers
Buckinghamshire Council ,31.08.2023,23.08.2023,,,SCREWFIX DIR LTD,4.39,0,4.39,General Repairs & Maintenance,Timber & building supplies
Buckinghamshire Council ,31.08.2023,23.08.2023,,,WWW.SCREWFIX.COM,9.79,0,9.79,General Repairs & Maintenance,Timber & building supplies
Buckinghamshire Council ,31.08.2023,23.08.2023,"Planning, Growth & Sustainability",AH&R - PGS Dir,AMAZON* 204-7113485-64,29.99,0,29.99,Administrative Equipment & Tools,Phone equipment & sales
Buckinghamshire Council ,31.08.2023,23.08.2023,Children's Services,Education & Childrens Services - CS Dir,AELP.ORG.UK,99,19.8,118.8,Training (Inc. Health & Safety Courses),Schools
Buckinghamshire Council ,31.08.2023,23.08.2023,Children's Services,Education & Childrens Services - CS Dir,AELP.ORG.UK,99,19.8,118.8,Training (Inc. Health & Safety Courses),Schools
Buckinghamshire Council ,31.08.2023,23.08.2023,Communities,Special Expenses,BENTLEYS DIGITAL,27.5,0,27.5,Laundry,"Laundry, cleaning & garment services"
Buckinghamshire Council ,31.08.2023,23.08.2023,"Planning, Growth & Sustainability",AH&R - PGS Dir,SCREWFIX DIR LTD,20.98,0,20.98,General Repairs & Maintenance,Timber & building supplies
Buckinghamshire Council ,31.08.2023,23.08.2023,Deputy Chief Executive,AH&R- DCE Dir,WWW.ARGOS.CO.UK,547,0,547,Other Personal Needs,Department stores
Buckinghamshire Council ,31.08.2023,23.08.2023,Deputy Chief Executive,AH&R- DCE Dir,WWW.ARGOS.CO.UK,5,0,5,Other Personal Needs,Department stores
Buckinghamshire Council ,31.08.2023,23.08.2023,Deputy Chief Executive,AH&R- DCE Dir,AMAZON* 204-5016608-55,10.45,0,10.45,Other Personal Needs,Phone equipment & sales
Buckinghamshire Council ,31.08.2023,23.08.2023,Deputy Chief Executive,AH&R- DCE Dir,AMAZON* 204-6402245-03,2.75,0,2.75,Other Personal Needs,Phone equipment & sales
Buckinghamshire Council ,31.08.2023,23.08.2023,Deputy Chief Executive,AH&R- DCE Dir,AMAZON* 204-3685056-16,2.75,0,2.75,Other Personal Needs,Phone equipment & sales
Buckinghamshire Council ,31.08.2023,23.08.2023,Deputy Chief Executive,AH&R- DCE Dir,AMAZON* 204-3850739-62,2.75,0,2.75,Other Personal Needs,Phone equipment & sales
Buckinghamshire Council ,31.08.2023,23.08.2023,Deputy Chief Executive,AH&R- DCE Dir,AMAZON* 204-6792518-42,2.75,0,2.75,Other Personal Needs,Phone equipment & sales
Buckinghamshire Council ,31.08.2023,23.08.2023,Deputy Chief Executive,AH&R- DCE Dir,AMZNMKTPLACE,178.99,0,178.99,Other Personal Needs,Miscellaneous retail
Buckinghamshire Council ,31.08.2023,23.08.2023,Deputy Chief Executive,AH&R- DCE Dir,WWW.ARGOS.CO.UK,-50,0,-50,Other Personal Needs,Department stores
Buckinghamshire Council ,31.08.2023,23.08.2023,Communities,Culture & Leisure - Communities Dir,FILCRIS LTD,222.26,0,222.26,Seeds & Plants,Lawn & garden supply/nursery
Buckinghamshire Council ,31.08.2023,23.08.2023,Communities,Transport - Communities Dir,AMZNMKTPLACE,88.87,0,88.87,Area Teams and Materials,Miscellaneous retail
Buckinghamshire Council ,31.08.2023,23.08.2023,Children's Services,Education & Childrens Services - CS Dir,ASDA SUPERSTORE,15.2,0,15.2,General Provisions (Food),Grocery stores
Buckinghamshire Council ,31.08.2023,23.08.2023,Children's Services,Education & Childrens Services - CS Dir,AMZNMKTPLACE,3.95,0,3.95,Equipment for Training and Mats for Ins.,Miscellaneous retail
Buckinghamshire Council ,31.08.2023,23.08.2023,Deputy Chief Executive,Leader - DCE,TELEGRAPH SUBSCRIPTION,14.99,0,14.99,Stationery & Office Supplies,Continuous subscriptions
Buckinghamshire Council ,31.08.2023,23.08.2023,Deputy Chief Executive,Leader - DCE,TIMES NEWSPAPERS LTD,26,0,26,"Books, Records, Films & Oth Publications","Books, periodicals & newspapers"
Buckinghamshire Council ,31.08.2023,23.08.2023,Children's Services,Education & Childrens Services - CS Dir,WWW.MDX.AC.UK,300,0,300,Leaving Care - Higher Education Supp,Colleges & universities
Buckinghamshire Council ,31.08.2023,23.08.2023,Resources,AH&R - Res Dir,AMZNMktplace,550,0,550,Awaiting Coding,Miscellaneous retail
Buckinghamshire Council ,31.08.2023,23.08.2023,"Planning, Growth & Sustainability",Planning & Regeneration - PGS,AMZNMKTPLACE,111.2,0,111.2,Other Employees Expenses,Miscellaneous retail
Buckinghamshire Council ,31.08.2023,23.08.2023,Resources,AH&R - Res Dir,LINKEDIN ADS 9342940734,124.64,0,124.64,Permanent Recruitment Costs,Advertising services
Buckinghamshire Council ,31.08.2023,23.08.2023,Deputy Chief Executive,Leader - DCE,BRIGHTON SST,22.5,0,22.5,Staff Travelling Expenses,Passenger railways
Buckinghamshire Council ,31.08.2023,23.08.2023,Adults and Health,Health & Wellbeing - Adults & Health Dir,SAINSBURYS SUPERMA,10,0,10,Activities & General Recreation,Grocery stores
Buckinghamshire Council ,31.08.2023,23.08.2023,Resources,AH&R - Res Dir,TEAMGANTT,48.16,0,48.16,Computer Consumables,"Computers, peripherals & software"
Buckinghamshire Council ,31.08.2023,23.08.2023,Children's Services,Education & Childrens Services - CS Dir,AMZNMKTPLACE,29.2,0,29.2,Protective Clothing & Uniforms,Miscellaneous retail
Buckinghamshire Council ,31.08.2023,23.08.2023,"Planning, Growth & Sustainability",Housing & Homelessness & Regulatory PGS,MOL*FLAIR FURNITURE LTD,504.96,0,504.96,Furniture,Furniture & home furnishing
Buckinghamshire Council ,31.08.2023,23.08.2023,"Planning, Growth & Sustainability",Housing & Homelessness & Regulatory PGS,MOL*FLAIR FURNITURE LTD,504.96,0,504.96,Furniture,Furniture & home furnishing
Buckinghamshire Council ,31.08.2023,23.08.2023,"Planning, Growth & Sustainability",Housing & Homelessness & Regulatory PGS,MOL*FLAIR FURNITURE LTD,504.96,0,504.96,Furniture,Furniture & home furnishing
Buckinghamshire Council ,31.08.2023,23.08.2023,Deputy Chief Executive,Communities - DCE,AMZ*ASK PACKAGING LTD,-14.86,0,-14.86,Administrative Equipment & Tools,Miscellaneous retail
Buckinghamshire Council ,31.08.2023,23.08.2023,Resources,AH&R - Res Dir,AYLESBURY STATION T/O,20.2,0,20.2,Staff Travelling Expenses,Passenger railways
Buckinghamshire Council ,31.08.2023,23.08.2023,Communities,Climate Change & Environment - Community,WWW.HYVA.CO.UK,234,0,234,Awaiting Coding,Misc Industrial supplies
Buckinghamshire Council ,31.08.2023,23.08.2023,Communities,Transport - Communities Dir,SHELL 40-42 WOODSIDE ROAD,4.09,0,4.09,Petrol,Service stations
Buckinghamshire Council ,31.08.2023,23.08.2023,Children's Services,Education & Childrens Services - CS Dir,TESCO GIFT CARD,50,0,50,Sec 17: Financial Assistance One Off,Grocery stores
Buckinghamshire Council ,31.08.2023,22.08.2023,Communities,Culture & Leisure - Communities Dir,DISPUTE REFUND REVERSAL,0.81,0,0.81,Administrative Equipment & Tools,Jewellers
Buckinghamshire Council ,31.08.2023,22.08.2023,Communities,Culture & Leisure - Communities Dir,DISPUTE REFUND REVERSAL,0.81,0,0.81,Administrative Equipment & Tools,Schools
Buckinghamshire Council ,31.08.2023,22.08.2023,Communities,Culture & Leisure - Communities Dir,DISPUTE REFUND REVERSAL,0.81,0,0.81,Administrative Equipment & Tools,Continuous subscriptions
Buckinghamshire Council ,31.08.2023,22.08.2023,Communities,Culture & Leisure - Communities Dir,DISPUTE REFUND REVERSAL,1.05,0,1.05,Administrative Equipment & Tools,Household appliance stores
Buckinghamshire Council ,31.08.2023,22.08.2023,Children's Services,Education & Childrens Services - CS Dir,AMZNMKTPLACE,89.13,0,89.13,Printing & Stationery,Miscellaneous retail
Buckinghamshire Council ,31.08.2023,22.08.2023,"Planning, Growth & Sustainability",Housing & Homelessness & Regulatory PGS,AMZNMKTPLACE,16.99,0,16.99,Furniture,Miscellaneous retail
Buckinghamshire Council ,31.08.2023,22.08.2023,Children's Services,Education & Childrens Services - CS Dir,BUCKINGHAM HOTELS,"1,575.00",315,"1,890.00",Sec 17: Accommodation,"Hotels, motels & resorts"
Buckinghamshire Council ,31.08.2023,22.08.2023,Adults and Health,Health & Wellbeing - Adults & Health Dir,SAINSBURY'S S/MKT,250,0,250,Long Service Awards,Grocery stores
Buckinghamshire Council ,31.08.2023,22.08.2023,Children's Services,Education & Childrens Services - CS Dir,WWW.ARGOS.CO.UK,98.95,0,98.95,Sec 17: Financial Assistance One Off,Department stores
Buckinghamshire Council ,31.08.2023,22.08.2023,Children's Services,Education & Childrens Services - CS Dir,ARRIVA UK BUS,4,0,4,Sec 20/31: Supp for Contact,"Buses, charter & tour"
Buckinghamshire Council ,31.08.2023,22.08.2023,Children's Services,Education & Childrens Services - CS Dir,FIRST BUS - WEB,7.8,0,7.8,Sec 20/31: Supp for Contact,"Buses, charter & tour"
Buckinghamshire Council ,31.08.2023,22.08.2023,"Planning, Growth & Sustainability",Housing & Homelessness & Regulatory PGS,WWW.SCREWFIX.COM,26.97,0,26.97,Administrative Equipment & Tools,Timber & building supplies
Buckinghamshire Council ,31.08.2023,22.08.2023,"Planning, Growth & Sustainability",Climate Change & Environment - PGS,WWW.PRINTED4YOU.COM,373.2,0,373.2,Advertising,Miscellaneous retail
Buckinghamshire Council ,31.08.2023,22.08.2023,Children's Services,Education & Childrens Services - CS Dir,CARD FACTORY,5.97,0,5.97,Awaiting Coding,"Gift, card & novelty shops"
Buckinghamshire Council ,31.08.2023,22.08.2023,Children's Services,Education & Childrens Services - CS Dir,B&M 426 - HS AYLESBURY,5.5,0,5.5,Awaiting Coding,Misc. general merchandise
Buckinghamshire Council ,31.08.2023,22.08.2023,Children's Services,Education & Childrens Services - CS Dir,POUNDLAND LTD - 2492,8,0,8,Awaiting Coding,Discount stores
Buckinghamshire Council ,31.08.2023,22.08.2023,Children's Services,Education & Childrens Services - CS Dir,Hobbycraft,3,0,3,Awaiting Coding,Art & craft shops
Buckinghamshire Council ,31.08.2023,22.08.2023,Children's Services,Education & Childrens Services - CS Dir,POUNDLAND LTD - 1301,7,0,7,Events Expenditure,Discount stores
Buckinghamshire Council ,31.08.2023,22.08.2023,Children's Services,Education & Childrens Services - CS Dir,CARDS DIRECT AYLESBURY,16.97,0,16.97,Events Expenditure,Stationery & office supplies
Buckinghamshire Council ,31.08.2023,22.08.2023,Children's Services,Education & Childrens Services - CS Dir,ONE BELOW,10.5,0,10.5,Events Expenditure,Grocery stores
Buckinghamshire Council ,31.08.2023,22.08.2023,Children's Services,Education & Childrens Services - CS Dir,ASHCO,5.67,0,5.67,Events Expenditure,Hardware stores
Buckinghamshire Council ,31.08.2023,22.08.2023,Children's Services,Education & Childrens Services - CS Dir,EASYSTORAGE,220.7,0,220.7,Staff Travelling Expenses,Transportation services
Buckinghamshire Council ,31.08.2023,22.08.2023,Children's Services,Education & Childrens Services - CS Dir,NEALES TAXIS LTD,120,0,120,Staff Travelling Expenses,Taxicabs & limousines
Buckinghamshire Council ,31.08.2023,22.08.2023,Children's Services,Education & Childrens Services - CS Dir,M AQUATICS AYLESBURY,38,0,38,Activities & General Recreation,"Pet shops, food & supply"
Buckinghamshire Council ,31.08.2023,22.08.2023,Deputy Chief Executive,Communities - DCE,WWW.ARGOS.CO.UK,386.6,77.32,463.92,Other Personal Needs,Department stores
Buckinghamshire Council ,31.08.2023,22.08.2023,Deputy Chief Executive,Communities - DCE,WWW.ARGOS.CO.UK,0.03,0,0.03,Other Personal Needs,Department stores
Buckinghamshire Council ,31.08.2023,22.08.2023,Deputy Chief Executive,Communities - DCE,WWW.ARGOS.CO.UK,310.79,62.16,372.95,Other Personal Needs,Department stores
Buckinghamshire Council ,31.08.2023,22.08.2023,Deputy Chief Executive,Communities - DCE,AO RETAIL LIMITED,743.33,148.67,892,Other Personal Needs,Household appliance stores
Buckinghamshire Council ,31.08.2023,22.08.2023,Deputy Chief Executive,Communities - DCE,AO RETAIL LIMITED,315.83,63.17,379,Other Personal Needs,Household appliance stores
Buckinghamshire Council ,31.08.2023,22.08.2023,Deputy Chief Executive,Communities - DCE,AO RETAIL LIMITED,290.83,58.17,349,Other Personal Needs,Household appliance stores
Buckinghamshire Council ,31.08.2023,22.08.2023,Deputy Chief Executive,Communities - DCE,AO RETAIL LIMITED,559.99,112.01,672,Other Personal Needs,Household appliance stores
Buckinghamshire Council ,31.08.2023,22.08.2023,"Planning, Growth & Sustainability",Housing & Homelessness & Regulatory PGS,LAND REGISTRY ECOM CCC,3,0,3,Homelessness,Government services
Buckinghamshire Council ,31.08.2023,22.08.2023,Communities,Transport - Communities Dir,MAN HCW LTD,20,0,20,Vehicle Hire,Car washes
Buckinghamshire Council ,31.08.2023,22.08.2023,Children's Services,Education & Childrens Services - CS Dir,BAKER ROSS,91.85,0,91.85,Activities & General Recreation,Art & craft shops
Buckinghamshire Council ,31.08.2023,22.08.2023,Deputy Chief Executive,AH&R- DCE Dir,TESCO STORES 2041,54.48,0,54.48,Other Personal Needs,Grocery stores
Buckinghamshire Council ,31.08.2023,22.08.2023,Deputy Chief Executive,AH&R- DCE Dir,TESCO STORES 2041,53.98,0,53.98,Other Personal Needs,Grocery stores
Buckinghamshire Council ,31.08.2023,22.08.2023,Deputy Chief Executive,AH&R- DCE Dir,WWW.ARGOS.CO.UK,166,0,166,Other Personal Needs,Department stores
Buckinghamshire Council ,31.08.2023,22.08.2023,Communities,Special Expenses,DOBBIES,289.77,0,289.77,Payments To Contractors,Lawn & garden supply/nursery
Buckinghamshire Council ,31.08.2023,22.08.2023,Adults and Health,Health & Wellbeing - Adults & Health Dir,TRAVELODGE GB0000,229.88,0,229.88,Other Short Term Support,Travelodge
Buckinghamshire Council ,31.08.2023,22.08.2023,Adults and Health,Health & Wellbeing - Adults & Health Dir,TRAVELODGE GB0000,225.13,0,225.13,Other Short Term Support,Travelodge
Buckinghamshire Council ,31.08.2023,22.08.2023,Communities,Transport - Communities Dir,WWW.BUYAPARCEL.COM,652.69,0,652.69,Area Teams and Materials,Household appliance stores
Buckinghamshire Council ,31.08.2023,22.08.2023,Communities,Transport - Communities Dir,AMZNMKTPLACE,347.62,0,347.62,Area Teams and Materials,Miscellaneous retail
Buckinghamshire Council ,31.08.2023,22.08.2023,Children's Services,Education & Childrens Services - CS Dir,AMZ*AMAZON.CO.UK,-3.99,0,-3.99,"Books, Records, Films & Oth Publications",Miscellaneous retail
Buckinghamshire Council ,31.08.2023,22.08.2023,Children's Services,Education & Childrens Services - CS Dir,AMZ*AMAZON.CO.UK,-6.97,0,-6.97,"Books, Records, Films & Oth Publications",Miscellaneous retail
Buckinghamshire Council ,31.08.2023,22.08.2023,Communities,Transport - Communities Dir,PERRYS AYLESBURY DACIA,45.7,0,45.7,Vehicle Hire,Automobile dealers - new & used
Buckinghamshire Council ,31.08.2023,22.08.2023,Children's Services,Education & Childrens Services - CS Dir,FIRST RESCUE TRAIN,121.14,0,121.14,Other Equipment and Materials,Misc. general merchandise
Buckinghamshire Council ,31.08.2023,22.08.2023,Adults and Health,Health & Wellbeing - Adults & Health Dir,TRAVELODGE GB0000,346.97,0,346.97,Other Short Term Support,Travelodge
Buckinghamshire Council ,31.08.2023,22.08.2023,Children's Services,Education & Childrens Services - CS Dir,LONDON BOR'OF HILL,13,0,13,Sec 17: Financial Assistance One Off,Government services
Buckinghamshire Council ,31.08.2023,22.08.2023,Children's Services,Education & Childrens Services - CS Dir,ASDA  STORES 4396,18.4,0,18.4,General Provisions (Food),Grocery stores
Buckinghamshire Council ,31.08.2023,22.08.2023,Resources,AH&R - Res Dir,JD SPORTS FASHION PLC,250,0,250,Long Service Awards,Sports & riding apparel shops
Buckinghamshire Council ,31.08.2023,22.08.2023,Children's Services,Education & Childrens Services - CS Dir,TESCO STORES 2038,58.4,0,58.4,Consumable Supplies,Grocery stores
Buckinghamshire Council ,31.08.2023,22.08.2023,Children's Services,Education & Childrens Services - CS Dir,TESCO STORES 2038,241.57,0,241.57,Activities & General Recreation,Grocery stores
Buckinghamshire Council ,31.08.2023,22.08.2023,Children's Services,Education & Childrens Services - CS Dir,AMAZON* 204-9323133-99,225,0,225,Telephones,Phone equipment & sales
Buckinghamshire Council ,31.08.2023,22.08.2023,Adults and Health,Health & Wellbeing - Adults & Health Dir,ASDA SUPERSTORE,6.1,0,6.1,General Provisions (Food),Grocery stores
Buckinghamshire Council ,31.08.2023,22.08.2023,Children's Services,Education & Childrens Services - CS Dir,BROMFORD HOUSING ASSOCIAT,320,0,320,Leaving Care - Transport,Government services
Buckinghamshire Council ,31.08.2023,22.08.2023,Children's Services,Education & Childrens Services - CS Dir,AMZNMKTPLACE,17.98,0,17.98,Leaving Care - Grants for Care Leavers,Miscellaneous retail
Buckinghamshire Council ,31.08.2023,22.08.2023,Communities,Communities - Trust Accounts,WEXHAM MOWER SVCS,104.11,0,104.11,Vehicle Running Costs,Lawn & garden supply/nursery
Buckinghamshire Council ,31.08.2023,22.08.2023,Communities,Communities - Trust Accounts,WICKES SLOUGH,59.55,0,59.55,General Repairs & Maintenance,Timber & building supplies
Buckinghamshire Council ,31.08.2023,22.08.2023,Children's Services,Education & Childrens Services - CS Dir,SAFETY SIGNS 4 LESS,19.02,0,19.02,Awaiting Coding,Misc commercial machines equipment
Buckinghamshire Council ,31.08.2023,22.08.2023,Children's Services,Education & Childrens Services - CS Dir,THE TAXI PEOPLE,51,0,51,Staff Travelling Expenses,Taxicabs & limousines
Buckinghamshire Council ,31.08.2023,22.08.2023,Children's Services,Education & Childrens Services - CS Dir,SP HAWKINSPORT,13,0,13,Protective Clothing & Uniforms,Sporting goods shops
Buckinghamshire Council ,31.08.2023,22.08.2023,Children's Services,Education & Childrens Services - CS Dir,TOP JUMP,28,0,28,Activities & General Recreation,Misc. recreational services
Buckinghamshire Council ,31.08.2023,22.08.2023,"Planning, Growth & Sustainability",Climate Change & Environment - PGS,PAYPAL,30,0,30,Professional Subscriptions re Employees,Charitable organisations
Buckinghamshire Council ,31.08.2023,22.08.2023,Children's Services,Education & Childrens Services - CS Dir,WWW.CENTRALCARE.NET,180,0,180,"Courses, Conference and Seminar Fees",Vocational & trade schools
Buckinghamshire Council ,31.08.2023,22.08.2023,Communities,Transport - Communities Dir,CHARGEMASTER LIMITED,1.02,0,1.02,Awaiting Coding,
Buckinghamshire Council ,31.08.2023,22.08.2023,Communities,Transport - Communities Dir,CHARGEMASTER LIMITED,8.69,0,8.69,Awaiting Coding,
Buckinghamshire Council ,31.08.2023,22.08.2023,"Planning, Growth & Sustainability",Special Expenses,LOCK & KEY CENTRE,38,0,38,Equipment,Misc business services
Buckinghamshire Council ,31.08.2023,22.08.2023,Communities,Housing & Homelessness & Regulatory Comm,WWW.SCREWFIX.COM,37.23,0,37.23,General Repairs & Maintenance,Timber & building supplies
Buckinghamshire Council ,31.08.2023,22.08.2023,Adults and Health,Health & Wellbeing - Adults & Health Dir,CARTRIDGEPEOPLE.COM,381.48,76.3,457.78,Other General Office Expenses,Stationery & office supplies
Buckinghamshire Council ,31.08.2023,22.08.2023,Children's Services,Education & Childrens Services - CS Dir,A2B TAXI CABS,90.5,0,90.5,Sec 20/31: Financial Assistance,Taxicabs & limousines
Buckinghamshire Council ,31.08.2023,22.08.2023,"Planning, Growth & Sustainability",AH&R - PGS Dir,AMAZON* 204-8240252-24,16.98,0,16.98,Administrative Equipment & Tools,Phone equipment & sales
Buckinghamshire Council ,31.08.2023,22.08.2023,Children's Services,Education & Childrens Services - CS Dir,HAVEN HOLIDAYS,-90,0,-90,Awaiting Coding,Trailer parks & camp sites
Buckinghamshire Council ,31.08.2023,22.08.2023,Children's Services,Education & Childrens Services - CS Dir,JUST EAT,15.9,0,15.9,Subsistence,Fast food restaurants
Buckinghamshire Council ,31.08.2023,22.08.2023,Children's Services,Education & Childrens Services - CS Dir,AMAZON* 204-1232909-38,600,0,600,Telephones,Phone equipment & sales
Buckinghamshire Council ,31.08.2023,21.08.2023,"Planning, Growth & Sustainability",Planning & Regeneration - PGS,AMZNMKTPLACE,4.99,0,4.99,"Courses, Conference and Seminar Fees",Miscellaneous retail
Buckinghamshire Council ,31.08.2023,21.08.2023,Children's Services,Education & Childrens Services - CS Dir,AMZNMKTPLACE,16.98,0,16.98,Events Expenditure,Miscellaneous retail
Buckinghamshire Council ,31.08.2023,21.08.2023,Deputy Chief Executive,AH&R- DCE Dir,PAYPAL,-720.75,0,-720.75,Miscellaneous (Other)  Expenses,Variety stores
Buckinghamshire Council ,31.08.2023,21.08.2023,Adults and Health,Health & Wellbeing - Adults & Health Dir,SAINSBURYS S/MKTS,4.45,0,4.45,Awaiting Coding,Grocery stores
Buckinghamshire Council ,31.08.2023,21.08.2023,Children's Services,Education & Childrens Services - CS Dir,TRAINLINE,15.06,0,15.06,Sec 20/31: Supp for Contact,Passenger railways
Buckinghamshire Council ,31.08.2023,21.08.2023,"Planning, Growth & Sustainability",Climate Change & Environment - PGS,WWW.FLAGS.CO.UK,640.84,0,640.84,Advertising,Miscellaneous retail
Buckinghamshire Council ,31.08.2023,21.08.2023,"Planning, Growth & Sustainability",Climate Change & Environment - PGS,WWW.FLAGS.CO.UK,640.84,0,640.84,Advertising,Miscellaneous retail
Buckinghamshire Council ,31.08.2023,21.08.2023,Deputy Chief Executive,Communities - DCE,AO RETAIL LIMITED,743.33,148.67,892,Other Personal Needs,Household appliance stores
Buckinghamshire Council ,31.08.2023,21.08.2023,Children's Services,Education & Childrens Services - CS Dir,HIGH STREET VOUCHERS,100,0,100,Leaving Care - Higher Education Supp,Department stores
Buckinghamshire Council ,31.08.2023,21.08.2023,Children's Services,Education & Childrens Services - CS Dir,WWW.ARGOS.CO.UK,32,0,32,Leaving Care - Grants for Care Leavers,Department stores
Buckinghamshire Council ,31.08.2023,21.08.2023,Children's Services,Education & Childrens Services - CS Dir,PANDORA JEWELLERY UK LIMI,55,0,55,Activities & General Recreation,Jewellers
Buckinghamshire Council ,31.08.2023,21.08.2023,Children's Services,Education & Childrens Services - CS Dir,AMZNMKTPLACE,49.95,0,49.95,Activities & General Recreation,Miscellaneous retail
Buckinghamshire Council ,31.08.2023,21.08.2023,Children's Services,Education & Childrens Services - CS Dir,AMZNMKTPLACE,11.22,0,11.22,Other Personal Needs,Miscellaneous retail
Buckinghamshire Council ,31.08.2023,21.08.2023,Children's Services,Education & Childrens Services - CS Dir,AMZNMKTPLACE,7.89,0,7.89,Other Personal Needs,Miscellaneous retail
Buckinghamshire Council ,31.08.2023,21.08.2023,Children's Services,Education & Childrens Services - CS Dir,CLAIRE'S ACCESSORIES,12,0,12,Other Personal Needs,Misc. clothing & accessory shops
Buckinghamshire Council ,31.08.2023,21.08.2023,Children's Services,Education & Childrens Services - CS Dir,DUNELM LTD,60,0,60,Other Personal Needs,Drapery & upholstery shops
Buckinghamshire Council ,31.08.2023,21.08.2023,Children's Services,Education & Childrens Services - CS Dir,TESCO STORES 2038,163.21,0,163.21,General Provisions (Food),Grocery stores
Buckinghamshire Council ,31.08.2023,21.08.2023,Children's Services,Education & Childrens Services - CS Dir,WILKO RETAIL LIMITED,17.35,0,17.35,Other Personal Needs,Misc. general merchandise
Buckinghamshire Council ,31.08.2023,21.08.2023,Children's Services,Education & Childrens Services - CS Dir,SUPERDRUG STORES PLC,26,0,26,Other Personal Needs,Chemists & pharmacies
Buckinghamshire Council ,31.08.2023,21.08.2023,Children's Services,Education & Childrens Services - CS Dir,PARKING-EX ST,2.6,0,2.6,Activities & General Recreation,Car parking & garages
Buckinghamshire Council ,31.08.2023,21.08.2023,Children's Services,Education & Childrens Services - CS Dir,ODEON AYLESBURY,8.5,0,8.5,Activities & General Recreation,Cinemas
Buckinghamshire Council ,31.08.2023,21.08.2023,Children's Services,Education & Childrens Services - CS Dir,ODEON AYLESBURY,12.5,0,12.5,Activities & General Recreation,Cinemas
Buckinghamshire Council ,31.08.2023,21.08.2023,Deputy Chief Executive,Communities - DCE,AO RETAIL LIMITED,519.16,103.84,623,Other Personal Needs,Household appliance stores
Buckinghamshire Council ,31.08.2023,21.08.2023,Deputy Chief Executive,Communities - DCE,AO RETAIL LIMITED,315.83,63.17,379,Other Personal Needs,Household appliance stores
Buckinghamshire Council ,31.08.2023,21.08.2023,Deputy Chief Executive,Leader - DCE,MILTON KEYNES ONSTR (E),2.2,0,2.2,Staff Travelling Expenses,Car parking & garages
Buckinghamshire Council ,31.08.2023,21.08.2023,Children's Services,Education & Childrens Services - CS Dir,PREMIER INN,81.45,16.29,97.74,Sec 17: Financial Assistance One Off,Premier Inn
Buckinghamshire Council ,31.08.2023,21.08.2023,Children's Services,Education & Childrens Services - CS Dir,PREMIER INN,0.01,0,0.01,Sec 17: Financial Assistance One Off,Premier Inn
Buckinghamshire Council ,31.08.2023,21.08.2023,"Planning, Growth & Sustainability",AH&R - PGS Dir,WICKES AYLESBURY,45.2,0,45.2,General Repairs & Maintenance,Timber & building supplies
Buckinghamshire Council ,31.08.2023,21.08.2023,"Planning, Growth & Sustainability",Housing & Homelessness & Regulatory PGS,LAND REGISTRY ECOM CCC,3,0,3,Homelessness,Government services
Buckinghamshire Council ,31.08.2023,21.08.2023,Adults and Health,Health & Wellbeing - Adults & Health Dir,AMZNMktplace,29.96,0,29.96,Awaiting Coding,Miscellaneous retail
Buckinghamshire Council ,31.08.2023,21.08.2023,Communities,Housing & Homelessness & Regulatory Comm,SHELL HAZLEMERE,29.13,0,29.13,Maintenance of Grounds,Service stations
Buckinghamshire Council ,31.08.2023,21.08.2023,Communities,Housing & Homelessness & Regulatory Comm,BRADSHAWS DIRECT,30.48,0,30.48,Maintenance of Grounds,Lawn & garden supply/nursery
Buckinghamshire Council ,31.08.2023,21.08.2023,Resources,AH&R - Res Dir,GEN REGISTER OFFICE,14,0,14,Miscellaneous (Other)  Expenses,Government services
Buckinghamshire Council ,31.08.2023,21.08.2023,Resources,AH&R - Res Dir,NEW YORK DELI (AYLESBURY),7.15,0,7.15,Subsistence,Restaurants
Buckinghamshire Council ,31.08.2023,21.08.2023,,,WWW.SCREWFIX.COM,80.89,0,80.89,General Repairs & Maintenance,Timber & building supplies
Buckinghamshire Council ,31.08.2023,21.08.2023,"Planning, Growth & Sustainability",AH&R - PGS Dir,TESCO STORES 2020,11.6,0,11.6,Purchase.of Refreshments and Food,Grocery stores
Buckinghamshire Council ,31.08.2023,21.08.2023,Deputy Chief Executive,AH&R- DCE Dir,AMZNMKTPLACE,92.96,0,92.96,Other Personal Needs,Miscellaneous retail
Buckinghamshire Council ,31.08.2023,21.08.2023,Communities,Culture & Leisure - Communities Dir,AMZNMKTPLACE,26.19,0,26.19,"Workshop - Materials,Tools & Equipment",Miscellaneous retail
Buckinghamshire Council ,31.08.2023,21.08.2023,Communities,Culture & Leisure - Communities Dir,AMZNMKTPLACE,12.3,0,12.3,Health & Safety Supplies & Services,Miscellaneous retail
Buckinghamshire Council ,31.08.2023,21.08.2023,Children's Services,Education & Childrens Services - CS Dir,GOLDEN FRY,17.9,0,17.9,Subsistence,Restaurants
Buckinghamshire Council ,31.08.2023,21.08.2023,Deputy Chief Executive,Leader - DCE,SAINSBURY S S/MKTS,11.7,0,11.7,Subsistence,Grocery stores
Buckinghamshire Council ,31.08.2023,21.08.2023,Children's Services,Education & Childrens Services - CS Dir,SQ *AMAZING OCCASIONS LIM,"1,504.00",0,"1,504.00",Events Expenditure,"Bands, orchestras & misc entertainment"
Buckinghamshire Council ,31.08.2023,21.08.2023,"Planning, Growth & Sustainability",AH&R - PGS Dir,ICELAND,8.7,0,8.7,General Provisions (Food),Grocery stores
Buckinghamshire Council ,31.08.2023,21.08.2023,Children's Services,Education & Childrens Services - CS Dir,AMZNMKTPLACE,34.02,0,34.02,Leaving Care - Grants for Care Leavers,Miscellaneous retail
Buckinghamshire Council ,31.08.2023,21.08.2023,Children's Services,Education & Childrens Services - CS Dir,HIGH STREET VOUCHERS,50,0,50,Leaving Care - Higher Education Supp,Department stores
Buckinghamshire Council ,31.08.2023,21.08.2023,Deputy Chief Executive,Communities - DCE,HADDENHAM GARDEN CEN L,6.2,0,6.2,Seeds & Plants,Lawn & garden supply/nursery
Buckinghamshire Council ,31.08.2023,21.08.2023,Adults and Health,Health & Wellbeing - Adults & Health Dir,TESCO STORES 5135,184.99,0,184.99,General Provisions (Food),Grocery stores
Buckinghamshire Council ,31.08.2023,21.08.2023,Children's Services,Education & Childrens Services - CS Dir,WWW.MAISIESSUPERSTORE.,65.93,0,65.93,Protective Clothing & Uniforms,Uniforms & commercial clothing
Buckinghamshire Council ,31.08.2023,21.08.2023,Children's Services,Education & Childrens Services - CS Dir,SP EARTH UNIFORM LTD,45.95,0,45.95,Protective Clothing & Uniforms,Children/infants shops
Buckinghamshire Council ,31.08.2023,21.08.2023,Adults and Health,Health & Wellbeing - Adults & Health Dir,TESCO STORES 5135,102.19,0,102.19,General Provisions (Food),Grocery stores
Buckinghamshire Council ,31.08.2023,21.08.2023,Children's Services,Education & Childrens Services - CS Dir,GRAFTERR PAY,175,0,175,Sec 20/31: Financial Assistance,Restaurants
Buckinghamshire Council ,31.08.2023,21.08.2023,Communities,Transport - Communities Dir,SHELL 40-42 WOODSIDE ROAD,4.63,0,4.63,Petrol,Service stations
Buckinghamshire Council ,31.08.2023,21.08.2023,Communities,Transport - Communities Dir,KWIK FIT,176.38,0,176.38,Repair & Maint of Vehicles & Plant,Auto servicing
Buckinghamshire Council ,31.08.2023,21.08.2023,Communities,Transport - Communities Dir,CHARGEMASTER LIMITED,6.16,0,6.16,Awaiting Coding,
Buckinghamshire Council ,31.08.2023,21.08.2023,Communities,Transport - Communities Dir,CJ'S LOCKSMITHS,13.9,0,13.9,Awaiting Coding,Misc. repair services
Buckinghamshire Council ,31.08.2023,21.08.2023,Adults and Health,Health & Wellbeing - Adults & Health Dir,NEALES TAXIS LTD,960,0,960,Staff Travelling Expenses,Taxicabs & limousines
Buckinghamshire Council ,31.08.2023,21.08.2023,Adults and Health,Health & Wellbeing - Adults & Health Dir,ICELAND,10,0,10,General Provisions (Food),Grocery stores
Buckinghamshire Council ,31.08.2023,21.08.2023,Adults and Health,Health & Wellbeing - Adults & Health Dir,TRAVELODGE GB0000,"1,204.40",0,"1,204.40",Other Short Term Support,Travelodge
Buckinghamshire Council ,31.08.2023,21.08.2023,"Planning, Growth & Sustainability",Housing & Homelessness & Regulatory PGS,ARCO LIMITED,379.4,75.88,455.28,Repair and Maintenance of Equipment,Misc Industrial supplies
Buckinghamshire Council ,31.08.2023,20.08.2023,Deputy Chief Executive,AH&R- DCE Dir,AMZNMKTPLACE,178.99,0,178.99,Other Personal Needs,Miscellaneous retail
Buckinghamshire Council ,31.08.2023,20.08.2023,Communities,Culture & Leisure - Communities Dir,AMZNMKTPLACE,12.89,0,12.89,"Workshop - Materials,Tools & Equipment",Miscellaneous retail
Buckinghamshire Council ,31.08.2023,20.08.2023,Communities,Culture & Leisure - Communities Dir,AMZNMKTPLACE,29.98,0,29.98,"Workshop - Materials,Tools & Equipment",Miscellaneous retail
Buckinghamshire Council ,31.08.2023,20.08.2023,Communities,Culture & Leisure - Communities Dir,AMZNMKTPLACE,7.9,0,7.9,"Workshop - Materials,Tools & Equipment",Miscellaneous retail
Buckinghamshire Council ,31.08.2023,20.08.2023,Children's Services,Education & Childrens Services - CS Dir,WM MORRISONS STORE,12.66,0,12.66,Awaiting Coding,Grocery stores
Buckinghamshire Council ,31.08.2023,20.08.2023,Children's Services,Education & Childrens Services - CS Dir,Just Eat,24.6,0,24.6,Subsistence,Fast food restaurants
Buckinghamshire Council ,31.08.2023,20.08.2023,Communities,Climate Change & Environment - Community,PAYPAL,18.18,0,18.18,Advertising,Advertising services
Buckinghamshire Council ,31.08.2023,20.08.2023,Children's Services,Education & Childrens Services - CS Dir,AMZNMKTPLACE,60.95,0,60.95,Activities & General Recreation,Miscellaneous retail
Buckinghamshire Council ,31.08.2023,20.08.2023,Communities,Communities - Trust Accounts,COSTCO WHOLESALE #102,99.04,0,99.04,Purchase of Food for Re-sale,Buying & shopping services/clubs
Buckinghamshire Council ,31.08.2023,20.08.2023,Resources,AH&R - Res Dir,LINKEDIN ADS 9334588914,119.74,0,119.74,Permanent Recruitment Costs,Advertising services
Buckinghamshire Council ,31.08.2023,20.08.2023,Children's Services,Education & Childrens Services - CS Dir,AMZNMKTPLACE,38.86,0,38.86,Furniture,Miscellaneous retail
Buckinghamshire Council ,31.08.2023,20.08.2023,Children's Services,Education & Childrens Services - CS Dir,NEALES TAXIS LTD,250,0,250,Staff Travelling Expenses,Taxicabs & limousines
Buckinghamshire Council ,31.08.2023,20.08.2023,Adults and Health,Health & Wellbeing - Adults & Health Dir,AMZNMktplace,43.53,0,43.53,Awaiting Coding,Miscellaneous retail
Buckinghamshire Council ,31.08.2023,19.08.2023,Children's Services,Education & Childrens Services - CS Dir,AMAZON* 204-2881609-90,7.34,0,7.34,General Provisions (Food),Phone equipment & sales
Buckinghamshire Council ,31.08.2023,19.08.2023,Children's Services,Education & Childrens Services - CS Dir,WEST WYCOMBE CAVES LIMITE,31,0,31,Activities & General Recreation,Tourist attractions and exhibitions
Buckinghamshire Council ,31.08.2023,19.08.2023,Communities,Transport - Communities Dir,WILKO RETAIL LIMITED,12.8,0,12.8,Vehicle Hire,Misc. general merchandise
Buckinghamshire Council ,31.08.2023,18.08.2023,Children's Services,Education & Childrens Services - CS Dir,AMAZON.CO.UK,19.64,0,19.64,Stationery & Office Supplies,Direct sales companies
Buckinghamshire Council ,31.08.2023,18.08.2023,Children's Services,Education & Childrens Services - CS Dir,AMAZON.CO.UK,452.04,0,452.04,Stationery & Office Supplies,Direct sales companies
Buckinghamshire Council ,31.08.2023,18.08.2023,Deputy Chief Executive,AH&R- DCE Dir,PAYPAL,735,147,882,Miscellaneous (Other)  Expenses,Electronics shops
Buckinghamshire Council ,31.08.2023,18.08.2023,Deputy Chief Executive,AH&R- DCE Dir,PAYPAL,661.95,0,661.95,Miscellaneous (Other)  Expenses,Variety stores
Buckinghamshire Council ,31.08.2023,18.08.2023,Deputy Chief Executive,AH&R- DCE Dir,PAYPAL,"1,097.95",0,"1,097.95",Miscellaneous (Other)  Expenses,Variety stores
Buckinghamshire Council ,31.08.2023,18.08.2023,Deputy Chief Executive,AH&R- DCE Dir,PAYPAL,720.75,0,720.75,Miscellaneous (Other)  Expenses,Variety stores
Buckinghamshire Council ,31.08.2023,18.08.2023,Deputy Chief Executive,AH&R- DCE Dir,PAYPAL,130,0,130,Miscellaneous (Other)  Expenses,Variety stores
Buckinghamshire Council ,31.08.2023,18.08.2023,Communities,Culture & Leisure - Communities Dir,AMZNMKTPLACE,8.48,0,8.48,Health & Safety Supplies & Services,Miscellaneous retail
Buckinghamshire Council ,31.08.2023,18.08.2023,"Planning, Growth & Sustainability",Climate Change & Environment - PGS,HTTPS://SCRIBE.HOW/B,23.51,0,23.51,Computer Consumables,Computer software stores
Buckinghamshire Council ,31.08.2023,18.08.2023,Children's Services,Education & Childrens Services - CS Dir,WWW.THERANGE.CO.UK,24.3,0,24.3,Events Expenditure,Misc. home furnishing
Buckinghamshire Council ,31.08.2023,18.08.2023,Children's Services,Education & Childrens Services - CS Dir,MONMORE CONFECTIONERY,44.32,0,44.32,Events Expenditure,Sweets & confectionary
Buckinghamshire Council ,31.08.2023,18.08.2023,Children's Services,Education & Childrens Services - CS Dir,BKG*HOTEL AT BOOKING.C,243,0,243,Other Employees Expenses,Travel agencies
Buckinghamshire Council ,31.08.2023,18.08.2023,Children's Services,Education & Childrens Services - CS Dir,UNILINK SOFTWARE LTD,10,0,10,Leaving Care  - Financial Assistance,Computer software stores
Buckinghamshire Council ,31.08.2023,18.08.2023,,,FIRST RESCUE TRAIN,400.8,0,400.8,Awaiting Coding,Misc. general merchandise
Buckinghamshire Council ,31.08.2023,18.08.2023,Deputy Chief Executive,AH&R- DCE Dir,TESCO STORES 2041,52.82,0,52.82,Other Personal Needs,Grocery stores
Buckinghamshire Council ,31.08.2023,18.08.2023,Deputy Chief Executive,AH&R- DCE Dir,TESCO STORES 2041,55.36,0,55.36,Other Personal Needs,Grocery stores
Buckinghamshire Council ,31.08.2023,18.08.2023,Deputy Chief Executive,AH&R- DCE Dir,WWW.ARGOS.CO.UK,30,0,30,Other Personal Needs,Department stores
Buckinghamshire Council ,31.08.2023,18.08.2023,Deputy Chief Executive,AH&R- DCE Dir,AMAZON* 204-3897498-18,55.98,0,55.98,Other Personal Needs,Phone equipment & sales
Buckinghamshire Council ,31.08.2023,18.08.2023,Deputy Chief Executive,AH&R- DCE Dir,AMZNMKTPLACE,111.94,0,111.94,Other Personal Needs,Miscellaneous retail
Buckinghamshire Council ,31.08.2023,18.08.2023,Communities,Culture & Leisure - Communities Dir,DISPLAY SIGNS LIMITED,156,31.2,187.2,"Workshop - Materials,Tools & Equipment",Publishing & printing services
Buckinghamshire Council ,31.08.2023,18.08.2023,Communities,Culture & Leisure - Communities Dir,AMZNMKTPLACE,42.93,0,42.93,Events Expenditure,Miscellaneous retail
Buckinghamshire Council ,31.08.2023,18.08.2023,Deputy Chief Executive,Communities - DCE,RINGGO PARKING,3.25,0,3.25,Staff Travelling Expenses,Car parking & garages
Buckinghamshire Council ,31.08.2023,18.08.2023,Children's Services,Education & Childrens Services - CS Dir,HMCTS-TV031,26,0,26,Court Fees,Fines
Buckinghamshire Council ,31.08.2023,18.08.2023,"Planning, Growth & Sustainability",Climate Change & Environment - PGS,STORAGEMART UK #5318,537.81,107.57,148,"Rents, Wayleaves & Hire of Premises","Haulage, removals & delivery"
Buckinghamshire Council ,31.08.2023,18.08.2023,"Planning, Growth & Sustainability",Climate Change & Environment - PGS,STORAGEMART UK #5318,12.5,2.5,148,Equipment,"Haulage, removals & delivery"
Buckinghamshire Council ,31.08.2023,18.08.2023,Children's Services,Education & Childrens Services - CS Dir,WWW.JOHNLEWIS.COM,158.5,0,158.5,Equipment (including storage),Department stores
Buckinghamshire Council ,31.08.2023,18.08.2023,Children's Services,Education & Childrens Services - CS Dir,AMZNMktplace,13.98,0,13.98,Awaiting Coding,Miscellaneous retail
Buckinghamshire Council ,31.08.2023,18.08.2023,Children's Services,Education & Childrens Services - CS Dir,AMZNMktplace,14.99,0,14.99,Awaiting Coding,Miscellaneous retail
Buckinghamshire Council ,31.08.2023,18.08.2023,Children's Services,Education & Childrens Services - CS Dir,UK POINT OF SALE GROUP LT,181.98,0,181.98,Computer Consumables,"Computers, peripherals & software"
Buckinghamshire Council ,31.08.2023,18.08.2023,"Planning, Growth & Sustainability",Planning & Regeneration - PGS,AMZNMKTPLACE,62.92,0,62.92,IT Equipment Purchase,Miscellaneous retail
Buckinghamshire Council ,31.08.2023,18.08.2023,"Planning, Growth & Sustainability",AH&R - PGS Dir,SQ *GROUP CARDS,4.79,0,4.79,Miscellaneous (Other)  Expenses,"Gift, card & novelty shops"
Buckinghamshire Council ,31.08.2023,18.08.2023,"Planning, Growth & Sustainability",Climate Change & Environment - PGS,NHBS LTD,61.2,12.24,73.44,Administrative Equipment & Tools,"Books, periodicals & newspapers"
Buckinghamshire Council ,31.08.2023,18.08.2023,"Planning, Growth & Sustainability",Climate Change & Environment - PGS,NHBS LTD,0.04,0,0.04,Administrative Equipment & Tools,"Books, periodicals & newspapers"
Buckinghamshire Council ,31.08.2023,18.08.2023,"Planning, Growth & Sustainability",Housing & Homelessness & Regulatory PGS,MOL*FLAIR FURNITURE LTD,584.96,0,584.96,Furniture,Furniture & home furnishing
Buckinghamshire Council ,31.08.2023,18.08.2023,Adults and Health,Health & Wellbeing - Adults & Health Dir,AMZNMktplace,34.99,0,34.99,Awaiting Coding,Miscellaneous retail
Buckinghamshire Council ,31.08.2023,18.08.2023,Communities,Transport - Communities Dir,SHELL 40-42 WOODSIDE ROAD,68.42,0,68.42,Petrol,Service stations
Buckinghamshire Council ,31.08.2023,18.08.2023,Communities,Culture & Leisure - Communities Dir,IONOS CLOUD LTD,43.3,0,43.3,Computer Support Services,Computer network information services
Buckinghamshire Council ,31.08.2023,18.08.2023,"Planning, Growth & Sustainability",AH&R - PGS Dir,FIRST RESCUE TRAIN,-400.8,0,-400.8,General Repairs & Maintenance,Misc. general merchandise
Buckinghamshire Council ,31.08.2023,17.08.2023,Children's Services,Education & Childrens Services - CS Dir,AMZNMKTPLACE,24.04,0,24.04,Events Expenditure,Miscellaneous retail
Buckinghamshire Council ,31.08.2023,17.08.2023,Children's Services,Education & Childrens Services - CS Dir,AMZNMktplace,32.65,0,32.65,Awaiting Coding,Miscellaneous retail
Buckinghamshire Council ,31.08.2023,17.08.2023,Adults and Health,Health & Wellbeing - Adults & Health Dir,AMZNMKTPLACE,53.01,13.25,66.26,Stationery & Office Supplies,Miscellaneous retail
Buckinghamshire Council ,31.08.2023,17.08.2023,Communities,Culture & Leisure - Communities Dir,THE ENTERTAINER,8,0,8,Events Expenditure,"Hobby, toy & game shops"
Buckinghamshire Council ,31.08.2023,17.08.2023,Communities,Culture & Leisure - Communities Dir,WWW.THEWORKS.CO.UK,37.95,0,37.95,Events Expenditure,Discount stores
Buckinghamshire Council ,31.08.2023,17.08.2023,"Planning, Growth & Sustainability",Housing & Homelessness & Regulatory PGS,FOOD SAFETY DIRECT,21.95,4.39,26.34,Protective Clothing & Uniforms,Clothing hire
Buckinghamshire Council ,31.08.2023,17.08.2023,"Planning, Growth & Sustainability",Housing & Homelessness & Regulatory PGS,FOOD SAFETY DIRECT,0.01,0,0.01,Protective Clothing & Uniforms,Clothing hire
Buckinghamshire Council ,31.08.2023,17.08.2023,"Planning, Growth & Sustainability",Housing & Homelessness & Regulatory PGS,INSTITUTE OF MONEY ADV,859.95,0,859.95,General Allowances,Membership organisations
Buckinghamshire Council ,31.08.2023,17.08.2023,Children's Services,Education & Childrens Services - CS Dir,TRAINLINE,67.01,0,67.01,Staff Travelling Expenses,Passenger railways
Buckinghamshire Council ,31.08.2023,17.08.2023,"Planning, Growth & Sustainability",Climate Change & Environment - PGS,BENCHMARKEMAILCOM,240.21,0,240.21,Advertising,Misc business services
Buckinghamshire Council ,31.08.2023,17.08.2023,Children's Services,Education & Childrens Services - CS Dir,DOMINO S PIZZA,30.77,0,30.77,"Exp of School, Club & College Activities",Restaurants
Buckinghamshire Council ,31.08.2023,17.08.2023,Children's Services,Education & Childrens Services - CS Dir,NEW YORK (AYLESBURY) LTD,14.45,0,14.45,"Exp of School, Club & College Activities",Restaurants
Buckinghamshire Council ,31.08.2023,17.08.2023,Children's Services,Education & Childrens Services - CS Dir,WM MORRISONS STORE,6.15,0,6.15,"Exp of School, Club & College Activities",Grocery stores
Buckinghamshire Council ,31.08.2023,17.08.2023,Children's Services,Education & Childrens Services - CS Dir,ABC TAXIS,27,0,27,Staff Travelling Expenses,Taxicabs & limousines
Buckinghamshire Council ,31.08.2023,17.08.2023,Children's Services,Education & Childrens Services - CS Dir,TESCO GIFT CARD,50,0,50,Awaiting Coding,Grocery stores
Buckinghamshire Council ,31.08.2023,17.08.2023,Children's Services,Education & Childrens Services - CS Dir,NEALES TAXIS LTD,120,0,120,Staff Travelling Expenses,Taxicabs & limousines
Buckinghamshire Council ,31.08.2023,17.08.2023,Children's Services,Education & Childrens Services - CS Dir,Vesta Vodafone TopUp,20,0,20,Telephones,Phone services
Buckinghamshire Council ,31.08.2023,17.08.2023,Children's Services,Education & Childrens Services - CS Dir,AMZNMKTPLACE,32.47,0,32.47,Other Personal Needs,Miscellaneous retail
Buckinghamshire Council ,31.08.2023,17.08.2023,Children's Services,Education & Childrens Services - CS Dir,AMZNMKTPLACE,134.29,0,134.29,Other Personal Needs,Miscellaneous retail
Buckinghamshire Council ,31.08.2023,17.08.2023,Children's Services,Education & Childrens Services - CS Dir,CURRYS BUSINESS,522.15,104.43,626.58,Computer Consumables,Computer software stores
Buckinghamshire Council ,31.08.2023,17.08.2023,Children's Services,Education & Childrens Services - CS Dir,NALDIC.ORG.UK,180,0,180,Training Materials,Charitable organisations
Buckinghamshire Council ,31.08.2023,17.08.2023,"Planning, Growth & Sustainability",AH&R - PGS Dir,LONDIS,10,0,10,General Provisions (Food),Sweets & confectionary
Buckinghamshire Council ,31.08.2023,17.08.2023,Deputy Chief Executive,AH&R- DCE Dir,GERALD LOW & COMPANY L,180,0,180,"Courses, Conference and Seminar Fees","Heating, plumbing & air conditioning"
Buckinghamshire Council ,31.08.2023,17.08.2023,Resources,AH&R - Res Dir,GEN REGISTER OFFICE,14,0,14,Miscellaneous (Other)  Expenses,Government services
Buckinghamshire Council ,31.08.2023,17.08.2023,Adults and Health,Health & Wellbeing - Adults & Health Dir,WWW.MARKALLENGROUP.COM,60,0,60,"Courses, Conference and Seminar Fees",Schools
Buckinghamshire Council ,31.08.2023,17.08.2023,Children's Services,Education & Childrens Services - CS Dir,AMZNMKTPLACE,18.96,0,18.96,Sec 17: Financial Assistance,Miscellaneous retail
Buckinghamshire Council ,31.08.2023,17.08.2023,Children's Services,Education & Childrens Services - CS Dir,CORAMBAAF,24.45,0,24.45,Miscellaneous (Other)  Expenses,
Buckinghamshire Council ,31.08.2023,17.08.2023,"Planning, Growth & Sustainability",AH&R - PGS Dir,AMAZON* 204-6157980-43,133.21,0,133.21,Protective Clothing & Uniforms,Phone equipment & sales
Buckinghamshire Council ,31.08.2023,17.08.2023,"Planning, Growth & Sustainability",AH&R - PGS Dir,B & Q 1305,15.5,0,15.5,General Repairs & Maintenance,Home supply warehouse stores
Buckinghamshire Council ,31.08.2023,17.08.2023,"Planning, Growth & Sustainability",AH&R - PGS Dir,SCREWFIX DIR LTD,64.66,0,64.66,General Repairs & Maintenance,Timber & building supplies
Buckinghamshire Council ,31.08.2023,17.08.2023,Deputy Chief Executive,AH&R- DCE Dir,WWW.ARGOS.CO.UK,40,0,40,Other Personal Needs,Department stores
Buckinghamshire Council ,31.08.2023,17.08.2023,Deputy Chief Executive,AH&R- DCE Dir,WWW.ARGOS.CO.UK,114,0,114,Other Personal Needs,Department stores
Buckinghamshire Council ,31.08.2023,17.08.2023,Children's Services,Education & Childrens Services - CS Dir,AMZNMKTPLACE,8.29,0,8.29,Consumable Supplies,Miscellaneous retail
Buckinghamshire Council ,31.08.2023,17.08.2023,Children's Services,Education & Childrens Services - CS Dir,AMZNMKTPLACE,21.23,0,21.23,Consumable Supplies,Miscellaneous retail
Buckinghamshire Council ,31.08.2023,17.08.2023,Children's Services,Education & Childrens Services - CS Dir,AMZNMKTPLACE,110.12,0,110.12,Consumable Supplies,Miscellaneous retail
Buckinghamshire Council ,31.08.2023,17.08.2023,Children's Services,Education & Childrens Services - CS Dir,AMZNMKTPLACE,88.96,0,88.96,Consumable Supplies,Miscellaneous retail
Buckinghamshire Council ,31.08.2023,17.08.2023,Children's Services,Education & Childrens Services - CS Dir,AMZ*SWEET ADDICTS,-33.58,0,-33.58,Consumable Supplies,Miscellaneous retail
Buckinghamshire Council ,31.08.2023,17.08.2023,Communities,Culture & Leisure - Communities Dir,WWW.SCREWFIX.COM,6.7,1.34,8.04,Protective Clothing & Uniforms,Timber & building supplies
Buckinghamshire Council ,31.08.2023,17.08.2023,Communities,Culture & Leisure - Communities Dir,WWW.SCREWFIX.COM,40.83,0,40.83,Protective Clothing & Uniforms,Timber & building supplies
Buckinghamshire Council ,31.08.2023,17.08.2023,Deputy Chief Executive,Communities - DCE,RINGGO PARKING,2.75,0,2.75,Staff Travelling Expenses,Car parking & garages
Buckinghamshire Council ,31.08.2023,17.08.2023,Children's Services,Education & Childrens Services - CS Dir,AMAZON.CO.UK,28.06,0,28.06,"Books, Records, Films & Oth Publications",Direct sales companies
Buckinghamshire Council ,31.08.2023,17.08.2023,"Planning, Growth & Sustainability",Housing & Homelessness & Regulatory PGS,MARKS&SPENCER PLC,50,0,50,Awaiting Coding,Grocery stores
Buckinghamshire Council ,31.08.2023,17.08.2023,"Planning, Growth & Sustainability",Housing & Homelessness & Regulatory PGS,VOUCHER EXPRESS,50,0,50,Awaiting Coding,Misc business services
Buckinghamshire Council ,31.08.2023,17.08.2023,Children's Services,Education & Childrens Services - CS Dir,FORESTRY ENGLAND,6,0,6,Staff Travelling Expenses,Car parking & garages
Buckinghamshire Council ,31.08.2023,17.08.2023,Children's Services,Education & Childrens Services - CS Dir,WENDOVER WOODS CAFE,5.6,0,5.6,Subsistence,Restaurants
Buckinghamshire Council ,31.08.2023,17.08.2023,Children's Services,Education & Childrens Services - CS Dir,ALDI 110 775,48.15,0,48.15,Other Equipment and Materials,Grocery stores
Buckinghamshire Council ,31.08.2023,17.08.2023,Children's Services,Education & Childrens Services - CS Dir,FORESTRY ENGLAND,4,0,4,Staff Travelling Expenses,Car parking & garages
Buckinghamshire Council ,31.08.2023,17.08.2023,Children's Services,Education & Childrens Services - CS Dir,NEW YORK DELI (AYLESBURY),23.95,0,23.95,Activities & General Recreation,Restaurants
Buckinghamshire Council ,31.08.2023,17.08.2023,Children's Services,Education & Childrens Services - CS Dir,AMZNMktplace,17.7,0,17.7,Awaiting Coding,Miscellaneous retail
Buckinghamshire Council ,31.08.2023,17.08.2023,Children's Services,Education & Childrens Services - CS Dir,TESCO STORES 2898,178.99,0,178.99,Activities & General Recreation,Grocery stores
Buckinghamshire Council ,31.08.2023,17.08.2023,Children's Services,Education & Childrens Services - CS Dir,BT.COM CONSUMER BP,-40.99,0,-40.99,Leaving Care  - Financial Assistance,Phone services
Buckinghamshire Council ,31.08.2023,17.08.2023,"Planning, Growth & Sustainability",Planning & Regeneration - PGS,TRAINLINE.COM LTD,4.85,0,4.85,Staff Travelling Expenses,Passenger railways
Buckinghamshire Council ,31.08.2023,17.08.2023,Resources,AH&R - Res Dir,LINKEDIN ADS 9326499164,134.22,0,134.22,Permanent Recruitment Costs,Advertising services
Buckinghamshire Council ,31.08.2023,17.08.2023,Resources,AH&R - Res Dir,FACEBK *VQ4TVT74X2,123.26,0,123.26,Permanent Recruitment Costs,Advertising services
Buckinghamshire Council ,31.08.2023,17.08.2023,Children's Services,Education & Childrens Services - CS Dir,WWW.THEWORKS.CO.UK,479,0,479,Awaiting Coding,Discount stores
Buckinghamshire Council ,31.08.2023,17.08.2023,Children's Services,Education & Childrens Services - CS Dir,COLCHESTER ZOO WEBSTORE,75.5,0,75.5,Activities & General Recreation,Misc. recreational services
Buckinghamshire Council ,31.08.2023,17.08.2023,Communities,Climate Change & Environment - Community,AMZNMktplace,124.18,0,124.18,Awaiting Coding,Miscellaneous retail
Buckinghamshire Council ,31.08.2023,17.08.2023,Adults and Health,Health & Wellbeing - Adults & Health Dir,AMZNMKTPLACE,159.98,32,191.98,Other Supplies,Miscellaneous retail
Buckinghamshire Council ,31.08.2023,17.08.2023,Adults and Health,Health & Wellbeing - Adults & Health Dir,AMZNMKTPLACE,79.99,16,95.99,Other Supplies,Miscellaneous retail
Buckinghamshire Council ,31.08.2023,17.08.2023,Adults and Health,Health & Wellbeing - Adults & Health Dir,PSHE ASSOCIATION,138,0,138,Professional Subscriptions re Employees,Schools
Buckinghamshire Council ,31.08.2023,17.08.2023,Communities,Climate Change & Environment - Community,JAYAR CAR PARTS,31.01,0,31.01,Repair & Maint of Vehicles & Plant,Automotive parts & accessories
Buckinghamshire Council ,31.08.2023,17.08.2023,Adults and Health,Health & Wellbeing - Adults & Health Dir,TIMPSON LTD,15,0,15,Other Equipment and Materials,Miscellaneous retail
Buckinghamshire Council ,31.08.2023,17.08.2023,Adults and Health,Health & Wellbeing - Adults & Health Dir,SAINSBURY'S S/MKT,7.5,0,7.5,Other Personal Needs,Grocery stores
Buckinghamshire Council ,31.08.2023,17.08.2023,Communities,Transport - Communities Dir,CHARGEMASTER LIMITED,8.92,0,8.92,Awaiting Coding,
Buckinghamshire Council ,31.08.2023,17.08.2023,Communities,Housing & Homelessness & Regulatory Comm,WWW.LYNOAKES.CO.UK,29.93,0,29.93,Protective Clothing & Uniforms,Men/boys clothing shops
Buckinghamshire Council ,31.08.2023,17.08.2023,Children's Services,Education & Childrens Services - CS Dir,CANVA* 03880-33464222,34.99,0,34.99,Marketing,"Commercial photo, art & graphic"
Buckinghamshire Council ,31.08.2023,16.08.2023,Children's Services,Education & Childrens Services - CS Dir,AMZNMKTPLACE,40.67,0,40.67,Consumable Supplies,Miscellaneous retail
Buckinghamshire Council ,31.08.2023,16.08.2023,Children's Services,Education & Childrens Services - CS Dir,AMZNMKTPLACE,372.81,0,372.81,Activities & General Recreation,Miscellaneous retail
Buckinghamshire Council ,31.08.2023,16.08.2023,Adults and Health,Health & Wellbeing - Adults & Health Dir,Amazon.co.uk,13.05,0,13.05,Stationery & Office Supplies,Direct sales companies
Buckinghamshire Council ,31.08.2023,16.08.2023,"Planning, Growth & Sustainability",Climate Change & Environment - PGS,TRAINLINE,88.9,0,88.9,Staff Travelling Expenses,Passenger railways
Buckinghamshire Council ,31.08.2023,16.08.2023,Children's Services,Education & Childrens Services - CS Dir,DOMINO S PIZZA,51.77,0,51.77,"Exp of School, Club & College Activities",Restaurants
Buckinghamshire Council ,31.08.2023,16.08.2023,Children's Services,Education & Childrens Services - CS Dir,WM MORRISONS STORE,8.75,0,8.75,"Exp of School, Club & College Activities",Grocery stores
Buckinghamshire Council ,31.08.2023,16.08.2023,Children's Services,Education & Childrens Services - CS Dir,BANK HOUSE B & B,160,0,160,Staff Travelling Expenses,"Hotels, motels & resorts"
Buckinghamshire Council ,31.08.2023,16.08.2023,Children's Services,Education & Childrens Services - CS Dir,AMZNMKTPLACE,39.99,0,39.99,Other Equipment and Materials,Miscellaneous retail
Buckinghamshire Council ,31.08.2023,16.08.2023,Children's Services,Education & Childrens Services - CS Dir,AMZNMKTPLACE,62.97,0,62.97,Other Equipment and Materials,Miscellaneous retail
Buckinghamshire Council ,31.08.2023,16.08.2023,Children's Services,Education & Childrens Services - CS Dir,AMZNMKTPLACE,129.99,0,129.99,Other Equipment and Materials,Miscellaneous retail
Buckinghamshire Council ,31.08.2023,16.08.2023,Children's Services,Education & Childrens Services - CS Dir,AYLESBURY WATERSIDE THEAT,127,0,127,Activities & General Recreation,Restaurants
Buckinghamshire Council ,31.08.2023,16.08.2023,Children's Services,Education & Childrens Services - CS Dir,AMZNMKTPLACE,7.99,0,7.99,Other Personal Needs,Miscellaneous retail
Buckinghamshire Council ,31.08.2023,16.08.2023,"Planning, Growth & Sustainability",AH&R - PGS Dir,SCREWFIX DIR LTD,38.98,0,38.98,Other Equipment and Materials,Timber & building supplies
Buckinghamshire Council ,31.08.2023,16.08.2023,"Planning, Growth & Sustainability",AH&R - PGS Dir,WICKES AYLESBURY,28,0,28,Other Equipment and Materials,Timber & building supplies
Buckinghamshire Council ,31.08.2023,16.08.2023,Communities,Housing & Homelessness & Regulatory Comm,SOHOCOMMERCIAL,76.4,0,76.4,Administrative Equipment & Tools,Misc Industrial supplies
Buckinghamshire Council ,31.08.2023,16.08.2023,Communities,Housing & Homelessness & Regulatory Comm,KINGDOM COFFEE,47.09,0,47.09,General Provisions (Food),Misc Food stores
Buckinghamshire Council ,31.08.2023,16.08.2023,Communities,Housing & Homelessness & Regulatory Comm,WWW.TUDORENVIRONMENTAL,658.67,0,658.67,Seeds & Plants,Lawn & garden supply/nursery
Buckinghamshire Council ,31.08.2023,16.08.2023,Communities,Culture & Leisure - Communities Dir,AMZNMKTPLACE,131.32,0,131.32,Health & Safety Supplies & Services,Miscellaneous retail
Buckinghamshire Council ,31.08.2023,16.08.2023,Adults and Health,Health & Wellbeing - Adults & Health Dir,TESCO STORES 2162,27.99,0,27.99,General Provisions (Food),Grocery stores
Buckinghamshire Council ,31.08.2023,16.08.2023,Communities,Transport - Communities Dir,MAN HCW LTD,40,0,40,Vehicle Hire,Car washes
Buckinghamshire Council ,31.08.2023,16.08.2023,Communities,Transport - Communities Dir,TOOLSTATION LIMITED,95.84,0,95.84,Materials,Timber & building supplies
Buckinghamshire Council ,31.08.2023,16.08.2023,Communities,Culture & Leisure - Communities Dir,AMZ,-3,-0.6,-3.6,Stationery & Office Supplies,Direct sales companies
Buckinghamshire Council ,31.08.2023,16.08.2023,Resources,AH&R - Res Dir,GMO GLOBALSIGN LIM,957.6,0,957.6,Server Hosting,Computer network information services
Buckinghamshire Council ,31.08.2023,16.08.2023,"Planning, Growth & Sustainability",AH&R - PGS Dir,SAINSBURY'S S/MKT,7.25,0,7.25,Purchase.of Refreshments and Food,Grocery stores
Buckinghamshire Council ,31.08.2023,16.08.2023,"Planning, Growth & Sustainability",AH&R - PGS Dir,EDMUNDSON ELECTRICAL,61.7,0,61.7,General Repairs & Maintenance,Electrical parts & equipment
Buckinghamshire Council ,31.08.2023,16.08.2023,Deputy Chief Executive,AH&R- DCE Dir,NEALES TAXIS LTD,64,0,64,Other Personal Needs,Taxicabs & limousines
Buckinghamshire Council ,31.08.2023,16.08.2023,"Planning, Growth & Sustainability",Planning & Regeneration - PGS,TEXTANYWHERE,39,0,39,Computer Consumables,Computer software stores
Buckinghamshire Council ,31.08.2023,16.08.2023,"Planning, Growth & Sustainability",Planning & Regeneration - PGS,CHARTERED ASSOCIATION,345,0,345,Professional Subscriptions re Employees,Colleges & universities
Buckinghamshire Council ,31.08.2023,16.08.2023,Communities,Culture & Leisure - Communities Dir,MY-PICTURE.CO.UK,36.58,7.32,43.9,"Workshop - Materials,Tools & Equipment",Computer software stores
Buckinghamshire Council ,31.08.2023,16.08.2023,Deputy Chief Executive,Communities - DCE,NEW YORK (AYLESBURY) LTD,4.8,0,4.8,General Provisions (Food),Restaurants
Buckinghamshire Council ,31.08.2023,16.08.2023,Adults and Health,Health & Wellbeing - Adults & Health Dir,CO-OPERATIVE FOOD,4.25,0,4.25,Awaiting Coding,Grocery stores
Buckinghamshire Council ,31.08.2023,16.08.2023,Communities,Culture & Leisure - Communities Dir,POST OFFICE COUNTER,24,0,24,General Postage,Postal services
Buckinghamshire Council ,31.08.2023,16.08.2023,Communities,Transport - Communities Dir,TIMPSON LTD,135,0,135,Repair and Maintenance of Equipment,Miscellaneous retail
Buckinghamshire Council ,31.08.2023,16.08.2023,Children's Services,Education & Childrens Services - CS Dir,EDEN CENTRE,1.5,0,1.5,Staff Travelling Expenses,Car parking & garages
Buckinghamshire Council ,31.08.2023,16.08.2023,Children's Services,Education & Childrens Services - CS Dir,ALDI 93 775,47.85,0,47.85,General Provisions (Food),Grocery stores
Buckinghamshire Council ,31.08.2023,16.08.2023,Children's Services,Education & Childrens Services - CS Dir,MCDONALDS 1639,11.5,0,11.5,Subsistence,Restaurants
Buckinghamshire Council ,31.08.2023,16.08.2023,Communities,Climate Change & Environment - Community,PAYPAL,60,0,60,Advertising,Advertising services
Buckinghamshire Council ,31.08.2023,16.08.2023,Communities,Culture & Leisure - Communities Dir,B & Q 1305,14.65,2.93,17.58,Administrative Equipment & Tools,Home supply warehouse stores
Buckinghamshire Council ,31.08.2023,16.08.2023,Communities,Culture & Leisure - Communities Dir,B & Q 1305,0.01,0,0.01,Administrative Equipment & Tools,Home supply warehouse stores
Buckinghamshire Council ,31.08.2023,16.08.2023,Children's Services,Education & Childrens Services - CS Dir,TESCO STORES 2041,150,0,150,Miscellaneous (Other)  Expenses,Grocery stores
Buckinghamshire Council ,31.08.2023,16.08.2023,Children's Services,Education & Childrens Services - CS Dir,ODEON AYLESBURY,3.13,0,3.13,Awaiting Coding,Cinemas
Buckinghamshire Council ,31.08.2023,16.08.2023,Children's Services,Education & Childrens Services - CS Dir,NEXT DIRECTORY,20.95,0,20.95,Awaiting Coding,Family clothing shops
Buckinghamshire Council ,31.08.2023,16.08.2023,Children's Services,Education & Childrens Services - CS Dir,Amazon.co.uk,29.9,0,29.9,Stationery & Office Supplies,Direct sales companies
Buckinghamshire Council ,31.08.2023,16.08.2023,Communities,Communities - Trust Accounts,BOOKER LIMITED ECOM,483.37,0,483.37,Purchase of Food for Re-sale,Grocery stores
Buckinghamshire Council ,31.08.2023,16.08.2023,"Planning, Growth & Sustainability",Planning & Regeneration - PGS,COLYER GROUP LTD,569.6,0,569.6,Printing & Stationery,Computer software stores
Buckinghamshire Council ,31.08.2023,16.08.2023,Children's Services,Education & Childrens Services - CS Dir,ASDA STORES 4501,91.17,0,91.17,General Provisions (Food),Grocery stores
Buckinghamshire Council ,31.08.2023,16.08.2023,Children's Services,Education & Childrens Services - CS Dir,TENDRING_DC_CAR_PARK,7,0,7,Staff Travelling Expenses,Car parking & garages
Buckinghamshire Council ,31.08.2023,16.08.2023,Communities,Climate Change & Environment - Community,ROADWARRIOR,12.19,0,12.19,Computer Support Services,"Programming, data processing & system design"
Buckinghamshire Council ,31.08.2023,16.08.2023,Communities,Climate Change & Environment - Community,AMZNMktplace,24.99,0,24.99,Awaiting Coding,Miscellaneous retail
Buckinghamshire Council ,31.08.2023,16.08.2023,Communities,Climate Change & Environment - Community,ROADWARRIOR,12.19,0,12.19,Computer Support Services,"Programming, data processing & system design"
Buckinghamshire Council ,31.08.2023,16.08.2023,Communities,Climate Change & Environment - Community,AMZNMktplace,6.3,0,6.3,Awaiting Coding,Miscellaneous retail
Buckinghamshire Council ,31.08.2023,16.08.2023,Adults and Health,Health & Wellbeing - Adults & Health Dir,AMZNMKTPLACE,5.58,1.4,6.98,Other Supplies,Miscellaneous retail
Buckinghamshire Council ,31.08.2023,16.08.2023,"Planning, Growth & Sustainability",Housing & Homelessness & Regulatory PGS,BT BUSINESS BILL,156.07,0,156.07,Telephones,Phone services
Buckinghamshire Council ,31.08.2023,16.08.2023,"Planning, Growth & Sustainability",Housing & Homelessness & Regulatory PGS,SP SCAMP AND DUDE,250,0,250,Long Service Awards,Family clothing shops
Buckinghamshire Council ,31.08.2023,16.08.2023,Children's Services,Education & Childrens Services - CS Dir,COSTA COFFEE 43011639,6.58,1.32,7.9,Activities Programme,Fast food restaurants
Buckinghamshire Council ,31.08.2023,16.08.2023,Communities,Communities - Trading Accounts,DVLA VEHICLE TAX,365,0,365,Vehicle Taxation Costs,Tax payments
Buckinghamshire Council ,31.08.2023,16.08.2023,Communities,Communities - Trading Accounts,DVLA VEHICLE TAX,165,0,165,Vehicle Taxation Costs,Tax payments
Buckinghamshire Council ,31.08.2023,16.08.2023,Communities,Communities - Trading Accounts,DVLA VEHICLE TAX,180,0,180,Vehicle Taxation Costs,Tax payments
Buckinghamshire Council ,31.08.2023,16.08.2023,Adults and Health,Health & Wellbeing - Adults & Health Dir,THE TAXI PEOPLE,45,0,45,Other Short Term Support,Taxicabs & limousines
Buckinghamshire Council ,31.08.2023,16.08.2023,"Planning, Growth & Sustainability",Climate Change & Environment - PGS,WWW.SCREWFIX.COM,131.35,0,131.35,General Repairs & Maintenance,Timber & building supplies
Buckinghamshire Council ,31.08.2023,15.08.2023,"Planning, Growth & Sustainability",Housing & Homelessness & Regulatory PGS,AMZNMKTPLACE,23.77,0,23.77,Miscellaneous (Other)  Expenses,Miscellaneous retail
Buckinghamshire Council ,31.08.2023,15.08.2023,"Planning, Growth & Sustainability",Planning & Regeneration - PGS,AMZNMKTPLACE,130.53,0,130.53,IT Equipment Purchase,Miscellaneous retail
Buckinghamshire Council ,31.08.2023,15.08.2023,Adults and Health,Health & Wellbeing - Adults & Health Dir,ASDA GROCERIES ONLINE,54.13,0,54.13,Awaiting Coding,Grocery stores
Buckinghamshire Council ,31.08.2023,15.08.2023,Children's Services,Education & Childrens Services - CS Dir,TRAINLINE,15.06,0,15.06,Sec 20/31: Supp for Contact,Passenger railways
Buckinghamshire Council ,31.08.2023,15.08.2023,Children's Services,Education & Childrens Services - CS Dir,CARDS DIRECT AYLESBURY,1.58,0,1.58,"Exp of School, Club & College Activities",Stationery & office supplies
Buckinghamshire Council ,31.08.2023,15.08.2023,Deputy Chief Executive,Communities - DCE,WWW.ARGOS.CO.UK,290.79,58.16,348.95,Other Personal Needs,Department stores
Buckinghamshire Council ,31.08.2023,15.08.2023,Deputy Chief Executive,Communities - DCE,WWW.ARGOS.CO.UK,290.79,58.16,348.95,Other Personal Needs,Department stores
Buckinghamshire Council ,31.08.2023,15.08.2023,Deputy Chief Executive,Communities - DCE,WWW.ARGOS.CO.UK,290.79,58.16,348.95,Other Personal Needs,Department stores
Buckinghamshire Council ,31.08.2023,15.08.2023,Deputy Chief Executive,Communities - DCE,WWW.ARGOS.CO.UK,56.2,11.24,67.44,Other Personal Needs,Department stores
Buckinghamshire Council ,31.08.2023,15.08.2023,Deputy Chief Executive,Communities - DCE,WWW.ARGOS.CO.UK,0.01,0,0.01,Other Personal Needs,Department stores
Buckinghamshire Council ,31.08.2023,15.08.2023,Deputy Chief Executive,Communities - DCE,AO RETAIL LIMITED,723.33,144.67,868,Other Personal Needs,Household appliance stores
Buckinghamshire Council ,31.08.2023,15.08.2023,Deputy Chief Executive,Communities - DCE,AO RETAIL LIMITED,726.66,145.34,872,Other Personal Needs,Household appliance stores
Buckinghamshire Council ,31.08.2023,15.08.2023,Deputy Chief Executive,Communities - DCE,WWW.ARGOS.CO.UK,44.1,8.82,52.92,Other Personal Needs,Department stores
Buckinghamshire Council ,31.08.2023,15.08.2023,Deputy Chief Executive,Communities - DCE,WWW.ARGOS.CO.UK,0.03,0,0.03,Other Personal Needs,Department stores
Buckinghamshire Council ,31.08.2023,15.08.2023,Deputy Chief Executive,Communities - DCE,AO RETAIL LIMITED,726.66,145.34,872,Other Personal Needs,Household appliance stores
Buckinghamshire Council ,31.08.2023,15.08.2023,Deputy Chief Executive,Communities - DCE,AO RETAIL LIMITED,709.99,142.01,852,Other Personal Needs,Household appliance stores
Buckinghamshire Council ,31.08.2023,15.08.2023,Deputy Chief Executive,Communities - DCE,TESCO SUBSCRIPTION,-83.88,0,-83.88,Other Personal Needs,Continuous subscriptions
Buckinghamshire Council ,31.08.2023,15.08.2023,Children's Services,Education & Childrens Services - CS Dir,BUCKINGHAM HOTELS,"1,575.00",315,"1,890.00",Sec 17: Accommodation,"Hotels, motels & resorts"
Buckinghamshire Council ,31.08.2023,15.08.2023,Children's Services,Education & Childrens Services - CS Dir,ASDA STORES LTD,30,0,30,Leaving Care - Grants for Care Leavers,Grocery stores
Buckinghamshire Council ,31.08.2023,15.08.2023,Children's Services,Education & Childrens Services - CS Dir,A1 TAXI SERVICE,320,64,384,Sec 20/31: Transport,Taxicabs & limousines
Buckinghamshire Council ,31.08.2023,15.08.2023,Communities,Transport - Communities Dir,AMZNMKTPLACE,7.99,0,7.99,Materials,Miscellaneous retail
Buckinghamshire Council ,31.08.2023,15.08.2023,"Planning, Growth & Sustainability",Leader - PGS,CRESSEX EMBROIDERY LIMIT,90,0,90,Professional Services (non curriculum) - External,"Commercial photo, art & graphic"
Buckinghamshire Council ,31.08.2023,15.08.2023,Deputy Chief Executive,AH&R- DCE Dir,AMZNMKTPLACE,12.96,0,12.96,Other Personal Needs,Miscellaneous retail
Buckinghamshire Council ,31.08.2023,15.08.2023,Deputy Chief Executive,AH&R- DCE Dir,AMZNMKTPLACE,12.96,0,12.96,Other Personal Needs,Miscellaneous retail
Buckinghamshire Council ,31.08.2023,15.08.2023,Deputy Chief Executive,AH&R- DCE Dir,AMZNMKTPLACE,12.96,0,12.96,Other Personal Needs,Miscellaneous retail
Buckinghamshire Council ,31.08.2023,15.08.2023,Communities,Partnerships - Communities,QUOTE.MARKELUK.COM,100.8,0,100.8,Professional Services (non curriculum) - External,"Insurance sales, underwritering, premiums"
Buckinghamshire Council ,31.08.2023,15.08.2023,Children's Services,Education & Childrens Services - CS Dir,NISA LOCAL,4.5,0,4.5,Consumable Supplies,Grocery stores
Buckinghamshire Council ,31.08.2023,15.08.2023,Children's Services,Education & Childrens Services - CS Dir,A1 TAXILINE,18,0,18,Staff Travelling Expenses,Taxicabs & limousines
Buckinghamshire Council ,31.08.2023,15.08.2023,Children's Services,Education & Childrens Services - CS Dir,SQ *ACE FACE PAINTING,708.75,0,708.75,Consumable Supplies,Hairdresser and beauty shops
Buckinghamshire Council ,31.08.2023,15.08.2023,Children's Services,Education & Childrens Services - CS Dir,TESCO GIFT CARD,100,0,100,Consumable Supplies,Grocery stores
Buckinghamshire Council ,31.08.2023,15.08.2023,"Planning, Growth & Sustainability",Planning & Regeneration - PGS,CHARTERED ASSOCIATION,255,0,255,Professional Subscriptions re Employees,Colleges & universities
Buckinghamshire Council ,31.08.2023,15.08.2023,"Planning, Growth & Sustainability",Planning & Regeneration - PGS,CHARTERED ASSOCIATION,330,0,330,Professional Subscriptions re Employees,Colleges & universities
Buckinghamshire Council ,31.08.2023,15.08.2023,"Planning, Growth & Sustainability",Planning & Regeneration - PGS,CHARTERED ASSOCIATION,330,0,330,Professional Subscriptions re Employees,Colleges & universities
Buckinghamshire Council ,31.08.2023,15.08.2023,"Planning, Growth & Sustainability",Planning & Regeneration - PGS,CHARTERED ASSOCIATION,318,0,318,Professional Subscriptions re Employees,Colleges & universities
Buckinghamshire Council ,31.08.2023,15.08.2023,Deputy Chief Executive,Communities - DCE,RINGGO PARKING,2.25,0,2.25,Staff Travelling Expenses,Car parking & garages
Buckinghamshire Council ,31.08.2023,15.08.2023,Children's Services,Education & Childrens Services - CS Dir,AMZNMktplace,22.99,0,22.99,Awaiting Coding,Miscellaneous retail
Buckinghamshire Council ,31.08.2023,15.08.2023,Children's Services,Education & Childrens Services - CS Dir,AMZNMktplace,6.66,0,6.66,Awaiting Coding,Miscellaneous retail
Buckinghamshire Council ,31.08.2023,15.08.2023,Children's Services,Partnerships - Children's Services,HOLIDAY INN,137.1,0,137.1,"Courses, Conference and Seminar Fees","Hotels, motels & resorts"
Buckinghamshire Council ,31.08.2023,15.08.2023,Children's Services,Education & Childrens Services - CS Dir,CO-OP GROUP FOOD,10.95,0,10.95,Other Equipment and Materials,Grocery stores
Buckinghamshire Council ,31.08.2023,15.08.2023,Adults and Health,Health & Wellbeing - Adults & Health Dir,TRAVELODGE GB0000,791.93,0,791.93,Other Short Term Support,Travelodge
Buckinghamshire Council ,31.08.2023,15.08.2023,Children's Services,Education & Childrens Services - CS Dir,SLOUGH B/C ATP,22,0,22,Sec 20/31: Financial Assistance One Off,Government services
Buckinghamshire Council ,31.08.2023,15.08.2023,Children's Services,Education & Childrens Services - CS Dir,PREMIER INN,113.5,0,113.5,Sec 20/31: Financial Assistance,Premier Inn
Buckinghamshire Council ,31.08.2023,15.08.2023,Children's Services,Education & Childrens Services - CS Dir,PREMIER INN,113.5,0,113.5,Sec 20/31: Financial Assistance,Premier Inn
Buckinghamshire Council ,31.08.2023,15.08.2023,Resources,AH&R - Res Dir,PAYPAL,8.4,0,8.4,IT - Computer Network Charges,Computer network information services
Buckinghamshire Council ,31.08.2023,15.08.2023,Resources,AH&R - Res Dir,AMZNMKTPLACE,129.99,0,129.99,Miscellaneous (Other)  Expenses,Miscellaneous retail
Buckinghamshire Council ,31.08.2023,15.08.2023,Communities,Climate Change & Environment - Community,WWW.HAYMARKET.COM,657,0,657,Subscriptions to National Bodies,Membership organisations
Buckinghamshire Council ,31.08.2023,15.08.2023,Communities,Climate Change & Environment - Community,WWW.HAYMARKET.COM,"2,787.00",0,"2,787.00",Subscriptions to National Bodies,Membership organisations
Buckinghamshire Council ,31.08.2023,15.08.2023,Resources,AH&R - Res Dir,C2E862801406T UKVI,"1,199.00",0,"1,199.00",Professional Services (non curriculum) - External,Government services
Buckinghamshire Council ,31.08.2023,15.08.2023,Communities,Partnerships - Communities,PRINCE GEORGE,35.26,0,35.26,Subsistence,"Bars, taverns, pubs & nightclubs"
Buckinghamshire Council ,31.08.2023,15.08.2023,Adults and Health,Communities - Adults & Health,AMZNMKTPLACE,209.7,0,209.7,Project Work and Project Management Costs,Miscellaneous retail
Buckinghamshire Council ,31.08.2023,15.08.2023,Adults and Health,Communities - Adults & Health,AMZNMKTPLACE,69.9,0,69.9,Project Work and Project Management Costs,Miscellaneous retail
Buckinghamshire Council ,31.08.2023,15.08.2023,Resources,AH&R - Res Dir,WWW.ARGOS.CO.UK,-260,0,-260,Leaving Care - Grants for Care Leavers,Department stores
Buckinghamshire Council ,31.08.2023,15.08.2023,Children's Services,Education & Childrens Services - CS Dir,AO RETAIL LIMITED,953,0,953,Leaving Care - Grants for Care Leavers,Household appliance stores
Buckinghamshire Council ,31.08.2023,15.08.2023,Communities,Communities - Trust Accounts,WEXHAM MOWER SVCS,186.62,0,186.62,Vehicle Running Costs,Lawn & garden supply/nursery
Buckinghamshire Council ,31.08.2023,15.08.2023,Communities,Communities - Trust Accounts,WICKES SLOUGH,34,0,34,General Repairs & Maintenance,Timber & building supplies
Buckinghamshire Council ,31.08.2023,15.08.2023,"Planning, Growth & Sustainability",AH&R - PGS Dir,GWR DIDCOT PKWY TO,85.3,0,85.3,Staff Travelling Expenses,Passenger railways
Buckinghamshire Council ,31.08.2023,15.08.2023,Children's Services,Education & Childrens Services - CS Dir,VOUCHER EXPRESS,50,0,50,Sec 20/31: Financial Assistance,Misc business services
Buckinghamshire Council ,31.08.2023,15.08.2023,Communities,Transport - Communities Dir,Under Armour,89,0,89,Awaiting Coding,Sporting goods shops
Buckinghamshire Council ,31.08.2023,15.08.2023,Communities,Transport - Communities Dir,SHELL 40-42 WOODSIDE ROAD,3.99,0,3.99,Petrol,Service stations
Buckinghamshire Council ,31.08.2023,15.08.2023,Communities,Communities - Trading Accounts,DVLA VEHICLE TAX,325,0,325,Vehicle Taxation Costs,Tax payments
Buckinghamshire Council ,31.08.2023,15.08.2023,Communities,Communities - Trading Accounts,DVLA VEHICLE TAX,320,0,320,Vehicle Taxation Costs,Tax payments
Buckinghamshire Council ,31.08.2023,15.08.2023,Communities,Communities - Trading Accounts,DVLA VEHICLE TAX,165,0,165,Vehicle Taxation Costs,Tax payments
Buckinghamshire Council ,31.08.2023,15.08.2023,Communities,Communities - Trading Accounts,DVLA VEHICLE TAX,320,0,320,Vehicle Taxation Costs,Tax payments
Buckinghamshire Council ,31.08.2023,15.08.2023,Communities,Communities - Trading Accounts,DVLA VEHICLE TAX,165,0,165,Vehicle Taxation Costs,Tax payments
Buckinghamshire Council ,31.08.2023,15.08.2023,"Planning, Growth & Sustainability",Special Expenses,WWW.ARGOS.CO.UK,36,0,36,Equipment,Department stores
Buckinghamshire Council ,31.08.2023,15.08.2023,Children's Services,Education & Childrens Services - CS Dir,PASSAGE HOUSE HOTEL,121.5,0,121.5,Sec 20/31: Dir Work with Children,"Hotels, motels & resorts"
Buckinghamshire Council ,31.08.2023,15.08.2023,Children's Services,Education & Childrens Services - CS Dir,TRAINLINE,96.9,0,96.9,Sec 20/31: Transport,Passenger railways
Buckinghamshire Council ,31.08.2023,15.08.2023,Children's Services,Education & Childrens Services - CS Dir,TRAINLINE,96.9,0,96.9,Sec 20/31: Transport,Passenger railways
Buckinghamshire Council ,31.08.2023,14.08.2023,Deputy Chief Executive,Communities - DCE,TESCO SUBSCRIPTION,83.88,0,83.88,Other Personal Needs,Continuous subscriptions
Buckinghamshire Council ,31.08.2023,14.08.2023,Adults and Health,Health & Wellbeing - Adults & Health Dir,WAITROSE 177,6.5,0,6.5,Awaiting Coding,Grocery stores
Buckinghamshire Council ,31.08.2023,14.08.2023,Communities,Culture & Leisure - Communities Dir,SAINSBURYS S/MKTS,27.45,0,27.45,Events Expenditure,Grocery stores
Buckinghamshire Council ,31.08.2023,14.08.2023,Communities,Culture & Leisure - Communities Dir,WAITROSE 192,3,0,3,Events Expenditure,Grocery stores
Buckinghamshire Council ,31.08.2023,14.08.2023,Communities,Climate Change & Environment - Community,SAS EVENT AND ASSOCIATION,570,114,684,Other Employees Expenses,Misc business services
Buckinghamshire Council ,31.08.2023,14.08.2023,Children's Services,Education & Childrens Services - CS Dir,SP A1 EQUIPMENT LTD,57.36,0,57.36,Events Expenditure,Misc. general merchandise
Buckinghamshire Council ,31.08.2023,14.08.2023,Children's Services,Education & Childrens Services - CS Dir,WHOLESALE SWEETS,79.99,16,95.99,Events Expenditure,Misc. general merchandise
Buckinghamshire Council ,31.08.2023,14.08.2023,Children's Services,Education & Childrens Services - CS Dir,TESCO STORES 2041,37.83,0,37.83,General Repairs & Maintenance,Grocery stores
Buckinghamshire Council ,31.08.2023,14.08.2023,Children's Services,Education & Childrens Services - CS Dir,SPORTSDIRECT 210,29.99,0,29.99,General Repairs & Maintenance,Sporting goods shops
Buckinghamshire Council ,31.08.2023,14.08.2023,Deputy Chief Executive,Communities - DCE,AO RETAIL LIMITED,810.83,162.17,973,Other Personal Needs,Household appliance stores
Buckinghamshire Council ,31.08.2023,14.08.2023,Deputy Chief Executive,Communities - DCE,AO RETAIL LIMITED,726.66,145.34,872,Other Personal Needs,Household appliance stores
Buckinghamshire Council ,31.08.2023,14.08.2023,Deputy Chief Executive,Communities - DCE,AO RETAIL LIMITED,435.83,87.17,523,Other Personal Needs,Household appliance stores
Buckinghamshire Council ,31.08.2023,14.08.2023,Deputy Chief Executive,Communities - DCE,WWW.ARGOS.CO.UK,436.6,87.32,523.92,Other Personal Needs,Department stores
Buckinghamshire Council ,31.08.2023,14.08.2023,Deputy Chief Executive,Communities - DCE,WWW.ARGOS.CO.UK,0.03,0,0.03,Other Personal Needs,Department stores
Buckinghamshire Council ,31.08.2023,14.08.2023,Children's Services,Education & Childrens Services - CS Dir,NEALES TAXIS LTD,180,0,180,Staff Travelling Expenses,Taxicabs & limousines
Buckinghamshire Council ,31.08.2023,14.08.2023,Children's Services,Education & Childrens Services - CS Dir,UNILINK SOFTWARE LTD,10,0,10,Leaving Care  - Financial Assistance,Computer software stores
Buckinghamshire Council ,31.08.2023,14.08.2023,Children's Services,Education & Childrens Services - CS Dir,TRAINLINE.COM,20.56,0,20.56,Leaving Care - Transport,Passenger railways
Buckinghamshire Council ,31.08.2023,14.08.2023,Children's Services,Education & Childrens Services - CS Dir,BUCKINGHAMSHIRE CNCL,11,0,11,Leaving Care  - Financial Assistance,Government services
Buckinghamshire Council ,31.08.2023,14.08.2023,Children's Services,Education & Childrens Services - CS Dir,AMAZON PRIME,8.99,0,8.99,Stationery & Office Supplies,Continuous subscriptions
Buckinghamshire Council ,31.08.2023,14.08.2023,Children's Services,Education & Childrens Services - CS Dir,EASYJET,169.98,0,169.98,Staff Travelling Expenses,Easyjet
Buckinghamshire Council ,31.08.2023,14.08.2023,"Planning, Growth & Sustainability",AH&R - PGS Dir,Dulux Decorator Centre,44.39,0,44.39,Awaiting Coding,"Paint, varnishes & supplies"
Buckinghamshire Council ,31.08.2023,14.08.2023,Resources,AH&R - Res Dir,GEN REGISTER OFFICE,14,0,14,Miscellaneous (Other)  Expenses,Government services
Buckinghamshire Council ,31.08.2023,14.08.2023,Children's Services,Education & Childrens Services - CS Dir,SAINSBURYS SUPERMA,119.34,0,119.34,YOS - Direct Work,Grocery stores
Buckinghamshire Council ,31.08.2023,14.08.2023,Communities,Transport - Communities Dir,HALFORDS AUTOCENTRES LIMI,124.99,0,124.99,Vehicle Hire,Auto servicing
Buckinghamshire Council ,31.08.2023,14.08.2023,Communities,Transport - Communities Dir,HALFORDS AUTOCENTRES LIMI,124.99,0,124.99,Vehicle Hire,Auto servicing
Buckinghamshire Council ,31.08.2023,14.08.2023,Adults and Health,Health & Wellbeing - Adults & Health Dir,AMZNMKTPLACE,43.67,0,43.67,Awaiting Coding,Miscellaneous retail
Buckinghamshire Council ,31.08.2023,14.08.2023,Deputy Chief Executive,AH&R- DCE Dir,EVENT* NO5 CHAMBERS,216,0,216,"Courses, Conference and Seminar Fees",Computer software stores
Buckinghamshire Council ,31.08.2023,14.08.2023,"Planning, Growth & Sustainability",AH&R - PGS Dir,WWW.SCREWFIX.COM,34.54,6.91,41.45,Security & Safety Supplies & Equipment,Timber & building supplies
Buckinghamshire Council ,31.08.2023,14.08.2023,Communities,Housing & Homelessness & Regulatory Comm,E.ON NEXT,5.63,0,5.63,Electricity,Utilities
Buckinghamshire Council ,31.08.2023,14.08.2023,"Planning, Growth & Sustainability",AH&R - PGS Dir,SCREWFIX DIR LTD,16.18,0,16.18,General Repairs & Maintenance,Timber & building supplies
Buckinghamshire Council ,31.08.2023,14.08.2023,Deputy Chief Executive,AH&R- DCE Dir,REMOVALS B2U,300,0,300,Other Personal Needs,Transportation services
Buckinghamshire Council ,31.08.2023,14.08.2023,Deputy Chief Executive,Communities - DCE,AMAZON.CO.UK,9.25,0,9.25,Administrative Equipment & Tools,Direct sales companies
Buckinghamshire Council ,31.08.2023,14.08.2023,Adults and Health,Health & Wellbeing - Adults & Health Dir,THARA STORES LTD,4.6,0,4.6,General Provisions (Food),Grocery stores
Buckinghamshire Council ,31.08.2023,14.08.2023,Adults and Health,Health & Wellbeing - Adults & Health Dir,AL-KHIR GROCERS,9.99,0,9.99,General Provisions (Food),Grocery stores
Buckinghamshire Council ,31.08.2023,14.08.2023,Adults and Health,Health & Wellbeing - Adults & Health Dir,AL-KHIR GROCERS,22.99,0,22.99,General Provisions (Food),Grocery stores
Buckinghamshire Council ,31.08.2023,14.08.2023,Children's Services,Education & Childrens Services - CS Dir,Lebara Mobile Limited,25,0,25,Computer Support Services,Computer network information services
Buckinghamshire Council ,31.08.2023,14.08.2023,Children's Services,Education & Childrens Services - CS Dir,TRAVELODGE GB0000,781.77,0,781.77,Sec 17: Accommodation,Travelodge
Buckinghamshire Council ,31.08.2023,14.08.2023,Communities,Climate Change & Environment - Community,AMZNMKTPLACE,12.97,0,12.97,Waste Prevention costs,Miscellaneous retail
Buckinghamshire Council ,31.08.2023,14.08.2023,Children's Services,Education & Childrens Services - CS Dir,AMAZON.CO.UK,100,0,100,Stationery & Office Supplies,Direct sales companies
Buckinghamshire Council ,31.08.2023,14.08.2023,Children's Services,Education & Childrens Services - CS Dir,HM PASSPORT OFFICE,53.5,0,53.5,Sec 20/31: Financial Assistance,Government services
Buckinghamshire Council ,31.08.2023,14.08.2023,Children's Services,Education & Childrens Services - CS Dir,WM MORRISONS STORE,16.08,0,16.08,Activities & General Recreation,Grocery stores
Buckinghamshire Council ,31.08.2023,14.08.2023,Resources,AH&R - Res Dir,C2E862700596U UKVI,"1,199.00",0,"1,199.00",Professional Services (non curriculum) - External,Government services
Buckinghamshire Council ,31.08.2023,14.08.2023,"Planning, Growth & Sustainability",AH&R - PGS Dir,WWW.MONEYCLAIM.GOV,83,0,83,Court Fees,Government services
Buckinghamshire Council ,31.08.2023,14.08.2023,"Planning, Growth & Sustainability",AH&R - PGS Dir,WWW.MONEYCLAIM.GOV,108,0,108,Court Fees,Government services
Buckinghamshire Council ,31.08.2023,14.08.2023,"Planning, Growth & Sustainability",AH&R - PGS Dir,WWW.MONEYCLAIM.GOV,"1,326.51",0,"1,326.51",Court Fees,Government services
Buckinghamshire Council ,31.08.2023,14.08.2023,Communities,Partnerships - Communities,Amazon.co.uk,-11.98,0,-11.98,Awaiting Coding,Miscellaneous retail
Buckinghamshire Council ,31.08.2023,14.08.2023,Adults and Health,Health & Wellbeing - Adults & Health Dir,TESCO STORES 5135,147.59,0,147.59,General Provisions (Food),Grocery stores
Buckinghamshire Council ,31.08.2023,14.08.2023,"Planning, Growth & Sustainability",Planning & Regeneration - PGS,TRAINLINE,16.5,0,16.5,Staff Travelling Expenses,Passenger railways
Buckinghamshire Council ,31.08.2023,14.08.2023,Communities,Leader - PGS,MAILCHIMP,49.77,0,49.77,Software Support,
Buckinghamshire Council ,31.08.2023,14.08.2023,Adults and Health,Health & Wellbeing - Adults & Health Dir,TESCO STORES 5135,90.8,0,90.8,Awaiting Coding,Grocery stores
Buckinghamshire Council ,31.08.2023,14.08.2023,Adults and Health,Health & Wellbeing - Adults & Health Dir,AMZNMktplace,32.57,0,32.57,Awaiting Coding,Miscellaneous retail
Buckinghamshire Council ,31.08.2023,14.08.2023,Communities,Partnerships - Communities,BT PLC BUSINESS MOTO BPAY,64,12.8,76.8,Telephones,Phone services
Buckinghamshire Council ,31.08.2023,14.08.2023,Communities,Partnerships - Communities,BT PLC BUSINESS MOTO BPAY,0.01,0,0.01,Telephones,Phone services
Buckinghamshire Council ,31.08.2023,14.08.2023,Deputy Chief Executive,AH&R- DCE Dir,PLAZA CARS,16,0,16,Staff Travelling Expenses,Taxicabs & limousines
Buckinghamshire Council ,31.08.2023,14.08.2023,Deputy Chief Executive,AH&R- DCE Dir,PAYPAL,142.95,0,142.95,Miscellaneous (Other)  Expenses,Variety stores
Buckinghamshire Council ,31.08.2023,14.08.2023,Deputy Chief Executive,AH&R- DCE Dir,PAYPAL,706.48,141.26,847.74,Miscellaneous (Other)  Expenses,Variety stores
Buckinghamshire Council ,31.08.2023,14.08.2023,Deputy Chief Executive,AH&R- DCE Dir,PAYPAL,"1,089.96",217.99,"1,307.95",Miscellaneous (Other)  Expenses,Variety stores
Buckinghamshire Council ,31.08.2023,14.08.2023,Deputy Chief Executive,AH&R- DCE Dir,PAYPAL,18,0,18,Miscellaneous (Other)  Expenses,Variety stores
Buckinghamshire Council ,31.08.2023,14.08.2023,Deputy Chief Executive,AH&R- DCE Dir,PAYPAL,337.5,67.5,405,Miscellaneous (Other)  Expenses,Variety stores
Buckinghamshire Council ,31.08.2023,13.08.2023,Communities,Culture & Leisure - Communities Dir,AMAZON.CO.UK,16.36,3.28,19.64,"Workshop - Materials,Tools & Equipment",Direct sales companies
Buckinghamshire Council ,31.08.2023,13.08.2023,Communities,Culture & Leisure - Communities Dir,AMZNMKTPLACE,12.2,2.44,14.64,Administrative Equipment & Tools,Miscellaneous retail
Buckinghamshire Council ,31.08.2023,13.08.2023,Communities,Culture & Leisure - Communities Dir,AMZNMKTPLACE,0.01,0,0.01,Administrative Equipment & Tools,Miscellaneous retail
Buckinghamshire Council ,31.08.2023,13.08.2023,Communities,Culture & Leisure - Communities Dir,AMZNMKTPLACE,5.15,1.03,6.18,Administrative Equipment & Tools,Miscellaneous retail
Buckinghamshire Council ,31.08.2023,13.08.2023,Communities,Culture & Leisure - Communities Dir,AMZNMKTPLACE,0.02,0,0.02,Administrative Equipment & Tools,Miscellaneous retail
Buckinghamshire Council ,31.08.2023,13.08.2023,Children's Services,Education & Childrens Services - CS Dir,AMZNMKTPLACE,67.42,0,67.42,Consumable Supplies,Miscellaneous retail
Buckinghamshire Council ,31.08.2023,13.08.2023,Children's Services,Education & Childrens Services - CS Dir,WM MORRISONS STORE,28.79,0,28.79,General Provisions (Food),Grocery stores
Buckinghamshire Council ,31.08.2023,13.08.2023,Deputy Chief Executive,AH&R- DCE Dir,CLOUDFLARE,207.37,0,207.37,Computer Consumables,Computer software stores
Buckinghamshire Council ,31.08.2023,13.08.2023,Children's Services,Education & Childrens Services - CS Dir,AMZNMKTPLACE,260.61,0,260.61,Activities & General Recreation,Miscellaneous retail
Buckinghamshire Council ,31.08.2023,13.08.2023,Resources,AH&R - Res Dir,LINKEDIN ADS 9316308084,71.34,0,71.34,Permanent Recruitment Costs,Advertising services
Buckinghamshire Council ,31.08.2023,13.08.2023,Deputy Chief Executive,AH&R- DCE Dir,OPTIMAL WORKSHOP,202.49,0,202.49,Computer Consumables,Computer software stores
Buckinghamshire Council ,31.08.2023,13.08.2023,Children's Services,Education & Childrens Services - CS Dir,UBER   *EATS,29.9,0,29.9,Subsistence,Restaurants
Buckinghamshire Council ,31.08.2023,12.08.2023,Children's Services,Education & Childrens Services - CS Dir,MAILCHIMP,214.34,0,214.34,Service Development,
Buckinghamshire Council ,31.08.2023,12.08.2023,Children's Services,Education & Childrens Services - CS Dir,AMZNMKTPLACE,580.03,0,580.03,"Books, Records, Films & Oth Publications",Miscellaneous retail
Buckinghamshire Council ,31.08.2023,12.08.2023,Children's Services,Education & Childrens Services - CS Dir,PIZZA EXPRESS REST,220.5,0,220.5,Activities & General Recreation,Restaurants
Buckinghamshire Council ,31.08.2023,12.08.2023,Children's Services,Education & Childrens Services - CS Dir,POUNDLAND LTD - 1706,14,0,14,Activities Programme,Discount stores
Buckinghamshire Council ,31.08.2023,12.08.2023,Children's Services,Education & Childrens Services - CS Dir,HOBBYCRAFT,8.33,1.67,10,Activities Programme,Art & craft shops
Buckinghamshire Council ,31.08.2023,12.08.2023,Adults and Health,Health & Wellbeing - Adults & Health Dir,TESCO SUBSCRIPTION,7.99,0,7.99,Stationery & Office Supplies,Continuous subscriptions
Buckinghamshire Council ,31.08.2023,11.08.2023,"Planning, Growth & Sustainability",AH&R - PGS Dir,AMAZON.CO.UK,43.99,0,43.99,Protective Clothing & Uniforms,Direct sales companies
Buckinghamshire Council ,31.08.2023,11.08.2023,Children's Services,Education & Childrens Services - CS Dir,AMZNMKTPLACE,102.34,0,102.34,Consumable Supplies,Miscellaneous retail
Buckinghamshire Council ,31.08.2023,11.08.2023,Deputy Chief Executive,AH&R- DCE Dir,PAYPAL,519.15,103.83,622.98,Miscellaneous (Other)  Expenses,Electronics shops
Buckinghamshire Council ,31.08.2023,11.08.2023,Deputy Chief Executive,AH&R- DCE Dir,PAYPAL,0.02,0,0.02,Miscellaneous (Other)  Expenses,Electronics shops
Buckinghamshire Council ,31.08.2023,11.08.2023,Deputy Chief Executive,AH&R- DCE Dir,PAYPAL,477.5,95.5,573,Miscellaneous (Other)  Expenses,Electronics shops
Buckinghamshire Council ,31.08.2023,11.08.2023,Deputy Chief Executive,AH&R- DCE Dir,PAYPAL,332.95,0,332.95,Miscellaneous (Other)  Expenses,Variety stores
Buckinghamshire Council ,31.08.2023,11.08.2023,Deputy Chief Executive,AH&R- DCE Dir,PAYPAL,294,0,294,Miscellaneous (Other)  Expenses,Electronics shops
Buckinghamshire Council ,31.08.2023,11.08.2023,Children's Services,Education & Childrens Services - CS Dir,LYNKPAY* 001 TAXIS,118.45,0,118.45,Sec 20/31: Supp for Contact,
Buckinghamshire Council ,31.08.2023,11.08.2023,Deputy Chief Executive,Communities - DCE,AO RETAIL LIMITED,215.83,43.17,259,Other Personal Needs,Household appliance stores
Buckinghamshire Council ,31.08.2023,11.08.2023,Deputy Chief Executive,Communities - DCE,AO RETAIL LIMITED,215.83,43.17,259,Other Personal Needs,Household appliance stores
Buckinghamshire Council ,31.08.2023,11.08.2023,Deputy Chief Executive,Communities - DCE,AO RETAIL LIMITED,556.66,111.34,668,Other Personal Needs,Household appliance stores
Buckinghamshire Council ,31.08.2023,11.08.2023,Deputy Chief Executive,Communities - DCE,AO RETAIL LIMITED,240.83,48.17,289,Other Personal Needs,Household appliance stores
Buckinghamshire Council ,31.08.2023,11.08.2023,Deputy Chief Executive,Communities - DCE,AO RETAIL LIMITED,220,44,264,Other Personal Needs,Household appliance stores
Buckinghamshire Council ,31.08.2023,11.08.2023,Deputy Chief Executive,Communities - DCE,AO RETAIL LIMITED,220,44,264,Other Personal Needs,Household appliance stores
Buckinghamshire Council ,31.08.2023,11.08.2023,Children's Services,Education & Childrens Services - CS Dir,WWW.IQSTUDENTACCOMMODATI,"1,075.00",0,"1,075.00",Leaving Care - Higher Education Supp,Estate Agents & Property Management
Buckinghamshire Council ,31.08.2023,11.08.2023,Children's Services,Education & Childrens Services - CS Dir,TRAINLINE.COM,108.15,0,108.15,Sec 20/31: Supp for Contact,Passenger railways
Buckinghamshire Council ,31.08.2023,11.08.2023,Deputy Chief Executive,AH&R- DCE Dir,DUNELM LTD,205,0,205,Other Personal Needs,Drapery & upholstery shops
Buckinghamshire Council ,31.08.2023,11.08.2023,Adults and Health,Health & Wellbeing - Adults & Health Dir,BRITISH DYSLEXIA ASSOC,540,0,540,Outwork Payments,Charitable organisations
Buckinghamshire Council ,31.08.2023,11.08.2023,Children's Services,Education & Childrens Services - CS Dir,POST OFFICE COUNTER,26.4,0,26.4,General Postage,Postal services
Buckinghamshire Council ,31.08.2023,11.08.2023,Children's Services,Education & Childrens Services - CS Dir,ZIGZAG GLOBAL,4.99,0,4.99,General Postage,Courier services / freight forwarders
Buckinghamshire Council ,31.08.2023,11.08.2023,Children's Services,Education & Childrens Services - CS Dir,HELLFIRECAVES.CO.UK,22.5,0,22.5,YOS - Direct Work,Misc business services
Buckinghamshire Council ,31.08.2023,11.08.2023,Children's Services,Education & Childrens Services - CS Dir,TESCO STORES 2041,13.9,0,13.9,General Repairs & Maintenance,Grocery stores
Buckinghamshire Council ,31.08.2023,11.08.2023,Children's Services,Education & Childrens Services - CS Dir,B & Q 1305,24.75,0,24.75,General Repairs & Maintenance,Home supply warehouse stores
Buckinghamshire Council ,31.08.2023,11.08.2023,Children's Services,Education & Childrens Services - CS Dir,ST JOHN AMBULANCE,-430.8,0,-430.8,Training (Inc. Health & Safety Courses),Charitable organisations
Buckinghamshire Council ,31.08.2023,11.08.2023,"Planning, Growth & Sustainability",AH&R - PGS Dir,SCREWFIX DIR LTD,64.49,0,64.49,Other Equipment and Materials,Timber & building supplies
Buckinghamshire Council ,31.08.2023,11.08.2023,Communities,Culture & Leisure - Communities Dir,SAN REMO,5.5,0,5.5,Events Expenditure,Fast food restaurants
Buckinghamshire Council ,31.08.2023,11.08.2023,Children's Services,Education & Childrens Services - CS Dir,TRAINLINE,118.34,0,118.34,Sec 20/31: Specialist Services,Passenger railways
Buckinghamshire Council ,31.08.2023,11.08.2023,"Planning, Growth & Sustainability",Partnership Climate Change & Envir - PGS,SAS EVENT AND ASSOCIATION,459,0,459,"Courses, Conference and Seminar Fees",Misc business services
Buckinghamshire Council ,31.08.2023,11.08.2023,Adults and Health,Health & Wellbeing - Adults & Health Dir,TRAVELODGE GB0000,408.96,0,408.96,Other Short Term Support,Travelodge
Buckinghamshire Council ,31.08.2023,11.08.2023,Children's Services,Education & Childrens Services - CS Dir,TRAVELODGE GB0000,"1,293.57",0,"1,293.57",Sec 17: Accommodation,Travelodge
Buckinghamshire Council ,31.08.2023,11.08.2023,Children's Services,Education & Childrens Services - CS Dir,ASDA  STORES 4396,12.94,0,12.94,General Provisions (Food),Grocery stores
Buckinghamshire Council ,31.08.2023,11.08.2023,Children's Services,Education & Childrens Services - CS Dir,WWW.BEDS.CO.UK,29,0,29,Furniture,Furniture & home furnishing
Buckinghamshire Council ,31.08.2023,11.08.2023,Children's Services,Education & Childrens Services - CS Dir,WWW.EVERYONEACTIVE.COM,5,0,5,Reg & Exam Fees for External Courses,Sport & recreational camps
Buckinghamshire Council ,31.08.2023,11.08.2023,Children's Services,Education & Childrens Services - CS Dir,CINEWORLD,13.8,0,13.8,YOS - Direct Work,Cinemas
Buckinghamshire Council ,31.08.2023,11.08.2023,Children's Services,Education & Childrens Services - CS Dir,TICKETS 95227266,96.8,0,96.8,YOS - Direct Work,Theatres and ticket agencies
Buckinghamshire Council ,31.08.2023,11.08.2023,Children's Services,Education & Childrens Services - CS Dir,FLIP OUT,67.5,0,67.5,YOS - Direct Work,Misc. recreational services
Buckinghamshire Council ,31.08.2023,11.08.2023,Communities,Climate Change & Environment - Community,POST OFFICE COUNTER,6.85,0,6.85,General Postage,Postal services
Buckinghamshire Council ,31.08.2023,11.08.2023,Adults and Health,Health & Wellbeing - Adults & Health Dir,BURNHAM BUDGENS,9.43,0,9.43,General Provisions (Food),Dairy produce stores
Buckinghamshire Council ,31.08.2023,11.08.2023,Deputy Chief Executive,AH&R- DCE Dir,SLACK T181RTHAL,62.3,0,62.3,Computer Consumables,Computer software stores
Buckinghamshire Council ,31.08.2023,11.08.2023,Children's Services,Education & Childrens Services - CS Dir,OXFORDSHIRE CC WEB1,22,0,22,Sec 20/31: Financial Assistance,Government services
Buckinghamshire Council ,31.08.2023,11.08.2023,Adults and Health,Health & Wellbeing - Adults & Health Dir,NEALES TAXIS LTD,960,0,960,Staff Travelling Expenses,Taxicabs & limousines
Buckinghamshire Council ,31.08.2023,11.08.2023,Adults and Health,Health & Wellbeing - Adults & Health Dir,ALDI,32.17,0,32.17,General Provisions (Food),Grocery stores
Buckinghamshire Council ,31.08.2023,10.08.2023,"Planning, Growth & Sustainability",Housing & Homelessness & Regulatory PGS,LAND REGISTRY ECOM CCC,3,0,3,Homelessness,Government services
Buckinghamshire Council ,31.08.2023,10.08.2023,Adults and Health,Health & Wellbeing - Adults & Health Dir,EB *PUTTING A SPOTLIGH,-230,-46,-276,"Courses, Conference and Seminar Fees",Misc business services
Buckinghamshire Council ,31.08.2023,10.08.2023,"Planning, Growth & Sustainability",Planning & Regeneration - PGS,THE LANDSCAPE INSTITUT,415,0,415,Professional Subscriptions re Employees,Landscape & horticultural services
Buckinghamshire Council ,31.08.2023,10.08.2023,Deputy Chief Executive,Communities - DCE,AO RETAIL LIMITED,506.66,101.34,608,Other Personal Needs,Household appliance stores
Buckinghamshire Council ,31.08.2023,10.08.2023,Deputy Chief Executive,Communities - DCE,ONE YMCA,30,0,30,Other Personal Needs,Misc business services
Buckinghamshire Council ,31.08.2023,10.08.2023,Deputy Chief Executive,Communities - DCE,AO RETAIL LIMITED,506.66,101.34,608,Other Personal Needs,Household appliance stores
Buckinghamshire Council ,31.08.2023,10.08.2023,Deputy Chief Executive,Communities - DCE,AO RETAIL LIMITED,845,169,"1,014.00",Other Personal Needs,Household appliance stores
Buckinghamshire Council ,31.08.2023,10.08.2023,Children's Services,Education & Childrens Services - CS Dir,WWW.BUCKINGHAMSHIRE.GOV,570.03,0,570.03,Leaving Care  - Financial Assistance,Government services
Buckinghamshire Council ,31.08.2023,10.08.2023,Children's Services,Education & Childrens Services - CS Dir,B & Q 1305,28.04,0,28.04,General Provisions (Food),Home supply warehouse stores
Buckinghamshire Council ,31.08.2023,10.08.2023,Children's Services,Education & Childrens Services - CS Dir,DUNELM LTD,192,0,192,General Provisions (Food),Drapery & upholstery shops
Buckinghamshire Council ,31.08.2023,10.08.2023,Children's Services,Education & Childrens Services - CS Dir,TESCO STORES 2038,135.98,0,135.98,General Provisions (Food),Grocery stores
Buckinghamshire Council ,31.08.2023,10.08.2023,Children's Services,Education & Childrens Services - CS Dir,B & Q 1305,29,0,29,General Provisions (Food),Home supply warehouse stores
Buckinghamshire Council ,31.08.2023,10.08.2023,Communities,Climate Change & Environment - Community,PASTDUE CREDIT,80,0,80,Printing & Stationery,Misc. personal services
Buckinghamshire Council ,31.08.2023,10.08.2023,Deputy Chief Executive,AH&R- DCE Dir,SAINSBURY S S/MKTS,3.37,0,3.37,Other Personal Needs,Grocery stores
Buckinghamshire Council ,31.08.2023,10.08.2023,Communities,Culture & Leisure - Communities Dir,WWW.SCREWFIX.COM,69.95,13.99,83.94,"Workshop - Materials,Tools & Equipment",Timber & building supplies
Buckinghamshire Council ,31.08.2023,10.08.2023,Children's Services,Education & Childrens Services - CS Dir,THE SPRINGFIELD HOTEL,120.95,0,120.95,"Courses, Conference and Seminar Fees","Hotels, motels & resorts"
Buckinghamshire Council ,31.08.2023,10.08.2023,"Planning, Growth & Sustainability",AH&R - PGS Dir,LOCK & KEY CENTRE,16,0,16,General Repairs & Maintenance,Misc business services
Buckinghamshire Council ,31.08.2023,10.08.2023,Communities,Housing & Homelessness & Regulatory Comm,AMAZON.CO.UK,16.9,3.38,20.28,General Repairs & Maintenance,Direct sales companies
Buckinghamshire Council ,31.08.2023,10.08.2023,Communities,Housing & Homelessness & Regulatory Comm,AMAZON.CO.UK,0.09,0,0.09,General Repairs & Maintenance,Direct sales companies
Buckinghamshire Council ,31.08.2023,10.08.2023,"Planning, Growth & Sustainability",AH&R - PGS Dir,AMZNMKTPLACE,42.98,0,42.98,Administrative Equipment & Tools,Miscellaneous retail
Buckinghamshire Council ,31.08.2023,10.08.2023,Children's Services,Education & Childrens Services - CS Dir,EBAY O*15-10393-46079,3.99,0,3.99,Miscellaneous (Other)  Expenses,Department stores
Buckinghamshire Council ,31.08.2023,10.08.2023,Children's Services,Education & Childrens Services - CS Dir,EBAY O*15-10393-46078,26.85,0,26.85,Miscellaneous (Other)  Expenses,Department stores
Buckinghamshire Council ,31.08.2023,10.08.2023,Children's Services,Education & Childrens Services - CS Dir,TESCO STORES 2020,120.35,0,120.35,Consumable Supplies,Grocery stores
Buckinghamshire Council ,31.08.2023,10.08.2023,Communities,Culture & Leisure - Communities Dir,FACEBK YNUHBQXJB2,10,0,10,Advertising,Advertising services
Buckinghamshire Council ,31.08.2023,10.08.2023,Communities,Transport - PGS Dir,RED OAK DIRECT LTD,140.85,0,140.85,Protective Clothing & Uniforms,Uniforms & commercial clothing
Buckinghamshire Council ,31.08.2023,10.08.2023,Communities,Transport - Communities Dir,TRADEFIX DIRECT,90.86,0,90.86,Area Teams and Materials,Hardware stores
Buckinghamshire Council ,31.08.2023,10.08.2023,Children's Services,Education & Childrens Services - CS Dir,AMAZON PRIME,8.99,0,8.99,Miscellaneous (Other)  Expenses,Continuous subscriptions
Buckinghamshire Council ,31.08.2023,10.08.2023,Children's Services,Education & Childrens Services - CS Dir,AMZNMKTPLACE,354.66,0,354.66,"Books, Records, Films & Oth Publications",Miscellaneous retail
Buckinghamshire Council ,31.08.2023,10.08.2023,Adults and Health,Health & Wellbeing - Adults & Health Dir,CURRYS AYLESBURY,-362.98,0,-362.98,Miscellaneous (Other)  Expenses,Electronics shops
Buckinghamshire Council ,31.08.2023,10.08.2023,Children's Services,Partnerships - Children's Services,ELIA INTERNATIONAL LTD,40,0,40,Course Fees & Post Entry Training,Consultants & public relation services
Buckinghamshire Council ,31.08.2023,10.08.2023,Children's Services,Education & Childrens Services - CS Dir,ASDA GROCERIES ONLINE,61.09,0,61.09,General Provisions (Food),Grocery stores
Buckinghamshire Council ,31.08.2023,10.08.2023,Children's Services,Education & Childrens Services - CS Dir,ASDA GROCERIES ONLINE,-7.3,0,-7.3,General Provisions (Food),Grocery stores
Buckinghamshire Council ,31.08.2023,10.08.2023,Adults and Health,Health & Wellbeing - Adults & Health Dir,TRAVELODGE GB0000,84.99,0,84.99,Other Short Term Support,Travelodge
Buckinghamshire Council ,31.08.2023,10.08.2023,Children's Services,Education & Childrens Services - CS Dir,AMAZON PRIME,-0.99,0,-0.99,Equipment (including storage),Continuous subscriptions
Buckinghamshire Council ,31.08.2023,10.08.2023,Children's Services,Education & Childrens Services - CS Dir,ONE BELOW,17.47,0,17.47,Activities & General Recreation,Grocery stores
Buckinghamshire Council ,31.08.2023,10.08.2023,Resources,AH&R - Res Dir,PAYPAL,8.99,0,8.99,IT - Computer Network Charges,Computer network information services
Buckinghamshire Council ,31.08.2023,10.08.2023,Children's Services,Education & Childrens Services - CS Dir,ASDA SUPERSTORE,12.45,0,12.45,General Provisions (Food),Grocery stores
Buckinghamshire Council ,31.08.2023,10.08.2023,Children's Services,Education & Childrens Services - CS Dir,GULLIVERS LAND &DINO &,6,0,6,Awaiting Coding,Amusement parks & circuses
Buckinghamshire Council ,31.08.2023,10.08.2023,Children's Services,Education & Childrens Services - CS Dir,Bay Trading,74.25,0,74.25,Subsistence,Fast food restaurants
Buckinghamshire Council ,31.08.2023,10.08.2023,Children's Services,Education & Childrens Services - CS Dir,TESCO STORES 2041,23.65,0,23.65,Awaiting Coding,Grocery stores
Buckinghamshire Council ,31.08.2023,10.08.2023,Adults and Health,Communities - Adults & Health,AMZNMKTPLACE,209.7,0,209.7,Project Work and Project Management Costs,Miscellaneous retail
Buckinghamshire Council ,31.08.2023,10.08.2023,Deputy Chief Executive,Leader - DCE,SAINSBURY S S/MKTS,21.8,0,21.8,Miscellaneous (Other)  Expenses,Grocery stores
Buckinghamshire Council ,31.08.2023,10.08.2023,"Planning, Growth & Sustainability",Housing & Homelessness & Regulatory PGS,AMZNMKTPLACE,86,0,86,Furniture,Miscellaneous retail
Buckinghamshire Council ,31.08.2023,10.08.2023,Children's Services,Education & Childrens Services - CS Dir,SCOTTISH POWER,446.59,0,446.59,Sec 17: Financial Assistance,Fuel dealers
Buckinghamshire Council ,31.08.2023,10.08.2023,Resources,AH&R - Res Dir,POWTOON.COM,648,0,648,Computer Consumables,Computer software stores
Buckinghamshire Council ,31.08.2023,10.08.2023,Children's Services,Education & Childrens Services - CS Dir,ODEON CINEMAS,32,0,32,Activities & General Recreation,Cinemas
Buckinghamshire Council ,31.08.2023,10.08.2023,Children's Services,Education & Childrens Services - CS Dir,PYN*BEDS CO UK,249,0,249,Furniture,Furniture & home furnishing
Buckinghamshire Council ,31.08.2023,10.08.2023,Children's Services,Education & Childrens Services - CS Dir,OXFORDSHIRE CC WEB1,22,0,22,Sec 20/31: Financial Assistance,Government services
Buckinghamshire Council ,31.08.2023,10.08.2023,Children's Services,Education & Childrens Services - CS Dir,ASDA GEORGE COM LEEDS,-3.5,0,-3.5,Sec 17: Financial Assistance One Off,Grocery stores
Buckinghamshire Council ,31.08.2023,10.08.2023,Deputy Chief Executive,AH&R- DCE Dir,PAYPAL,485.8,97.16,582.96,Miscellaneous (Other)  Expenses,Variety stores
Buckinghamshire Council ,31.08.2023,10.08.2023,Deputy Chief Executive,AH&R- DCE Dir,PAYPAL,0.04,0,0.04,Miscellaneous (Other)  Expenses,Variety stores
Buckinghamshire Council ,31.08.2023,10.08.2023,Deputy Chief Executive,AH&R- DCE Dir,PAYPAL,752.46,150.49,902.95,Miscellaneous (Other)  Expenses,Variety stores
Buckinghamshire Council ,31.08.2023,10.08.2023,Deputy Chief Executive,AH&R- DCE Dir,PAYPAL,226.55,45.31,271.86,Miscellaneous (Other)  Expenses,Variety stores
Buckinghamshire Council ,31.08.2023,10.08.2023,Deputy Chief Executive,AH&R- DCE Dir,PAYPAL,0.14,0,0.14,Miscellaneous (Other)  Expenses,Variety stores
Buckinghamshire Council ,31.08.2023,10.08.2023,Deputy Chief Executive,AH&R- DCE Dir,PAYPAL,"1,119.10",223.82,"1,342.92",Miscellaneous (Other)  Expenses,Variety stores
Buckinghamshire Council ,31.08.2023,10.08.2023,Deputy Chief Executive,AH&R- DCE Dir,PAYPAL,0.03,0,0.03,Miscellaneous (Other)  Expenses,Variety stores
Buckinghamshire Council ,31.08.2023,10.08.2023,Children's Services,Education & Childrens Services - CS Dir,APPLE.COM/UK,900,0,900,Computer Consumables,Electronics shops
Buckinghamshire Council ,31.08.2023,10.08.2023,Communities,Partnerships - Communities,Amazon.co.uk,11.98,0,11.98,Awaiting Coding,Miscellaneous retail
Buckinghamshire Council ,31.08.2023,09.08.2023,Communities,Partnerships - Communities,ADOBE CREATIVE CLOUD,43.32,0,43.32,Computer Consumables,Computer software stores
Buckinghamshire Council ,31.08.2023,09.08.2023,Children's Services,Education & Childrens Services - CS Dir,AMZNMKTPLACE,27.38,0,27.38,Consumable Supplies,Miscellaneous retail
Buckinghamshire Council ,31.08.2023,09.08.2023,Communities,Transport - Communities Dir,EPSON STORE UK,346.33,0,346.33,Bus Stops and Infrastructure,Electronics shops
Buckinghamshire Council ,31.08.2023,09.08.2023,Communities,Transport - Communities Dir,EPSON STORE UK,692.66,0,692.66,Bus Stops and Infrastructure,Electronics shops
Buckinghamshire Council ,31.08.2023,09.08.2023,Children's Services,Education & Childrens Services - CS Dir,LENOVO,33.33,6.67,40,Stationery & Office Supplies,Direct sales companies
Buckinghamshire Council ,31.08.2023,09.08.2023,Deputy Chief Executive,AH&R- DCE Dir,PAYPAL,29.54,5.91,35.45,Miscellaneous (Other)  Expenses,Variety stores
Buckinghamshire Council ,31.08.2023,09.08.2023,Deputy Chief Executive,AH&R- DCE Dir,PAYPAL,493.65,98.73,592.38,Miscellaneous (Other)  Expenses,Variety stores
Buckinghamshire Council ,31.08.2023,09.08.2023,Deputy Chief Executive,AH&R- DCE Dir,PAYPAL,0.12,0,0.12,Miscellaneous (Other)  Expenses,Variety stores
Buckinghamshire Council ,31.08.2023,09.08.2023,Deputy Chief Executive,AH&R- DCE Dir,PAYPAL,119.12,23.83,142.95,Miscellaneous (Other)  Expenses,Variety stores
Buckinghamshire Council ,31.08.2023,09.08.2023,Deputy Chief Executive,AH&R- DCE Dir,PAYPAL,927.45,185.49,"1,112.94",Miscellaneous (Other)  Expenses,Variety stores
Buckinghamshire Council ,31.08.2023,09.08.2023,Deputy Chief Executive,AH&R- DCE Dir,PAYPAL,0.01,0,0.01,Miscellaneous (Other)  Expenses,Variety stores
Buckinghamshire Council ,31.08.2023,09.08.2023,Deputy Chief Executive,AH&R- DCE Dir,PAYPAL,585.83,117.17,703,Miscellaneous (Other)  Expenses,Electronics shops
Buckinghamshire Council ,31.08.2023,09.08.2023,Deputy Chief Executive,AH&R- DCE Dir,PAYPAL,-135,0,-135,Miscellaneous (Other)  Expenses,Variety stores
Buckinghamshire Council ,31.08.2023,09.08.2023,"Planning, Growth & Sustainability",Housing & Homelessness & Regulatory PGS,SUMUP  *CABS4U,70,0,70,Staff Travelling Expenses,Taxicabs & limousines
Buckinghamshire Council ,31.08.2023,09.08.2023,Children's Services,Education & Childrens Services - CS Dir,CURRYS BUSINESS,669.95,133.99,803.94,Computer Consumables,Computer software stores
Buckinghamshire Council ,31.08.2023,09.08.2023,Children's Services,Education & Childrens Services - CS Dir,CURRYS BUSINESS,299.15,59.83,358.98,Computer Consumables,Computer software stores
Buckinghamshire Council ,31.08.2023,09.08.2023,"Planning, Growth & Sustainability",Housing & Homelessness & Regulatory PGS,BICESTER VIL SSTP,9,0,9,Staff Travelling Expenses,Passenger railways
Buckinghamshire Council ,31.08.2023,09.08.2023,"Planning, Growth & Sustainability",Housing & Homelessness & Regulatory PGS,LAND REGISTRY ECOM CCC,3,0,3,Homelessness,Government services
Buckinghamshire Council ,31.08.2023,09.08.2023,Adults and Health,Health & Wellbeing - Adults & Health Dir,AMZNMKTPLACE,6.95,0,6.95,Awaiting Coding,Miscellaneous retail
Buckinghamshire Council ,31.08.2023,09.08.2023,Communities,Housing & Homelessness & Regulatory Comm,AMZNMKTPLACE,26.44,5.3,31.74,General Repairs & Maintenance,Miscellaneous retail
Buckinghamshire Council ,31.08.2023,09.08.2023,Communities,Housing & Homelessness & Regulatory Comm,WWW.SCREWFIX.COM,43.69,8.74,52.43,General Repairs & Maintenance,Timber & building supplies
Buckinghamshire Council ,31.08.2023,09.08.2023,"Planning, Growth & Sustainability",AH&R - PGS Dir,AMZNMKTPLACE,7.99,0,7.99,Administrative Equipment & Tools,Miscellaneous retail
Buckinghamshire Council ,31.08.2023,09.08.2023,"Planning, Growth & Sustainability",AH&R - PGS Dir,SCREWFIX HIGH WYCOMBE CRE,19.98,0,19.98,General Repairs & Maintenance,Timber & building supplies
Buckinghamshire Council ,31.08.2023,09.08.2023,"Planning, Growth & Sustainability",AH&R - PGS Dir,TRAVIS PERKINS TRADING,66.64,13.33,79.97,General Repairs & Maintenance,Timber & building supplies
Buckinghamshire Council ,31.08.2023,09.08.2023,Communities,Partnerships - Communities,Mailchimp,21.82,0,21.82,Awaiting Coding,
Buckinghamshire Council ,31.08.2023,09.08.2023,Children's Services,Education & Childrens Services - CS Dir,AMZNMKTPLACE,83.95,0,83.95,Consumable Supplies,Miscellaneous retail
Buckinghamshire Council ,31.08.2023,09.08.2023,Children's Services,Education & Childrens Services - CS Dir,MAILCHIMP,47.55,0,47.55,Computer Consumables,
Buckinghamshire Council ,31.08.2023,09.08.2023,Communities,Culture & Leisure - Communities Dir,DISPLAY SIGNS LIMITED,136,27.2,163.2,"Workshop - Materials,Tools & Equipment",Publishing & printing services
Buckinghamshire Council ,31.08.2023,09.08.2023,Deputy Chief Executive,Communities - DCE,METRO LOUNGE,6.55,0,6.55,General Provisions (Food),"Bars, taverns, pubs & nightclubs"
Buckinghamshire Council ,31.08.2023,09.08.2023,Deputy Chief Executive,AH&R- DCE Dir,AMAZON.CO.UK,335.35,0,335.35,Members' Allowances - Travel & Subsist,Direct sales companies
Buckinghamshire Council ,31.08.2023,09.08.2023,Children's Services,Education & Childrens Services - CS Dir,AMZNMKTPLACE,373,0,373,"Books, Records, Films & Oth Publications",Miscellaneous retail
Buckinghamshire Council ,31.08.2023,09.08.2023,Children's Services,Education & Childrens Services - CS Dir,AMZNMKTPLACE,495.22,0,495.22,"Books, Records, Films & Oth Publications",Miscellaneous retail
Buckinghamshire Council ,31.08.2023,09.08.2023,Communities,Transport - Communities Dir,AMZNMKTPLACE,87.8,0,87.8,Materials,Miscellaneous retail
Buckinghamshire Council ,31.08.2023,09.08.2023,Children's Services,Education & Childrens Services - CS Dir,TRAINLINE.COM,69.15,0,69.15,Staff Travelling Expenses,Passenger railways
Buckinghamshire Council ,31.08.2023,09.08.2023,Children's Services,Education & Childrens Services - CS Dir,SUPERDRUG STORES PLC,4.48,0,4.48,Equipment (including storage),Chemists & pharmacies
Buckinghamshire Council ,31.08.2023,09.08.2023,Children's Services,Education & Childrens Services - CS Dir,AMZNMKTPLACE,12.98,0,12.98,Equipment (including storage),Miscellaneous retail
Buckinghamshire Council ,31.08.2023,09.08.2023,Children's Services,Education & Childrens Services - CS Dir,AMZNMKTPLACE,45.1,0,45.1,Equipment (including storage),Miscellaneous retail
Buckinghamshire Council ,31.08.2023,09.08.2023,Children's Services,Education & Childrens Services - CS Dir,WWW.ANYVAN.COM,290,0,290,Sec 17: Transport,"Haulage, removals & delivery"
Buckinghamshire Council ,31.08.2023,09.08.2023,Children's Services,Education & Childrens Services - CS Dir,BUDGETCARS.UK.COM,30,0,30,Sec 17: Transport,Taxicabs & limousines
Buckinghamshire Council ,31.08.2023,09.08.2023,Children's Services,Education & Childrens Services - CS Dir,KFC - THORPE PARK,7.68,0,7.68,Subsistence,Fast food restaurants
Buckinghamshire Council ,31.08.2023,09.08.2023,Children's Services,Education & Childrens Services - CS Dir,ARAMARK THORPE PK,14.2,0,14.2,Contract Catering,Caterers
Buckinghamshire Council ,31.08.2023,09.08.2023,Adults and Health,Health & Wellbeing - Adults & Health Dir,ASDA GROCERIES ONLINE,89.59,0,89.59,Awaiting Coding,Grocery stores
Buckinghamshire Council ,31.08.2023,09.08.2023,Communities,Communities - Trust Accounts,LIDL GB SLOUGH,66.59,0,66.59,Purchase of Food for Re-sale,Grocery stores
Buckinghamshire Council ,31.08.2023,09.08.2023,"Planning, Growth & Sustainability",Housing & Homelessness & Regulatory PGS,SAINSBURYS S/MKTS,28.55,0,28.55,Furniture,Grocery stores
Buckinghamshire Council ,31.08.2023,09.08.2023,Children's Services,Education & Childrens Services - CS Dir,BUCKINGHAMSHIRE COUNCIL,33.6,0,33.6,Awaiting Coding,Government services
Buckinghamshire Council ,31.08.2023,09.08.2023,Communities,Climate Change & Environment - Community,ROADWARRIOR,12.17,0,12.17,Computer Support Services,"Programming, data processing & system design"
Buckinghamshire Council ,31.08.2023,09.08.2023,Communities,Climate Change & Environment - Community,MOONPIG,9.98,0,9.98,Stationery & Office Supplies,Misc. general merchandise
Buckinghamshire Council ,31.08.2023,09.08.2023,"Planning, Growth & Sustainability",Housing & Homelessness & Regulatory PGS,AMZNMKTPLACE,634.25,0,634.25,Furniture,Miscellaneous retail
Buckinghamshire Council ,31.08.2023,09.08.2023,Children's Services,Education & Childrens Services - CS Dir,GRAFTERR PAY,85,0,85,Sec 20/31: Transport,Restaurants
Buckinghamshire Council ,31.08.2023,09.08.2023,Adults and Health,Health & Wellbeing - Adults & Health Dir,AMZNMKTPLACE,81.99,0,81.99,Miscellaneous (Other)  Expenses,Miscellaneous retail
Buckinghamshire Council ,31.08.2023,09.08.2023,Adults and Health,Health & Wellbeing - Adults & Health Dir,VOUCHER EXPRESS,300,0,300,Other Employees Expenses,Misc business services
Buckinghamshire Council ,31.08.2023,08.08.2023,Children's Services,Education & Childrens Services - CS Dir,AMZNMKTPLACE,24.56,0,24.56,Consumable Supplies,Miscellaneous retail
Buckinghamshire Council ,31.08.2023,08.08.2023,Communities,Climate Change & Environment - Community,GWR OXFORD SST,85.3,0,85.3,Staff Travelling Expenses,Passenger railways
Buckinghamshire Council ,31.08.2023,08.08.2023,Deputy Chief Executive,Communities - DCE,AO RETAIL LIMITED,-398.5,0,-398.5,Other Personal Needs,Household appliance stores
Buckinghamshire Council ,31.08.2023,08.08.2023,Children's Services,Education & Childrens Services - CS Dir,WWW.ARGOS.CO.UK,157,0,157,Leaving Care - Grants for Care Leavers,Department stores
Buckinghamshire Council ,31.08.2023,08.08.2023,Children's Services,Education & Childrens Services - CS Dir,HTTPS://THEOLDFLEECE.B,210,0,210,Other Employees Expenses,Fast food restaurants
Buckinghamshire Council ,31.08.2023,08.08.2023,Children's Services,Education & Childrens Services - CS Dir,ALLPAY *PEABODY TRUST,133,0,133,Leaving Care - Rent,Charitable organisations
Buckinghamshire Council ,31.08.2023,08.08.2023,Children's Services,Education & Childrens Services - CS Dir,WWW.ROMPALTD.COM,"1,109.88",0,"1,109.88",Leaving Care - Grants for Care Leavers,Miscellaneous retail
Buckinghamshire Council ,31.08.2023,08.08.2023,Children's Services,Education & Childrens Services - CS Dir,TRAINLINE.COM,-71.9,0,-71.9,Leaving Care - Transport,Passenger railways
Buckinghamshire Council ,31.08.2023,08.08.2023,"Planning, Growth & Sustainability",Planning & Regeneration - PGS,PAYPAL,230,0,230,Professional Subscriptions re Employees,Charitable organisations
Buckinghamshire Council ,31.08.2023,08.08.2023,Children's Services,Education & Childrens Services - CS Dir,PREMIER INN,81.65,16.33,97.98,Sec 20/31: Financial Assistance One Off,Premier Inn
Buckinghamshire Council ,31.08.2023,08.08.2023,Children's Services,Education & Childrens Services - CS Dir,PREMIER INN,0.02,0,0.02,Sec 20/31: Financial Assistance One Off,Premier Inn
Buckinghamshire Council ,31.08.2023,08.08.2023,Resources,AH&R - Res Dir,WWW.ALIEXPRESS.COM,41.3,0,41.3,Computer Consumables,Catalogue sales
Buckinghamshire Council ,31.08.2023,08.08.2023,Resources,AH&R - Res Dir,GEN REGISTER OFFICE,14,0,14,Miscellaneous (Other)  Expenses,Government services
Buckinghamshire Council ,31.08.2023,08.08.2023,Communities,Housing & Homelessness & Regulatory Comm,BOOKER LTD - 38534944,741.35,148.27,889.62,Vending Machines Supplies,Grocery stores
Buckinghamshire Council ,31.08.2023,08.08.2023,Communities,Housing & Homelessness & Regulatory Comm,BOOKER LTD - 38534944,0.06,0,0.06,Vending Machines Supplies,Grocery stores
Buckinghamshire Council ,31.08.2023,08.08.2023,Communities,Housing & Homelessness & Regulatory Comm,BOOKER LTD - 38534944,62.97,0,62.97,Purchase.of Refreshments and Food,Grocery stores
Buckinghamshire Council ,31.08.2023,08.08.2023,Communities,Housing & Homelessness & Regulatory Comm,BOOKER LTD - 38534944,28.98,5.8,993.52,Purchase.of Refreshments and Food,Grocery stores
Buckinghamshire Council ,31.08.2023,08.08.2023,Communities,Housing & Homelessness & Regulatory Comm,BOOKER LTD - 38534944,37.72,0,37.72,Purchase.of Refreshments and Food,Grocery stores
Buckinghamshire Council ,31.08.2023,08.08.2023,Communities,Housing & Homelessness & Regulatory Comm,BOOKER LTD - 38534944,31.34,0,31.34,Vending Machines Supplies,Grocery stores
Buckinghamshire Council ,31.08.2023,08.08.2023,Resources,AH&R - Res Dir,PANDORA JEWELLERY UK LIMI,100,0,100,Other Employees Expenses,Jewellers
Buckinghamshire Council ,31.08.2023,08.08.2023,Communities,Culture & Leisure - Communities Dir,SAINSBURYS S/MKTS,2.35,0.47,2.82,"Workshop - Materials,Tools & Equipment",Grocery stores
Buckinghamshire Council ,31.08.2023,08.08.2023,Communities,Culture & Leisure - Communities Dir,SAINSBURYS S/MKTS,0.03,0,0.03,"Workshop - Materials,Tools & Equipment",Grocery stores
Buckinghamshire Council ,31.08.2023,08.08.2023,Communities,Culture & Leisure - Communities Dir,WWW.BUCKINGHAMSHIRE.GOV,21,0,21,Events Expenditure,Government services
Buckinghamshire Council ,31.08.2023,08.08.2023,Communities,Transport - Communities Dir,AMZNMKTPLACE,32.95,0,32.95,Area Teams and Materials,Miscellaneous retail
Buckinghamshire Council ,31.08.2023,08.08.2023,Children's Services,Education & Childrens Services - CS Dir,AMZNMKTPLACE,59.42,0,59.42,"Books, Records, Films & Oth Publications",Miscellaneous retail
Buckinghamshire Council ,31.08.2023,08.08.2023,Children's Services,Education & Childrens Services - CS Dir,AMZNMKTPLACE,352.92,0,352.92,Furniture,Miscellaneous retail
Buckinghamshire Council ,31.08.2023,08.08.2023,Deputy Chief Executive,Leader - DCE,COUNTYCOUNCILSNETWORK,525,105,630,"Courses, Conference and Seminar Fees",Membership organisations
Buckinghamshire Council ,31.08.2023,08.08.2023,Communities,Climate Change & Environment - Community,FACEBK 7X3S9UPCM2,186.78,0,186.78,Advertising,Advertising services
Buckinghamshire Council ,31.08.2023,08.08.2023,"Planning, Growth & Sustainability",AH&R - PGS Dir,AMZNMKTPLACE,63.01,0,63.01,Health & Safety Supplies & Services,Miscellaneous retail
Buckinghamshire Council ,31.08.2023,08.08.2023,Children's Services,Education & Childrens Services - CS Dir,GIFFGAFF,35,0,35,Telephones,Phone services
Buckinghamshire Council ,31.08.2023,08.08.2023,Children's Services,Education & Childrens Services - CS Dir,EBAY O*05-10390-98207,12.28,0,12.28,Other Equipment and Materials,Department stores
Buckinghamshire Council ,31.08.2023,08.08.2023,Children's Services,Education & Childrens Services - CS Dir,Hobbycraft,19.9,0,19.9,Awaiting Coding,Art & craft shops
Buckinghamshire Council ,31.08.2023,08.08.2023,Children's Services,Education & Childrens Services - CS Dir,SUBWAY 47357 Aylesbury,6.89,0,6.89,Subsistence,Fast food restaurants
Buckinghamshire Council ,31.08.2023,08.08.2023,Children's Services,Education & Childrens Services - CS Dir,AMZNMKTPLACE,264.99,0,264.99,Activities & General Recreation,Miscellaneous retail
Buckinghamshire Council ,31.08.2023,08.08.2023,Children's Services,Education & Childrens Services - CS Dir,AMZ*Buy Pad,-94.2,0,-94.2,Awaiting Coding,Miscellaneous retail
Buckinghamshire Council ,31.08.2023,08.08.2023,Communities,Culture & Leisure - Communities Dir,WWW.BUCKINGHAMSHIRE.GOV,12.7,0,12.7,Administrative Equipment & Tools,Government services
Buckinghamshire Council ,31.08.2023,08.08.2023,"Planning, Growth & Sustainability",Housing & Homelessness & Regulatory PGS,AMZNMKTPLACE,614.27,0,614.27,Furniture,Miscellaneous retail
Buckinghamshire Council ,31.08.2023,08.08.2023,Children's Services,Education & Childrens Services - CS Dir,TESCO STORES 2041,39.63,0,39.63,Activities & General Recreation,Grocery stores
Buckinghamshire Council ,31.08.2023,08.08.2023,"Planning, Growth & Sustainability",Climate Change & Environment - PGS,AMZNMKTPLACE,9.98,0,9.98,Administrative Equipment & Tools,Miscellaneous retail
Buckinghamshire Council ,31.08.2023,08.08.2023,Communities,Climate Change & Environment - Community,POST OFFICE COUNTER,6.85,0,6.85,General Postage,Postal services
Buckinghamshire Council ,31.08.2023,08.08.2023,"Planning, Growth & Sustainability",Housing & Homelessness & Regulatory PGS,MOL*FLAIR FURNITURE LTD,599.95,0,599.95,Furniture,Furniture & home furnishing
Buckinghamshire Council ,31.08.2023,08.08.2023,Adults and Health,Health & Wellbeing - Adults & Health Dir,TRAVELODGE GB0000,81.49,0,81.49,Other Short Term Support,Travelodge
Buckinghamshire Council ,31.08.2023,08.08.2023,Adults and Health,Health & Wellbeing - Adults & Health Dir,NEALES TAXIS LTD,70,0,70,Staff Travelling Expenses,Taxicabs & limousines
Buckinghamshire Council ,31.08.2023,08.08.2023,Adults and Health,Health & Wellbeing - Adults & Health Dir,TRAVELODGE GB0000,752.63,0,752.63,Other Short Term Support,Travelodge
Buckinghamshire Council ,31.08.2023,08.08.2023,Deputy Chief Executive,AH&R- DCE Dir,PAYPAL,-50,0,-50,Miscellaneous (Other)  Expenses,Variety stores
Buckinghamshire Council ,31.08.2023,07.08.2023,Communities,Culture & Leisure - Communities Dir,SAINSBURYS S/MKTS,22.13,0,22.13,Events Expenditure,Grocery stores
Buckinghamshire Council ,31.08.2023,07.08.2023,Resources,AH&R - Res Dir,SIEVEMK GATEWAY,143,0,143,Course Fees & Post Entry Training,Schools
Buckinghamshire Council ,31.08.2023,07.08.2023,Children's Services,Education & Childrens Services - CS Dir,WWW.IQSTUDENTACCOMMODATI,225,0,225,Leaving Care - Higher Education Supp,Estate Agents & Property Management
Buckinghamshire Council ,31.08.2023,07.08.2023,Deputy Chief Executive,Communities - DCE,AO RETAIL LIMITED,-337.11,0,-337.11,Other Personal Needs,Household appliance stores
Buckinghamshire Council ,31.08.2023,07.08.2023,Children's Services,Education & Childrens Services - CS Dir,ANN ARBOR PUBLISH,233,46.6,279.6,Training Materials,Publishing & printing services
Buckinghamshire Council ,31.08.2023,07.08.2023,Children's Services,Education & Childrens Services - CS Dir,ANN ARBOR PUBLISH,293,58.6,351.6,Training Materials,Publishing & printing services
Buckinghamshire Council ,31.08.2023,07.08.2023,"Planning, Growth & Sustainability",Housing & Homelessness & Regulatory PGS,TRAINLINE,30.34,0,30.34,Staff Travelling Expenses,Passenger railways
Buckinghamshire Council ,31.08.2023,07.08.2023,"Planning, Growth & Sustainability",AH&R - PGS Dir,Dulux Decorator Centre,102.19,0,102.19,Awaiting Coding,"Paint, varnishes & supplies"
Buckinghamshire Council ,31.08.2023,07.08.2023,Children's Services,Education & Childrens Services - CS Dir,SURELOCK HOMES SECURITY,7.5,0,7.5,General Repairs & Maintenance,Shoe repairs
Buckinghamshire Council ,31.08.2023,07.08.2023,Communities,Housing & Homelessness & Regulatory Comm,NYA*BUCKINGHAMSHIRE CO,0.85,0,0.85,Vending Machines Supplies,Misc Food stores
Buckinghamshire Council ,31.08.2023,07.08.2023,"Planning, Growth & Sustainability",AH&R - PGS Dir,AMZNMKTPLACE,14.99,0,14.99,Miscellaneous (Other)  Expenses,Miscellaneous retail
Buckinghamshire Council ,31.08.2023,07.08.2023,"Planning, Growth & Sustainability",AH&R - PGS Dir,AMAZON PRIME,95,0,95,Miscellaneous (Other)  Expenses,Continuous subscriptions
Buckinghamshire Council ,31.08.2023,07.08.2023,"Planning, Growth & Sustainability",AH&R - PGS Dir,TESCO STORES 2020,13.05,0,13.05,Purchase.of Refreshments and Food,Grocery stores
Buckinghamshire Council ,31.08.2023,07.08.2023,Children's Services,Education & Childrens Services - CS Dir,AMAZON.CO.UK,39.28,0,39.28,"Books, Records, Films & Oth Publications",Direct sales companies
Buckinghamshire Council ,31.08.2023,07.08.2023,Children's Services,Education & Childrens Services - CS Dir,AMAZON.CO.UK,52.1,0,52.1,Stationery & Office Supplies,Direct sales companies
Buckinghamshire Council ,31.08.2023,07.08.2023,Children's Services,Education & Childrens Services - CS Dir,AMAZON PRIME,0.99,0,0.99,Equipment (including storage),Continuous subscriptions
Buckinghamshire Council ,31.08.2023,07.08.2023,Children's Services,Education & Childrens Services - CS Dir,AMZNMKTPLACE,49.33,0,49.33,Equipment (including storage),Miscellaneous retail
Buckinghamshire Council ,31.08.2023,07.08.2023,Resources,AH&R - Res Dir,AMAZON.CO.UK,250,0,250,Long Service Awards,Direct sales companies
Buckinghamshire Council ,31.08.2023,07.08.2023,Children's Services,Education & Childrens Services - CS Dir,TRAVELODGE GB0000,"1,020.84",0,"1,020.84",Sec 17: Accommodation,Travelodge
Buckinghamshire Council ,31.08.2023,07.08.2023,Children's Services,Education & Childrens Services - CS Dir,TESCO STORES 2038,24,0,24,Activities & General Recreation,Grocery stores
Buckinghamshire Council ,31.08.2023,07.08.2023,Children's Services,Education & Childrens Services - CS Dir,TESCO STORES 2038,250.8,0,250.8,Activities & General Recreation,Grocery stores
Buckinghamshire Council ,31.08.2023,07.08.2023,Adults and Health,Health & Wellbeing - Adults & Health Dir,ASDA SUPERSTORE,21.5,0,21.5,General Provisions (Food),Grocery stores
Buckinghamshire Council ,31.08.2023,07.08.2023,Deputy Chief Executive,AH&R- DCE Dir,WWW.SHOPPYDEALS.CO.UK,822.28,164.46,986.74,Computer Software Licences & Purchase,Misc. general merchandise
Buckinghamshire Council ,31.08.2023,07.08.2023,Adults and Health,Health & Wellbeing - Adults & Health Dir,TESCO STORES 5135,219.21,0,219.21,General Provisions (Food),Grocery stores
Buckinghamshire Council ,31.08.2023,07.08.2023,"Planning, Growth & Sustainability",Housing & Homelessness & Regulatory PGS,AO RETAIL LIMITED,899,0,899,Furniture,Household appliance stores
Buckinghamshire Council ,31.08.2023,07.08.2023,"Planning, Growth & Sustainability",Housing & Homelessness & Regulatory PGS,TIMPSON LTD,68,0,68,Furniture,Miscellaneous retail
Buckinghamshire Council ,31.08.2023,07.08.2023,"Planning, Growth & Sustainability",Housing & Homelessness & Regulatory PGS,PAYPAL,-12.95,0,-12.95,Furniture,Variety stores
Buckinghamshire Council ,31.08.2023,07.08.2023,Resources,AH&R - Res Dir,PAYPAL,24.99,0,24.99,Computer Software Licences & Purchase,
Buckinghamshire Council ,31.08.2023,07.08.2023,Resources,AH&R - Res Dir,LINKEDIN ADS 9299099854,100.87,0,100.87,Permanent Recruitment Costs,Advertising services
Buckinghamshire Council ,31.08.2023,07.08.2023,Children's Services,Education & Childrens Services - CS Dir,THORPE PARK,47,0,47,Other Personal Needs,Theatres and ticket agencies
Buckinghamshire Council ,31.08.2023,07.08.2023,"Planning, Growth & Sustainability",Climate Change & Environment - PGS,AMZNMKTPLACE,10.98,0,10.98,Administrative Equipment & Tools,Miscellaneous retail
Buckinghamshire Council ,31.08.2023,07.08.2023,Children's Services,Education & Childrens Services - CS Dir,A1 TAXI SERVICE,84,0,84,Sec 20/31: Transport,Taxicabs & limousines
Buckinghamshire Council ,31.08.2023,07.08.2023,Children's Services,Education & Childrens Services - CS Dir,A1 TAXI SERVICE,84,0,84,Sec 20/31: Transport,Taxicabs & limousines
Buckinghamshire Council ,31.08.2023,07.08.2023,Adults and Health,Health & Wellbeing - Adults & Health Dir,TESCO STORES 5135,95.2,0,95.2,General Provisions (Food),Grocery stores
Buckinghamshire Council ,31.08.2023,07.08.2023,Adults and Health,Health & Wellbeing - Adults & Health Dir,TESCO STORES 5135,-2.9,0,-2.9,General Provisions (Food),Grocery stores
Buckinghamshire Council ,31.08.2023,07.08.2023,Adults and Health,Health & Wellbeing - Adults & Health Dir,BKG*HOTEL AT BOOKING.C,139,0,139,Other Short Term Support,Travel agencies
Buckinghamshire Council ,31.08.2023,07.08.2023,Deputy Chief Executive,AH&R- DCE Dir,PAYPAL,-50,0,-50,Miscellaneous (Other)  Expenses,Variety stores
Buckinghamshire Council ,31.08.2023,07.08.2023,Deputy Chief Executive,AH&R- DCE Dir,PAYPAL,83.29,16.66,99.95,Miscellaneous (Other)  Expenses,Variety stores
Buckinghamshire Council ,31.08.2023,07.08.2023,Deputy Chief Executive,AH&R- DCE Dir,PAYPAL,418.6,83.72,502.32,Miscellaneous (Other)  Expenses,Variety stores
Buckinghamshire Council ,31.08.2023,07.08.2023,Deputy Chief Executive,AH&R- DCE Dir,PAYPAL,0.18,0,0.18,Miscellaneous (Other)  Expenses,Variety stores
Buckinghamshire Council ,31.08.2023,07.08.2023,Deputy Chief Executive,AH&R- DCE Dir,PAYPAL,138.29,27.66,165.95,Miscellaneous (Other)  Expenses,Variety stores
Buckinghamshire Council ,31.08.2023,07.08.2023,Deputy Chief Executive,AH&R- DCE Dir,PAYPAL,660.79,132.16,792.95,Miscellaneous (Other)  Expenses,Variety stores
Buckinghamshire Council ,31.08.2023,07.08.2023,Deputy Chief Executive,AH&R- DCE Dir,PAYPAL,76.62,15.33,91.95,Miscellaneous (Other)  Expenses,Variety stores
Buckinghamshire Council ,31.08.2023,07.08.2023,Deputy Chief Executive,AH&R- DCE Dir,PAYPAL,452.5,90.5,543,Miscellaneous (Other)  Expenses,Electronics shops
Buckinghamshire Council ,31.08.2023,07.08.2023,Deputy Chief Executive,AH&R- DCE Dir,PAYPAL,228.33,45.67,274,Miscellaneous (Other)  Expenses,Electronics shops
Buckinghamshire Council ,31.08.2023,07.08.2023,Deputy Chief Executive,AH&R- DCE Dir,PAYPAL,452.05,90.41,542.46,Miscellaneous (Other)  Expenses,Variety stores
Buckinghamshire Council ,31.08.2023,07.08.2023,Deputy Chief Executive,AH&R- DCE Dir,PAYPAL,0.04,0,0.04,Miscellaneous (Other)  Expenses,Variety stores
Buckinghamshire Council ,31.08.2023,07.08.2023,Deputy Chief Executive,AH&R- DCE Dir,PAYPAL,660.79,132.16,792.95,Miscellaneous (Other)  Expenses,Variety stores
Buckinghamshire Council ,31.08.2023,06.08.2023,Communities,Culture & Leisure - Communities Dir,HALFORDS 0894,3.07,0.62,3.69,"Workshop - Materials,Tools & Equipment","Bicycle shops, sales & service"
Buckinghamshire Council ,31.08.2023,06.08.2023,Children's Services,Education & Childrens Services - CS Dir,AMZNMKTPLACE,73.16,0,73.16,Activities & General Recreation,Miscellaneous retail
Buckinghamshire Council ,31.08.2023,06.08.2023,Children's Services,Education & Childrens Services - CS Dir,FARMHOUSE PIZZA,53.47,0,53.47,Subsistence,Fast food restaurants
Buckinghamshire Council ,31.08.2023,06.08.2023,"Planning, Growth & Sustainability",Housing & Homelessness & Regulatory PGS,AMAZON.CO.UK,61.2,0,61.2,Administrative Equipment & Tools,Direct sales companies
Buckinghamshire Council ,31.08.2023,05.08.2023,Adults and Health,Health & Wellbeing - Adults & Health Dir,TRAVELODGE GB0000,378.64,0,378.64,Transport - Other Care - external,Travelodge
Buckinghamshire Council ,31.08.2023,05.08.2023,Resources,AH&R - Res Dir,AMAZON.CO.UK,159.98,0,159.98,Computer Consumables,Direct sales companies
Buckinghamshire Council ,31.08.2023,05.08.2023,Resources,AH&R - Res Dir,AMAZON.CO.UK,79.99,0,79.99,Computer Consumables,Direct sales companies
Buckinghamshire Council ,31.08.2023,05.08.2023,Resources,Communities - Resources,AMZ*AMAZON EU,-0.05,0,-0.05,Training Materials,Miscellaneous retail
Buckinghamshire Council ,31.08.2023,05.08.2023,Communities,Culture & Leisure - Communities Dir,HALFORDS 0894,11.05,2.22,13.27,"Workshop - Materials,Tools & Equipment","Bicycle shops, sales & service"
Buckinghamshire Council ,31.08.2023,05.08.2023,Children's Services,Education & Childrens Services - CS Dir,DOMINO S PIZZA,57.65,0,57.65,Subsistence,Restaurants
Buckinghamshire Council ,31.08.2023,05.08.2023,Children's Services,Education & Childrens Services - CS Dir,CANVA* I03868-13201879,99.99,0,99.99,Computer Consumables,Photographic studios
Buckinghamshire Council ,31.08.2023,05.08.2023,Children's Services,Education & Childrens Services - CS Dir,AMZNMKTPLACE,98.86,0,98.86,Activities & General Recreation,Miscellaneous retail
Buckinghamshire Council ,31.08.2023,05.08.2023,Children's Services,Education & Childrens Services - CS Dir,HOBBYCRAFT TRADING LIMITE,24,0,24,Activities & General Recreation,Art & craft shops
Buckinghamshire Council ,31.08.2023,05.08.2023,Adults and Health,Health & Wellbeing - Adults & Health Dir,ESSENTIALS,6.99,0,6.99,Awaiting Coding,Hardware Equipment & Suppliers
Buckinghamshire Council ,31.08.2023,05.08.2023,"Planning, Growth & Sustainability",Housing & Homelessness & Regulatory PGS,HOME BARGAINS,11.88,0,11.88,Other General Office Expenses,Misc. general merchandise
Buckinghamshire Council ,31.08.2023,05.08.2023,"Planning, Growth & Sustainability",Housing & Homelessness & Regulatory PGS,HPI INSTANT INK UK,4.49,0,4.49,Stationery & Office Supplies,Electronics shops
Buckinghamshire Council ,31.08.2023,04.08.2023,"Planning, Growth & Sustainability",AH&R - PGS Dir,AMZNMKTPLACE,55.99,0,55.99,Administrative Equipment & Tools,Miscellaneous retail
Buckinghamshire Council ,31.08.2023,04.08.2023,Adults and Health,Communities - Adults & Health,AMZNMKTPLACE,12.48,2.5,14.98,Miscellaneous (Other)  Expenses,Miscellaneous retail
Buckinghamshire Council ,31.08.2023,04.08.2023,Children's Services,Education & Childrens Services - CS Dir,AMZNMktplace,81.98,0,81.98,Awaiting Coding,Miscellaneous retail
Buckinghamshire Council ,31.08.2023,04.08.2023,Children's Services,Education & Childrens Services - CS Dir,ONE4ALL,100.99,0,100.99,"Exp of School, Club & College Activities",Department stores
Buckinghamshire Council ,31.08.2023,04.08.2023,Children's Services,Education & Childrens Services - CS Dir,BT BUSINESS BILL,52.46,0,52.46,Telephones,Phone services
Buckinghamshire Council ,31.08.2023,04.08.2023,Children's Services,Education & Childrens Services - CS Dir,TRAINLINE.COM,85.44,0,85.44,Leaving Care - Transport,Passenger railways
Buckinghamshire Council ,31.08.2023,04.08.2023,Children's Services,Education & Childrens Services - CS Dir,ONBUY.COM,-127.99,0,-127.99,Leaving Care - Grants for Care Leavers,
Buckinghamshire Council ,31.08.2023,04.08.2023,Children's Services,Education & Childrens Services - CS Dir,SPORTSDIRECT 210,88.96,0,88.96,Other Personal Needs,Sporting goods shops
Buckinghamshire Council ,31.08.2023,04.08.2023,Children's Services,Education & Childrens Services - CS Dir,ICELAND FOODS LTD 1748,33,0,33,General Provisions (Food),Grocery stores
Buckinghamshire Council ,31.08.2023,04.08.2023,Children's Services,Education & Childrens Services - CS Dir,SPORTSDIRECT 210,18.3,0,18.3,Other Personal Needs,Sporting goods shops
Buckinghamshire Council ,31.08.2023,04.08.2023,Children's Services,Education & Childrens Services - CS Dir,B&M 426 - HS AYLESBURY,42.44,0,42.44,Activities & General Recreation,Misc. general merchandise
Buckinghamshire Council ,31.08.2023,04.08.2023,Deputy Chief Executive,Communities - DCE,PAYPAL,-120,0,-120,Other Personal Needs,Variety stores
Buckinghamshire Council ,31.08.2023,04.08.2023,Children's Services,Education & Childrens Services - CS Dir,BKG*HOTEL AT BOOKING.C,71.65,14.33,85.98,Staff Travelling Expenses,Travel agencies
Buckinghamshire Council ,31.08.2023,04.08.2023,Children's Services,Education & Childrens Services - CS Dir,BKG*HOTEL AT BOOKING.C,0.02,0,0.02,Staff Travelling Expenses,Travel agencies
Buckinghamshire Council ,31.08.2023,04.08.2023,Children's Services,Education & Childrens Services - CS Dir,A1 TAXI SERVICE,140,28,168,Staff Travelling Expenses,Taxicabs & limousines
Buckinghamshire Council ,31.08.2023,04.08.2023,Communities,Climate Change & Environment - Community,WWW.LICENCECHECK.CO.UK,937.2,0,937.2,Professional Services (non curriculum) - External,Legal services
Buckinghamshire Council ,31.08.2023,04.08.2023,Deputy Chief Executive,Communities - DCE,PAYPAL,0.02,0,0.02,Other Personal Needs,Variety stores
Buckinghamshire Council ,31.08.2023,04.08.2023,Deputy Chief Executive,Communities - DCE,PAYPAL,34.15,6.83,40.98,Other Personal Needs,Variety stores
Buckinghamshire Council ,31.08.2023,04.08.2023,Deputy Chief Executive,Communities - DCE,WWW.ARGOS.CO.UK,0.01,0,0.01,Other Personal Needs,Department stores
Buckinghamshire Council ,31.08.2023,04.08.2023,Deputy Chief Executive,Communities - DCE,WWW.ARGOS.CO.UK,242.45,48.49,290.94,Other Personal Needs,Department stores
Buckinghamshire Council ,31.08.2023,04.08.2023,Deputy Chief Executive,Communities - DCE,PAYPAL,0.01,0,0.01,Other Personal Needs,Variety stores
Buckinghamshire Council ,31.08.2023,04.08.2023,Deputy Chief Executive,Communities - DCE,PAYPAL,169.95,33.99,203.94,Other Personal Needs,Variety stores
Buckinghamshire Council ,31.08.2023,04.08.2023,Deputy Chief Executive,Communities - DCE,AO RETAIL LIMITED,710.83,142.17,853,Other Personal Needs,Household appliance stores
Buckinghamshire Council ,31.08.2023,04.08.2023,Deputy Chief Executive,Communities - DCE,AO RETAIL LIMITED,819.16,163.84,983,Other Personal Needs,Household appliance stores
Buckinghamshire Council ,31.08.2023,04.08.2023,Deputy Chief Executive,Communities - DCE,AO RETAIL LIMITED,385.83,77.17,463,Other Personal Needs,Household appliance stores
Buckinghamshire Council ,31.08.2023,04.08.2023,Deputy Chief Executive,Communities - DCE,AO RETAIL LIMITED,892.49,178.51,"1,071.00",Other Personal Needs,Household appliance stores
Buckinghamshire Council ,31.08.2023,04.08.2023,Deputy Chief Executive,Communities - DCE,WWW.ARGOS.CO.UK,0.01,0,0.01,Other Personal Needs,Department stores
Buckinghamshire Council ,31.08.2023,04.08.2023,Deputy Chief Executive,Communities - DCE,WWW.ARGOS.CO.UK,159.95,31.99,191.94,Other Personal Needs,Department stores
Buckinghamshire Council ,31.08.2023,04.08.2023,Deputy Chief Executive,Communities - DCE,AO RETAIL LIMITED,216.66,43.34,260,Other Personal Needs,Household appliance stores
Buckinghamshire Council ,31.08.2023,04.08.2023,Communities,Transport - Communities Dir,GERRARDS CROSS PACKHORSE,1.7,0,1.7,Repair and Maintenance of Equipment,Car parking & garages
Buckinghamshire Council ,31.08.2023,04.08.2023,Children's Services,Education & Childrens Services - CS Dir,AMZNMKTPLACE,36.99,0,36.99,Activities & General Recreation,Miscellaneous retail
Buckinghamshire Council ,31.08.2023,04.08.2023,Communities,Housing & Homelessness & Regulatory Comm,SELCO TRADE CENTRES LTD,43.99,8.8,52.79,Protective Clothing & Uniforms,Hardware Equipment & Suppliers
Buckinghamshire Council ,31.08.2023,04.08.2023,Deputy Chief Executive,Communities - DCE,SHORTS GROUP LTD,280,0,280,Grants to Voluntary Bodies,"Equipment, tool, furniture hire & leasing"
Buckinghamshire Council ,31.08.2023,04.08.2023,Children's Services,Education & Childrens Services - CS Dir,AMZNMktplace,181.43,0,181.43,Awaiting Coding,Miscellaneous retail
Buckinghamshire Council ,31.08.2023,04.08.2023,Adults and Health,Health & Wellbeing - Adults & Health Dir,WWW.PAY.UKCRS.COM,150,0,150,Supported Living - Other,Misc business services
Buckinghamshire Council ,31.08.2023,04.08.2023,Resources,AH&R - Res Dir,PAYPAL,8.99,0,8.99,IT - Computer Network Charges,Computer network information services
Buckinghamshire Council ,31.08.2023,04.08.2023,Children's Services,Education & Childrens Services - CS Dir,NEUROBOX LIMITED* #373,"1,218.00",0,"1,218.00",Professional Services (non curriculum) - External,Consultants & public relation services
Buckinghamshire Council ,31.08.2023,04.08.2023,Deputy Chief Executive,Leader - DCE,FREEPIK COMPANY,96.23,0,96.23,Advertising,"Commercial photo, art & graphic"
Buckinghamshire Council ,31.08.2023,04.08.2023,Children's Services,Education & Childrens Services - CS Dir,EDEN SPRINGS,52.2,0,52.2,Consumable Supplies,Misc non-durable goods
Buckinghamshire Council ,31.08.2023,04.08.2023,Children's Services,Education & Childrens Services - CS Dir,MYTRIPBUS* REDLINE BUS,100,0,100,Activities & General Recreation,
Buckinghamshire Council ,31.08.2023,04.08.2023,Children's Services,Education & Childrens Services - CS Dir,MYTRIPBUS* REDLINE BUS,100,0,100,Activities & General Recreation,
Buckinghamshire Council ,31.08.2023,04.08.2023,Resources,AH&R - Res Dir,AMZNMKTPLACE,49.99,0,49.99,Leaving Care - Grants for Care Leavers,Miscellaneous retail
Buckinghamshire Council ,31.08.2023,04.08.2023,Children's Services,Education & Childrens Services - CS Dir,2MAA039297585 TD E-PMT,75,0,75,Sec 20/31: Specialist Services,Government services
Buckinghamshire Council ,31.08.2023,04.08.2023,Communities,Communities - Trust Accounts,LIDL GB SLOUGH,44.61,0,44.61,Purchase of Food for Re-sale,Grocery stores
Buckinghamshire Council ,31.08.2023,04.08.2023,"Planning, Growth & Sustainability",Planning & Regeneration - PGS,AMZNMKTPLACE,61.93,0,61.93,IT Equipment Purchase,Miscellaneous retail
Buckinghamshire Council ,31.08.2023,04.08.2023,Resources,AH&R - Res Dir,LINKEDIN ADS 9292764984,123.26,0,123.26,Permanent Recruitment Costs,Advertising services
Buckinghamshire Council ,31.08.2023,04.08.2023,Deputy Chief Executive,AH&R- DCE Dir,PAYPAL,-12.95,0,-12.95,Miscellaneous (Other)  Expenses,Variety stores
Buckinghamshire Council ,31.08.2023,04.08.2023,Children's Services,Education & Childrens Services - CS Dir,B&M 426 - HS AYLESBURY,137.78,0,137.78,Other Personal Needs,Misc. general merchandise
Buckinghamshire Council ,31.08.2023,04.08.2023,Children's Services,Education & Childrens Services - CS Dir,TESCO GIFT CARD,20,0,20,Sec 20/31: Financial Assistance,Grocery stores
Buckinghamshire Council ,31.08.2023,04.08.2023,Children's Services,Education & Childrens Services - CS Dir,PREMIER INN,353.6,0,353.6,Sec 17: Financial Assistance,Premier Inn
Buckinghamshire Council ,31.08.2023,04.08.2023,Children's Services,Education & Childrens Services - CS Dir,AMZNMKTPLACE,234.54,0,234.54,Sec 17: Financial Assistance One Off,Miscellaneous retail
Buckinghamshire Council ,31.08.2023,04.08.2023,Children's Services,Education & Childrens Services - CS Dir,WWW.BUCKINGHAMSHIRE.GOV,182.61,0,182.61,Leaving Care  - Financial Assistance,Government services
Buckinghamshire Council ,31.08.2023,03.08.2023,"Planning, Growth & Sustainability",AH&R - PGS Dir,AMZNMKTPLACE,19.47,0,19.47,Administrative Equipment & Tools,Miscellaneous retail
Buckinghamshire Council ,31.08.2023,03.08.2023,Children's Services,Education & Childrens Services - CS Dir,AMZNMKTPLACE,11.99,0,11.99,Consumable Supplies,Miscellaneous retail
Buckinghamshire Council ,31.08.2023,03.08.2023,Communities,Climate Change & Environment - Community,OLD BRIDGE HOTEL,33.75,6.75,40.5,Other Employees Expenses,"Hotels, motels & resorts"
Buckinghamshire Council ,31.08.2023,03.08.2023,"Planning, Growth & Sustainability",Climate Change & Environment - PGS,L B CAMDEN INT,493,0,493,Professional Subscriptions re Employees,Government services
Buckinghamshire Council ,31.08.2023,03.08.2023,Children's Services,Education & Childrens Services - CS Dir,AMZNMKTPLACE,13.9,0,13.9,Activities & General Recreation,Miscellaneous retail
Buckinghamshire Council ,31.08.2023,03.08.2023,Deputy Chief Executive,Communities - DCE,AO RETAIL LIMITED,100,0,100,Other Personal Needs,Household appliance stores
Buckinghamshire Council ,31.08.2023,03.08.2023,"Planning, Growth & Sustainability",Housing & Homelessness & Regulatory PGS,ROYAL MAIL GROUP LTD,3.3,0,3.3,Burial Costs,Postal services
Buckinghamshire Council ,31.08.2023,03.08.2023,Resources,AH&R - Res Dir,AMZNMKTPLACE,26.22,0,26.22,IT Equipment Purchase,Miscellaneous retail
Buckinghamshire Council ,31.08.2023,03.08.2023,Deputy Chief Executive,Leader - DCE,BUCKSCOUNTYSHOW.CO.UK,33,0,33,Events Expenditure,Agricultural Co-operatives
Buckinghamshire Council ,31.08.2023,03.08.2023,Deputy Chief Executive,Leader - DCE,SUMUP  *RAPID RURAL,150,0,150,Events Expenditure,Professional services
Buckinghamshire Council ,31.08.2023,03.08.2023,Deputy Chief Executive,Leader - DCE,COUNTYCOUNCILSNETWORK,840,0,840,"Courses, Conference and Seminar Fees",Membership organisations
Buckinghamshire Council ,31.08.2023,03.08.2023,Deputy Chief Executive,Communities - DCE,AO RETAIL LIMITED,265.83,53.17,319,Other Personal Needs,Household appliance stores
Buckinghamshire Council ,31.08.2023,03.08.2023,Deputy Chief Executive,Communities - DCE,AO RETAIL LIMITED,274.16,54.84,329,Other Personal Needs,Household appliance stores
Buckinghamshire Council ,31.08.2023,03.08.2023,Deputy Chief Executive,Communities - DCE,WWW.ARGOS.CO.UK,441.62,88.33,529.95,Other Personal Needs,Department stores
Buckinghamshire Council ,31.08.2023,03.08.2023,Deputy Chief Executive,Communities - DCE,AO RETAIL LIMITED,867.49,173.51,"1,041.00",Other Personal Needs,Household appliance stores
Buckinghamshire Council ,31.08.2023,03.08.2023,Deputy Chief Executive,Communities - DCE,AO RETAIL LIMITED,834.99,167.01,"1,002.00",Other Personal Needs,Household appliance stores
Buckinghamshire Council ,31.08.2023,03.08.2023,Deputy Chief Executive,Communities - DCE,WWW.ARGOS.CO.UK,224.1,44.82,268.92,Other Personal Needs,Department stores
Buckinghamshire Council ,31.08.2023,03.08.2023,Deputy Chief Executive,Communities - DCE,WWW.ARGOS.CO.UK,0.03,0,0.03,Other Personal Needs,Department stores
